{"text_format":"1","workbook":"xlsx","n_sheets":4,"sheets":["ST_names","Repport","ترحيل","Salim"],"not_rendered":{"charts":0,"images":0,"macros":1,"external_links":0,"defined_names":2,"comments":0,"pivot_tables":0},"unopened":[],"bounds":{"document_bytes":16777216,"sheet_cells":100000,"rows_first":2000,"rows_last":500,"rows_between":2000,"halvings":0,"cell_chars":16384,"cell_head_chars":4096},"cells_cut":0,"cells_raw":0,"read":"whole","date_system":"1900"}

{"sheet":"ST_names","index":0,"n_rows":277,"n_cols":7,"rows_kept":277,"cut":false,"hidden":false,"merged":[]}
["رقم","نوع الطالب","الصف","الاسم","المكان","اسم الأم","حالة القيد"]
[1,"ذكر","الأول","محمد حامد","البحيري","A1","مستجد"]
[2,"أثنى","الثاني","خلود ماهر","البحيري","A2","معيد"]
[3,"ذكر","الأول","احمد محمود","البحيري","A3","من الخارج"]
[4,"أثنى","الثاني","هند علي خميس","البحيري","A4"]
[5,"ذكر","الأول","سليمان عبد الرحيم","البحيري","A5"]
[6,"أثنى","الثاني","عفت إبراهيم محجوب","البحيري","A6"]
[7,"ذكر","الأول","إبراهيم منصف عطية","البحيري","A7"]
[8,"أثنى","الثاني","دعاء السعيد علي","البحيري","A8"]
[9,"ذكر","الأول","محمود طه حسن","البحيري","A9"]
[10,"أثنى","الثاني","هاجر عطية بسيوني","البحيري","A10"]
[11,"ذكر","الأول","محمد حامد","البحيري","A11"]
[12,"أثنى","الثاني","خلود ماهر","البحيري","A12"]
[13,"ذكر","الأول","احمد محمود","البحيري","A13"]
[14,"أثنى","الثاني","هند علي خميس","البحيري","A14"]
[15,"ذكر","الأول","سليمان عبد الرحيم","البحيري","A15"]
[16,"أثنى","الثاني","عفت إبراهيم محجوب","البحيري","A16"]
[17,"ذكر","الأول","إبراهيم منصف عطية","البحيري","A17"]
[18,"أثنى","الثاني","دعاء السعيد علي","البحيري","A18"]
[19,"ذكر","الأول","محمود طه حسن","البحيري","A19"]
[20,"أثنى","الثاني","هاجر عطية بسيوني","البحيري","A20"]
[21,"ذكر","الأول","محمد حامد","البحيري","A21"]
[22,"أثنى","الثاني","خلود ماهر","البحيري","A22"]
[23,"ذكر","الأول","احمد محمود","البحيري","A23"]
[24,"أثنى","الثاني","هند علي خميس","البحيري","A24"]
[25,"ذكر","الأول","سليمان عبد الرحيم","البحيري","A25"]
[26,"أثنى","الثاني","عفت إبراهيم محجوب","البحيري","A26"]
[27,"ذكر","الأول","إبراهيم منصف عطية","البحيري","A27"]
[28,"أثنى","الثاني","دعاء السعيد علي","البحيري","A28"]
[29,"ذكر","الأول","محمود طه حسن","البحيري","A29"]
[30,"أثنى","الثاني","هاجر عطية بسيوني","البحيري","A30"]
[31,"ذكر","الأول","محمد حامد","البحيري","A31"]
[32,"أثنى","الثاني","خلود ماهر","البحيري","A32"]
[33,"ذكر","الأول","احمد محمود","البحيري","A33"]
[34,"أثنى","الثاني","هند علي خميس","البحيري","A34"]
[35,"ذكر","الأول","سليمان عبد الرحيم","البحيري","A35"]
[36,"أثنى","الثاني","عفت إبراهيم محجوب","البحيري","A36"]
[37,"ذكر","الأول","إبراهيم منصف عطية","البحيري","A37"]
[38,"أثنى","الثاني","دعاء السعيد علي","البحيري","A38"]
[39,"ذكر","الأول","محمود طه حسن","البحيري","A39"]
[40,"أثنى","الثاني","هاجر عطية بسيوني","البحيري","A40"]
[41,"ذكر","الأول","محمد حامد","البحيري","A41"]
[42,"أثنى","الثاني","خلود ماهر","البحيري","A42"]
[43,"ذكر","الأول","احمد محمود","البحيري","A43"]
[44,"أثنى","الثاني","هند علي خميس","البحيري","A44"]
[45,"ذكر","الأول","سليمان عبد الرحيم","البحيري","A45"]
[46,"أثنى","الثاني","عفت إبراهيم محجوب","البحيري","A46"]
[47,"ذكر","الأول","إبراهيم منصف عطية","البحيري","A47"]
[48,"أثنى","الثاني","دعاء السعيد علي","البحيري","A48"]
[49,"ذكر","الأول","محمود طه حسن","البحيري","A49"]
[50,"أثنى","الثاني","هاجر عطية بسيوني","البحيري","A50"]
[51,"ذكر","الأول","محمد حامد","البحيري","A51"]
[52,"أثنى","الثاني","خلود ماهر","البحيري","A52"]
[53,"ذكر","الأول","احمد محمود","البحيري","A53"]
[54,"أثنى","الثاني","هند علي خميس","البحيري","A54"]
[55,"ذكر","الأول","سليمان عبد الرحيم","البحيري","A55"]
[56,"أثنى","الثاني","عفت إبراهيم محجوب","البحيري","A56"]
[57,"ذكر","الأول","إبراهيم منصف عطية","البحيري","A57"]
[58,"أثنى","الثاني","دعاء السعيد علي","البحيري","A58"]
[59,"ذكر","الأول","محمود طه حسن","البحيري","A59"]
[60,"أثنى","الثاني","هاجر عطية بسيوني","البحيري","A60"]
[61,"ذكر","الأول","محمد حامد","البحيري","A61"]
[62,"أثنى","الثاني","خلود ماهر","البحيري","A62"]
[63,"ذكر","الأول","احمد محمود","البحيري","A63"]
[64,"أثنى","الثاني","هند علي خميس","البحيري","A64"]
[65,"ذكر","الأول","سليمان عبد الرحيم","البحيري","A65"]
[66,"أثنى","الثاني","عفت إبراهيم محجوب","البحيري","A66"]
[67,"ذكر","الأول","إبراهيم منصف عطية","البحيري","A67"]
[68,"أثنى","الثاني","دعاء السعيد علي","البحيري","A68"]
[69,"ذكر","الأول","محمود طه حسن","البحيري","A69"]
[70,"أثنى","الثاني","هاجر عطية بسيوني","البحيري","A70"]
[71,"ذكر","الأول","محمد حامد","البحيري","A71"]
[72,"أثنى","الثاني","خلود ماهر","البحيري","A72"]
[73,"ذكر","الأول","احمد محمود","البحيري","A73"]
[74,"أثنى","الثاني","هند علي خميس","البحيري","A74"]
[75,"ذكر","الأول","سليمان عبد الرحيم","البحيري","A75"]
[76,"أثنى","الثاني","عفت إبراهيم محجوب","البحيري","A76"]
[77,"ذكر","الأول","إبراهيم منصف عطية","البحيري","A77"]
[78,"أثنى","الثاني","دعاء السعيد علي","البحيري","A78"]
[79,"ذكر","الأول","محمود طه حسن","البحيري","A79"]
[80,"أثنى","الثاني","هاجر عطية بسيوني","البحيري","A80"]
[81,"ذكر","الأول","محمد حامد","البحيري","A81"]
[82,"أثنى","الثاني","خلود ماهر","البحيري","A82"]
[83,"ذكر","الأول","احمد محمود","البحيري","A83"]
[84,"أثنى","الثاني","هند علي خميس","البحيري","A84"]
[85,"ذكر","الأول","سليمان عبد الرحيم","البحيري","A85"]
[86,"أثنى","الثاني","عفت إبراهيم محجوب","البحيري","A86"]
[87,"ذكر","الأول","إبراهيم منصف عطية","البحيري","A87"]
[88,"أثنى","الثاني","دعاء السعيد علي","البحيري","A88"]
[89,"ذكر","الأول","محمود طه حسن","البحيري","A89"]
[90,"أثنى","الثاني","هاجر عطية بسيوني","البحيري","A90"]
[91,"ذكر","الأول","محمد حامد","البحيري","A91"]
[92,"أثنى","الثاني","خلود ماهر","البحيري","A92"]
[93,"ذكر","الأول","احمد محمود","البحيري","A93"]
[94,"أثنى","الثاني","هند علي خميس","البحيري","A94"]
[95,"ذكر","الأول","سليمان عبد الرحيم","البحيري","A95"]
[96,"أثنى","الثاني","عفت إبراهيم محجوب","البحيري","A96"]
[97,"ذكر","الأول","إبراهيم منصف عطية","البحيري","A97"]
[98,"أثنى","الثاني","دعاء السعيد علي","البحيري","A98"]
[99,"ذكر","الأول","محمود طه حسن","البحيري","A99"]
[100,"أثنى","الثاني","هاجر عطية بسيوني","البحيري","A100"]
[101,"ذكر","الأول","محمد حامد","البحيري","A101"]
[102,"أثنى","الثاني","خلود ماهر","البحيري","A102"]
[103,"ذكر","الأول","احمد محمود","البحيري","A103"]
[104,"أثنى","الثاني","هند علي خميس","البحيري","A104"]
[105,"ذكر","الأول","سليمان عبد الرحيم","البحيري","A105"]
[106,"أثنى","الثاني","عفت إبراهيم محجوب","البحيري","A106"]
[107,"ذكر","الأول","إبراهيم منصف عطية","البحيري","A107"]
[108,"أثنى","الثاني","دعاء السعيد علي","البحيري","A108"]
[109,"ذكر","الأول","محمود طه حسن","البحيري","A109"]
[110,"أثنى","الثاني","هاجر عطية بسيوني","البحيري","A110"]
[111,"ذكر","الأول","محمد حامد","البحيري","A111"]
[112,"أثنى","الثاني","خلود ماهر","البحيري","A112"]
[113,"ذكر","الأول","احمد محمود","البحيري","A113"]
[114,"أثنى","الثاني","هند علي خميس","البحيري","A114"]
[115,"ذكر","الأول","سليمان عبد الرحيم","البحيري","A115"]
[116,"أثنى","الثاني","عفت إبراهيم محجوب","البحيري","A116"]
[117,"ذكر","الأول","إبراهيم منصف عطية","البحيري","A117"]
[118,"أثنى","الثاني","دعاء السعيد علي","البحيري","A118"]
[119,"ذكر","الأول","محمود طه حسن","البحيري","A119"]
[120,"أثنى","الثاني","هاجر عطية بسيوني","البحيري","A120"]
[121,"ذكر","الأول","محمد حامد","البحيري","A121"]
[122,"أثنى","الثاني","خلود ماهر","البحيري","A122"]
[123,"ذكر","الأول","احمد محمود","البحيري","A123"]
[124,"أثنى","الثاني","هند علي خميس","البحيري","A124"]
[125,"ذكر","الأول","سليمان عبد الرحيم","البحيري","A125"]
[126,"أثنى","الثاني","عفت إبراهيم محجوب","البحيري","A126"]
[127,"ذكر","الأول","إبراهيم منصف عطية","البحيري","A127"]
[128,"أثنى","الثاني","دعاء السعيد علي","البحيري","A128"]
[129,"ذكر","الأول","محمود طه حسن","البحيري","A129"]
[130,"أثنى","الثاني","هاجر عطية بسيوني","البحيري","A130"]
[131,"ذكر","الأول","محمد حامد","البحيري","A131"]
[132,"أثنى","الثاني","خلود ماهر","البحيري","A132"]
[133,"ذكر","الأول","احمد محمود","البحيري","A133"]
[134,"أثنى","الثاني","هند علي خميس","البحيري","A134"]
[135,"ذكر","الأول","سليمان عبد الرحيم","البحيري","A135"]
[136,"أثنى","الثاني","عفت إبراهيم محجوب","البحيري","A136"]
[137,"ذكر","الأول","إبراهيم منصف عطية","البحيري","A137"]
[138,"أثنى","الثاني","دعاء السعيد علي","البحيري","A138"]
[139,"ذكر","الأول","محمود طه حسن","البحيري","A139"]
[140,"أثنى","الثاني","هاجر عطية بسيوني","البحيري","A140"]
[141,"ذكر","الأول","محمد حامد","البحيري","A141"]
[142,"أثنى","الثاني","خلود ماهر","البحيري","A142"]
[143,"ذكر","الأول","احمد محمود","البحيري","A143"]
[144,"أثنى","الثاني","هند علي خميس","البحيري","A144"]
[145,"ذكر","الأول","سليمان عبد الرحيم","البحيري","A145"]
[146,"أثنى","الثاني","عفت إبراهيم محجوب","البحيري","A146"]
[147,"ذكر","الأول","إبراهيم منصف عطية","البحيري","A147"]
[148,"أثنى","الثاني","دعاء السعيد علي","البحيري","A148"]
[149,"ذكر","الأول","محمود طه حسن","البحيري","A149"]
[150,"أثنى","الثاني","هاجر عطية بسيوني","البحيري","A150"]
[151,"ذكر","الأول","محمد حامد","البحيري","A151"]
[152,"أثنى","الثاني","خلود ماهر","البحيري","A152"]
[153,"ذكر","الأول","احمد محمود","البحيري","A153"]
[154,"أثنى","الثاني","هند علي خميس","البحيري","A154"]
[155,"ذكر","الأول","سليمان عبد الرحيم","البحيري","A155"]
[156,"أثنى","الثاني","عفت إبراهيم محجوب","البحيري","A156"]
[157,"ذكر","الأول","إبراهيم منصف عطية","البحيري","A157"]
[158,"أثنى","الثاني","دعاء السعيد علي","البحيري","A158"]
[159,"ذكر","الأول","محمود طه حسن","البحيري","A159"]
[160,"أثنى","الثاني","هاجر عطية بسيوني","البحيري","A160"]
[161,"ذكر","الأول","محمد حامد","البحيري","A161"]
[162,"أثنى","الثاني","خلود ماهر","البحيري","A162"]
[163,"ذكر","الأول","احمد محمود","البحيري","A163"]
[164,"أثنى","الثاني","هند علي خميس","البحيري","A164"]
[165,"ذكر","الأول","سليمان عبد الرحيم","البحيري","A165"]
[166,"أثنى","الثاني","عفت إبراهيم محجوب","البحيري","A166"]
[167,"ذكر","الأول","إبراهيم منصف عطية","البحيري","A167"]
[168,"أثنى","الثاني","دعاء السعيد علي","البحيري","A168"]
[169,"ذكر","الأول","محمود طه حسن","البحيري","A169"]
[170,"أثنى","الثاني","هاجر عطية بسيوني","البحيري","A170"]
[171,"ذكر","الأول","محمد حامد","البحيري","A171"]
[172,"أثنى","الثاني","خلود ماهر","البحيري","A172"]
[173,"ذكر","الأول","احمد محمود","البحيري","A173"]
[174,"أثنى","الثاني","هند علي خميس","البحيري","A174"]
[175,"ذكر","الأول","سليمان عبد الرحيم","البحيري","A175"]
[176,"أثنى","الثاني","عفت إبراهيم محجوب","البحيري","A176"]
[177,"ذكر","الأول","إبراهيم منصف عطية","البحيري","A177"]
[178,"أثنى","الثاني","دعاء السعيد علي","البحيري","A178"]
[179,"ذكر","الأول","محمود طه حسن","البحيري","A179"]
[180,"أثنى","الثاني","هاجر عطية بسيوني","البحيري","A180"]
[181,"ذكر","الأول","محمد حامد","البحيري","A181"]
[182,"أثنى","الثاني","خلود ماهر","البحيري","A182"]
[183,"ذكر","الأول","احمد محمود","البحيري","A183"]
[184,"أثنى","الثاني","هند علي خميس","البحيري","A184"]
[185,"ذكر","الأول","سليمان عبد الرحيم","البحيري","A185"]
[186,"أثنى","الثاني","عفت إبراهيم محجوب","البحيري","A186"]
[187,"ذكر","الأول","إبراهيم منصف عطية","البحيري","A187"]
[188,"أثنى","الثاني","دعاء السعيد علي","البحيري","A188"]
[189,"ذكر","الأول","محمود طه حسن","البحيري","A189"]
[190,"أثنى","الثاني","هاجر عطية بسيوني","البحيري","A190"]
[191,"ذكر","الأول","محمد حامد","البحيري","A191"]
[192,"أثنى","الثاني","خلود ماهر","البحيري","A192"]
[193,"ذكر","الأول","احمد محمود","البحيري","A193"]
[194,"أثنى","الثاني","هند علي خميس","البحيري","A194"]
[195,"ذكر","الأول","سليمان عبد الرحيم","البحيري","A195"]
[196,"أثنى","الثاني","عفت إبراهيم محجوب","البحيري","A196"]
[197,"ذكر","الأول","إبراهيم منصف عطية","البحيري","A197"]
[198,"أثنى","الثاني","دعاء السعيد علي","البحيري","A198"]
[199,"ذكر","الأول","محمود طه حسن","البحيري","A199"]
[200,"أثنى","الثاني","هاجر عطية بسيوني","البحيري","A200"]
[201,"ذكر","الأول","محمد حامد","البحيري","A201"]
[202,"أثنى","الثاني","خلود ماهر","البحيري","A202"]
[203,"ذكر","الأول","احمد محمود","البحيري","A203"]
[204,"أثنى","الثاني","هند علي خميس","البحيري","A204"]
[205,"ذكر","الأول","سليمان عبد الرحيم","البحيري","A205"]
[206,"أثنى","الثاني","عفت إبراهيم محجوب","البحيري","A206"]
[207,"ذكر","الأول","إبراهيم منصف عطية","البحيري","A207"]
[208,"أثنى","الثاني","دعاء السعيد علي","البحيري","A208"]
[209,"ذكر","الأول","محمود طه حسن","البحيري","A209"]
[210,"أثنى","الثاني","هاجر عطية بسيوني","البحيري","A210"]
[211,"ذكر","الأول","محمد حامد","البحيري","A211"]
[212,"أثنى","الثاني","خلود ماهر","البحيري","A212"]
[213,"ذكر","الأول","احمد محمود","البحيري","A213"]
[214,"أثنى","الثاني","هند علي خميس","البحيري","A214"]
[215,"ذكر","الأول","سليمان عبد الرحيم","البحيري","A215"]
[216,"أثنى","الثاني","عفت إبراهيم محجوب","البحيري","A216"]
[217,"ذكر","الأول","إبراهيم منصف عطية","البحيري","A217"]
[218,"أثنى","الثاني","دعاء السعيد علي","البحيري","A218"]
[219,"ذكر","الأول","محمود طه حسن","البحيري","A219"]
[220,"أثنى","الثاني","هاجر عطية بسيوني","البحيري","A220"]
[221,"ذكر","الأول","محمد حامد","البحيري","A221"]
[222,"أثنى","الثاني","خلود ماهر","البحيري","A222"]
[223,"ذكر","الأول","احمد محمود","البحيري","A223"]
[224,"أثنى","الثاني","هند علي خميس","البحيري","A224"]
[225,"ذكر","الأول","سليمان عبد الرحيم","البحيري","A225"]
[226,"أثنى","الثاني","عفت إبراهيم محجوب","البحيري","A226"]
[227,"ذكر","الأول","إبراهيم منصف عطية","البحيري","A227"]
[228,"أثنى","الثاني","دعاء السعيد علي","البحيري","A228"]
[229,"ذكر","الأول","محمود طه حسن","البحيري","A229"]
[230,"أثنى","الثاني","هاجر عطية بسيوني","البحيري","A230"]
[231,"ذكر","الأول","محمد حامد","البحيري","A231"]
[232,"أثنى","الثاني","خلود ماهر","البحيري","A232"]
[233,"ذكر","الأول","احمد محمود","البحيري","A233"]
[234,"أثنى","الثاني","هند علي خميس","البحيري","A234"]
[235,"ذكر","الأول","سليمان عبد الرحيم","البحيري","A235"]
[236,"أثنى","الثاني","عفت إبراهيم محجوب","البحيري","A236"]
[237,"ذكر","الأول","إبراهيم منصف عطية","البحيري","A237"]
[238,"أثنى","الثاني","دعاء السعيد علي","البحيري","A238"]
[239,"ذكر","الأول","محمود طه حسن","البحيري","A239"]
[240,"أثنى","الثاني","هاجر عطية بسيوني","البحيري","A240"]
[241,"ذكر","الأول","محمد حامد","البحيري","A241"]
[242,"أثنى","الثاني","خلود ماهر","البحيري","A242"]
[243,"ذكر","الأول","احمد محمود","البحيري","A243"]
[244,"أثنى","الثاني","هند علي خميس","البحيري","A244"]
[245,"ذكر","الأول","سليمان عبد الرحيم","البحيري","A245"]
[246,"أثنى","الثاني","عفت إبراهيم محجوب","البحيري","A246"]
[247,"ذكر","الأول","إبراهيم منصف عطية","البحيري","A247"]
[248,"أثنى","الثاني","دعاء السعيد علي","البحيري","A248"]
[249,"ذكر","الأول","محمود طه حسن","البحيري","A249"]
[250,"أثنى","الثاني","هاجر عطية بسيوني","البحيري","A250"]
[251,"ذكر","الأول","محمد حامد","البحيري","A251"]
[252,"أثنى","الثاني","خلود ماهر","البحيري","A252"]
[253,"ذكر","الأول","احمد محمود","البحيري","A253"]
[254,"أثنى","الثاني","هند علي خميس","البحيري","A254"]
[255,"ذكر","الأول","سليمان عبد الرحيم","البحيري","A255"]
[256,"أثنى","الثاني","عفت إبراهيم محجوب","البحيري","A256"]
[257,"ذكر","الأول","إبراهيم منصف عطية","البحيري","A257"]
[258,"أثنى","الثاني","دعاء السعيد علي","البحيري","A258"]
[259,"ذكر","الأول","محمود طه حسن","البحيري","A259"]
[260,"أثنى","الثاني","هاجر عطية بسيوني","البحيري","A260"]
[261,"ذكر","الأول","محمد حامد","البحيري","A261"]
[262,"أثنى","الثاني","خلود ماهر","البحيري","A262"]
[263,"ذكر","الأول","احمد محمود","البحيري","A263"]
[264,"أثنى","الثاني","هند علي خميس","البحيري","A264"]
[265,"ذكر","الأول","سليمان عبد الرحيم","البحيري","A265"]
[266,"أثنى","الثاني","عفت إبراهيم محجوب","البحيري","A266"]
[267,"ذكر","الأول","إبراهيم منصف عطية","البحيري","A267"]
[268,"أثنى","الثاني","دعاء السعيد علي","البحيري","A268"]
[269,"ذكر","الأول","محمود طه حسن","البحيري","A269"]
[270,"أثنى","الثاني","هاجر عطية بسيوني","البحيري","A270"]
[271,"ذكر","الأول","محمد حامد","البحيري","A271"]
[272,"أثنى","الثاني","خلود ماهر","البحيري","A272"]
[273,"ذكر","الأول","احمد محمود","البحيري","A273"]
[274,"أثنى","الثاني","هند علي خميس","البحيري","A274"]
[275,"ذكر","الأول","سليمان عبد الرحيم","البحيري","A275"]
[276,"أثنى","الثاني","عفت إبراهيم محجوب","البحيري","A276"]

{"sheet":"Repport","index":1,"n_rows":4138,"n_cols":7,"rows_kept":4138,"cut":false,"hidden":false,"merged":[]}
["بيانات الحالة"]
["طالب رقم ",1,"اسم أم الطالب","A1"]
["اسم الطالب","محمد حامد","عدد الأخوة","2"]
["الصف","Clase1","عدد المتزوجون منهم","0"]
["اسم ولي الأمر","Mounir","تسكن بالإيجار ؟","nonNon"]
["البلد","Egypt","موظفة ؟","Non"]
["تاريخ الميلاد","2010-05-10","مرتب الوظيفة","0"]
["حالة القيد ","Norrmal","لها حيازة ؟","yes"]
["نوع القيد","Form1","العدد بالقيراط","2"]
["له أخوة\n بالمدرسة ؟","Yes","قيمة المعاش أو النفقة",1500]
["المرحلة\n الدراسية","Prim","مريضة ؟","Non"]
["اسم الباحث"]
["رأي الباحث"]
[]
[]
["بيانات الحالة"]
["طالب رقم ",2,"اسم أم الطالب","A2"]
["اسم الطالب","خلود ماهر","عدد الأخوة"]
["الصف",null,"عدد المتزوجون منهم"]
["اسم ولي الأمر",null,"تسكن بالإيجار ؟"]
["البلد",null,"موظفة ؟"]
["تاريخ الميلاد",null,"مرتب الوظيفة"]
["حالة القيد ",null,"لها حيازة ؟"]
["نوع القيد",null,"العدد بالقيراط"]
["له أخوة\n بالمدرسة ؟",null,"قيمة المعاش أو النفقة"]
["المرحلة\n الدراسية",null,"مريضة ؟"]
["اسم الباحث",null,null,null,null,null,"`"]
["رأي الباحث"]
[]
[]
["بيانات الحالة"]
["طالب رقم ",3,"اسم أم الطالب","A3"]
["اسم الطالب","احمد محمود","عدد الأخوة"]
["الصف",null,"عدد المتزوجون منهم"]
["اسم ولي الأمر",null,"تسكن بالإيجار ؟"]
["البلد",null,"موظفة ؟"]
["تاريخ الميلاد",null,"مرتب الوظيفة"]
["حالة القيد ",null,"لها حيازة ؟"]
["نوع القيد",null,"العدد بالقيراط"]
["له أخوة\n بالمدرسة ؟",null,"قيمة المعاش أو النفقة"]
["المرحلة\n الدراسية",null,"مريضة ؟"]
["اسم الباحث"]
["رأي الباحث"]
[]
[]
["بيانات الحالة"]
["طالب رقم ",4,"اسم أم الطالب","A4"]
["اسم الطالب","هند علي خميس","عدد الأخوة"]
["الصف",null,"عدد المتزوجون منهم"]
["اسم ولي الأمر",null,"تسكن بالإيجار ؟"]
["البلد",null,"موظفة ؟"]
["تاريخ الميلاد",null,"مرتب الوظيفة"]
["حالة القيد ",null,"لها حيازة ؟"]
["نوع القيد",null,"العدد بالقيراط"]
["له أخوة\n بالمدرسة ؟",null,"قيمة المعاش أو النفقة"]
["المرحلة\n الدراسية",null,"مريضة ؟"]
["اسم الباحث"]
["رأي الباحث"]
[]
[]
["بيانات الحالة"]
["طالب رقم ",5,"اسم أم الطالب","A5"]
["اسم الطالب","سليمان عبد الرحيم","عدد الأخوة"]
["الصف",null,"عدد المتزوجون منهم"]
["اسم ولي الأمر",null,"تسكن بالإيجار ؟"]
["البلد",null,"موظفة ؟"]
["تاريخ الميلاد",null,"مرتب الوظيفة"]
["حالة القيد ",null,"لها حيازة ؟"]
["نوع القيد",null,"العدد بالقيراط"]
["له أخوة\n بالمدرسة ؟",null,"قيمة المعاش أو النفقة"]
["المرحلة\n الدراسية",null,"مريضة ؟"]
["اسم الباحث"]
["رأي الباحث"]
[]
[]
["بيانات الحالة"]
["طالب رقم ",6,"اسم أم الطالب","A6"]
["اسم الطالب","عفت إبراهيم محجوب","عدد الأخوة"]
["الصف",null,"عدد المتزوجون منهم"]
["اسم ولي الأمر",null,"تسكن بالإيجار ؟"]
["البلد",null,"موظفة ؟"]
["تاريخ الميلاد",null,"مرتب الوظيفة"]
["حالة القيد ",null,"لها حيازة ؟"]
["نوع القيد",null,"العدد بالقيراط"]
["له أخوة\n بالمدرسة ؟",null,"قيمة المعاش أو النفقة"]
["المرحلة\n الدراسية",null,"مريضة ؟"]
["اسم الباحث"]
["رأي الباحث"]
[]
[]
["بيانات الحالة"]
["طالب رقم ",7,"اسم أم الطالب","A7"]
["اسم الطالب","إبراهيم منصف عطية","عدد الأخوة"]
["الصف",null,"عدد المتزوجون منهم"]
["اسم ولي الأمر",null,"تسكن بالإيجار ؟"]
["البلد",null,"موظفة ؟"]
["تاريخ الميلاد",null,"مرتب الوظيفة"]
["حالة القيد ",null,"لها حيازة ؟"]
["نوع القيد",null,"العدد بالقيراط"]
["له أخوة\n بالمدرسة ؟",null,"قيمة المعاش أو النفقة"]
["المرحلة\n الدراسية",null,"مريضة ؟"]
["اسم الباحث"]
["رأي الباحث"]
[]
[]
["بيانات الحالة"]
["طالب رقم ",8,"اسم أم الطالب","A8"]
["اسم الطالب","دعاء السعيد علي","عدد الأخوة"]
["الصف",null,"عدد المتزوجون منهم"]
["اسم ولي الأمر",null,"تسكن بالإيجار ؟"]
["البلد",null,"موظفة ؟"]
["تاريخ الميلاد",null,"مرتب الوظيفة"]
["حالة القيد ",null,"لها حيازة ؟"]
["نوع القيد",null,"العدد بالقيراط"]
["له أخوة\n بالمدرسة ؟",null,"قيمة المعاش أو النفقة"]
["المرحلة\n الدراسية",null,"مريضة ؟"]
["اسم الباحث"]
["رأي الباحث"]
[]
[]
["بيانات الحالة"]
["طالب رقم ",9,"اسم أم الطالب","A9"]
["اسم الطالب","محمود طه حسن","عدد الأخوة"]
["الصف",null,"عدد المتزوجون منهم"]
["اسم ولي الأمر",null,"تسكن بالإيجار ؟"]
["البلد",null,"موظفة ؟"]
["تاريخ الميلاد",null,"مرتب الوظيفة"]
["حالة القيد ",null,"لها حيازة ؟"]
["نوع القيد",null,"العدد بالقيراط"]
["له أخوة\n بالمدرسة ؟",null,"قيمة المعاش أو النفقة"]
["المرحلة\n الدراسية",null,"مريضة ؟"]
["اسم الباحث"]
["رأي الباحث"]
[]
[]
["بيانات الحالة"]
["طالب رقم ",10,"اسم أم الطالب","A10"]
["اسم الطالب","هاجر عطية بسيوني","عدد الأخوة"]
["الصف",null,"عدد المتزوجون منهم"]
["اسم ولي الأمر",null,"تسكن بالإيجار ؟"]
["البلد",null,"موظفة ؟"]
["تاريخ الميلاد",null,"مرتب الوظيفة"]
["حالة القيد ",null,"لها حيازة ؟"]
["نوع القيد",null,"العدد بالقيراط"]
["له أخوة\n بالمدرسة ؟",null,"قيمة المعاش أو النفقة"]
["المرحلة\n الدراسية",null,"مريضة ؟"]
["اسم الباحث"]
["رأي الباحث"]
[]
[]
["بيانات الحالة"]
["طالب رقم ",11,"اسم أم الطالب","A11"]
["اسم الطالب","محمد حامد","عدد الأخوة"]
["الصف",null,"عدد المتزوجون منهم"]
["اسم ولي الأمر",null,"تسكن بالإيجار ؟"]
["البلد",null,"موظفة ؟"]
["تاريخ الميلاد",null,"مرتب الوظيفة"]
["حالة القيد ",null,"لها حيازة ؟"]
["نوع القيد",null,"العدد بالقيراط"]
["له أخوة\n بالمدرسة ؟",null,"قيمة المعاش أو النفقة"]
["المرحلة\n الدراسية",null,"مريضة ؟"]
["اسم الباحث"]
["رأي الباحث"]
[]
[]
["بيانات الحالة"]
["طالب رقم ",12,"اسم أم الطالب","A12"]
["اسم الطالب","خلود ماهر","عدد الأخوة"]
["الصف",null,"عدد المتزوجون منهم"]
["اسم ولي الأمر",null,"تسكن بالإيجار ؟"]
["البلد",null,"موظفة ؟"]
["تاريخ الميلاد",null,"مرتب الوظيفة"]
["حالة القيد ",null,"لها حيازة ؟"]
["نوع القيد",null,"العدد بالقيراط"]
["له أخوة\n بالمدرسة ؟",null,"قيمة المعاش أو النفقة"]
["المرحلة\n الدراسية",null,"مريضة ؟"]
["اسم الباحث"]
["رأي الباحث"]
[]
[]
["بيانات الحالة"]
["طالب رقم ",13,"اسم أم الطالب","A13"]
["اسم الطالب","احمد محمود","عدد الأخوة"]
["الصف",null,"عدد المتزوجون منهم"]
["اسم ولي الأمر",null,"تسكن بالإيجار ؟"]
["البلد",null,"موظفة ؟"]
["تاريخ الميلاد",null,"مرتب الوظيفة"]
["حالة القيد ",null,"لها حيازة ؟"]
["نوع القيد",null,"العدد بالقيراط"]
["له أخوة\n بالمدرسة ؟",null,"قيمة المعاش أو النفقة"]
["المرحلة\n الدراسية",null,"مريضة ؟"]
["اسم الباحث"]
["رأي الباحث"]
[]
[]
["بيانات الحالة"]
["طالب رقم ",14,"اسم أم الطالب","A14"]
["اسم الطالب","هند علي خميس","عدد الأخوة"]
["الصف",null,"عدد المتزوجون منهم"]
["اسم ولي الأمر",null,"تسكن بالإيجار ؟"]
["البلد",null,"موظفة ؟"]
["تاريخ الميلاد",null,"مرتب الوظيفة"]
["حالة القيد ",null,"لها حيازة ؟"]
["نوع القيد",null,"العدد بالقيراط"]
["له أخوة\n بالمدرسة ؟",null,"قيمة المعاش أو النفقة"]
["المرحلة\n الدراسية",null,"مريضة ؟"]
["اسم الباحث"]
["رأي الباحث"]
[]
[]
["بيانات الحالة"]
["طالب رقم ",15,"اسم أم الطالب","A15"]
["اسم الطالب","سليمان عبد الرحيم","عدد الأخوة"]
["الصف",null,"عدد المتزوجون منهم"]
["اسم ولي الأمر",null,"تسكن بالإيجار ؟"]
["البلد",null,"موظفة ؟"]
["تاريخ الميلاد",null,"مرتب الوظيفة"]
["حالة القيد ",null,"لها حيازة ؟"]
["نوع القيد",null,"العدد بالقيراط"]
["له أخوة\n بالمدرسة ؟",null,"قيمة المعاش أو النفقة"]
["المرحلة\n الدراسية",null,"مريضة ؟"]
["اسم الباحث"]
["رأي الباحث"]
[]
[]
["بيانات الحالة"]
["طالب رقم ",16,"اسم أم الطالب","A16"]
["اسم الطالب","عفت إبراهيم محجوب","عدد الأخوة"]
["الصف",null,"عدد المتزوجون منهم"]
["اسم ولي الأمر",null,"تسكن بالإيجار ؟"]
["البلد",null,"موظفة ؟"]
["تاريخ الميلاد",null,"مرتب الوظيفة"]
["حالة القيد ",null,"لها حيازة ؟"]
["نوع القيد",null,"العدد بالقيراط"]
["له أخوة\n بالمدرسة ؟",null,"قيمة المعاش أو النفقة"]
["المرحلة\n الدراسية",null,"مريضة ؟"]
["اسم الباحث"]
["رأي الباحث"]
[]
[]
["بيانات الحالة"]
["طالب رقم ",17,"اسم أم الطالب","A17"]
["اسم الطالب","إبراهيم منصف عطية","عدد الأخوة"]
["الصف",null,"عدد المتزوجون منهم"]
["اسم ولي الأمر",null,"تسكن بالإيجار ؟"]
["البلد",null,"موظفة ؟"]
["تاريخ الميلاد",null,"مرتب الوظيفة"]
["حالة القيد ",null,"لها حيازة ؟"]
["نوع القيد",null,"العدد بالقيراط"]
["له أخوة\n بالمدرسة ؟",null,"قيمة المعاش أو النفقة"]
["المرحلة\n الدراسية",null,"مريضة ؟"]
["اسم الباحث"]
["رأي الباحث"]
[]
[]
["بيانات الحالة"]
["طالب رقم ",18,"اسم أم الطالب","A18"]
["اسم الطالب","دعاء السعيد علي","عدد الأخوة"]
["الصف",null,"عدد المتزوجون منهم"]
["اسم ولي الأمر",null,"تسكن بالإيجار ؟"]
["البلد",null,"موظفة ؟"]
["تاريخ الميلاد",null,"مرتب الوظيفة"]
["حالة القيد ",null,"لها حيازة ؟"]
["نوع القيد",null,"العدد بالقيراط"]
["له أخوة\n بالمدرسة ؟",null,"قيمة المعاش أو النفقة"]
["المرحلة\n الدراسية",null,"مريضة ؟"]
["اسم الباحث"]
["رأي الباحث"]
[]
[]
["بيانات الحالة"]
["طالب رقم ",19,"اسم أم الطالب","A19"]
["اسم الطالب","محمود طه حسن","عدد الأخوة"]
["الصف",null,"عدد المتزوجون منهم"]
["اسم ولي الأمر",null,"تسكن بالإيجار ؟"]
["البلد",null,"موظفة ؟"]
["تاريخ الميلاد",null,"مرتب الوظيفة"]
["حالة القيد ",null,"لها حيازة ؟"]
["نوع القيد",null,"العدد بالقيراط"]
["له أخوة\n بالمدرسة ؟",null,"قيمة المعاش أو النفقة"]
["المرحلة\n الدراسية",null,"مريضة ؟"]
["اسم الباحث"]
["رأي الباحث"]
[]
[]
["بيانات الحالة"]
["طالب رقم ",20,"اسم أم الطالب","A20"]
["اسم الطالب","هاجر عطية بسيوني","عدد الأخوة"]
["الصف",null,"عدد المتزوجون منهم"]
["اسم ولي الأمر",null,"تسكن بالإيجار ؟"]
["البلد",null,"موظفة ؟"]
["تاريخ الميلاد",null,"مرتب الوظيفة"]
["حالة القيد ",null,"لها حيازة ؟"]
["نوع القيد",null,"العدد بالقيراط"]
["له أخوة\n بالمدرسة ؟",null,"قيمة المعاش أو النفقة"]
["المرحلة\n الدراسية",null,"مريضة ؟"]
["اسم الباحث"]
["رأي الباحث"]
[]
[]
["بيانات الحالة"]
["طالب رقم ",21,"اسم أم الطالب","A21"]
["اسم الطالب","محمد حامد","عدد الأخوة"]
["الصف",null,"عدد المتزوجون منهم"]
["اسم ولي الأمر",null,"تسكن بالإيجار ؟"]
["البلد",null,"موظفة ؟"]
["تاريخ الميلاد",null,"مرتب الوظيفة"]
["حالة القيد ",null,"لها حيازة ؟"]
["نوع القيد",null,"العدد بالقيراط"]
["له أخوة\n بالمدرسة ؟",null,"قيمة المعاش أو النفقة"]
["المرحلة\n الدراسية",null,"مريضة ؟"]
["اسم الباحث"]
["رأي الباحث"]
[]
[]
["بيانات الحالة"]
["طالب رقم ",22,"اسم أم الطالب","A22"]
["اسم الطالب","خلود ماهر","عدد الأخوة"]
["الصف",null,"عدد المتزوجون منهم"]
["اسم ولي الأمر",null,"تسكن بالإيجار ؟"]
["البلد",null,"موظفة ؟"]
["تاريخ الميلاد",null,"مرتب الوظيفة"]
["حالة القيد ",null,"لها حيازة ؟"]
["نوع القيد",null,"العدد بالقيراط"]
["له أخوة\n بالمدرسة ؟",null,"قيمة المعاش أو النفقة"]
["المرحلة\n الدراسية",null,"مريضة ؟"]
["اسم الباحث"]
["رأي الباحث"]
[]
[]
["بيانات الحالة"]
["طالب رقم ",23,"اسم أم الطالب","A23"]
["اسم الطالب","احمد محمود","عدد الأخوة"]
["الصف",null,"عدد المتزوجون منهم"]
["اسم ولي الأمر",null,"تسكن بالإيجار ؟"]
["البلد",null,"موظفة ؟"]
["تاريخ الميلاد",null,"مرتب الوظيفة"]
["حالة القيد ",null,"لها حيازة ؟"]
["نوع القيد",null,"العدد بالقيراط"]
["له أخوة\n بالمدرسة ؟",null,"قيمة المعاش أو النفقة"]
["المرحلة\n الدراسية",null,"مريضة ؟"]
["اسم الباحث"]
["رأي الباحث"]
[]
[]
["بيانات الحالة"]
["طالب رقم ",24,"اسم أم الطالب","A24"]
["اسم الطالب","هند علي خميس","عدد الأخوة"]
["الصف",null,"عدد المتزوجون منهم"]
["اسم ولي الأمر",null,"تسكن بالإيجار ؟"]
["البلد",null,"موظفة ؟"]
["تاريخ الميلاد",null,"مرتب الوظيفة"]
["حالة القيد ",null,"لها حيازة ؟"]
["نوع القيد",null,"العدد بالقيراط"]
["له أخوة\n بالمدرسة ؟",null,"قيمة المعاش أو النفقة"]
["المرحلة\n الدراسية",null,"مريضة ؟"]
["اسم الباحث"]
["رأي الباحث"]
[]
[]
["بيانات الحالة"]
["طالب رقم ",25,"اسم أم الطالب","A25"]
["اسم الطالب","سليمان عبد الرحيم","عدد الأخوة"]
["الصف",null,"عدد المتزوجون منهم"]
["اسم ولي الأمر",null,"تسكن بالإيجار ؟"]
["البلد",null,"موظفة ؟"]
["تاريخ الميلاد",null,"مرتب الوظيفة"]
["حالة القيد ",null,"لها حيازة ؟"]
["نوع القيد",null,"العدد بالقيراط"]
["له أخوة\n بالمدرسة ؟",null,"قيمة المعاش أو النفقة"]
["المرحلة\n الدراسية",null,"مريضة ؟"]
["اسم الباحث"]
["رأي الباحث"]
[]
[]
["بيانات الحالة"]
["طالب رقم ",26,"اسم أم الطالب","A26"]
["اسم الطالب","عفت إبراهيم محجوب","عدد الأخوة"]
["الصف",null,"عدد المتزوجون منهم"]
["اسم ولي الأمر",null,"تسكن بالإيجار ؟"]
["البلد",null,"موظفة ؟"]
["تاريخ الميلاد",null,"مرتب الوظيفة"]
["حالة القيد ",null,"لها حيازة ؟"]
["نوع القيد",null,"العدد بالقيراط"]
["له أخوة\n بالمدرسة ؟",null,"قيمة المعاش أو النفقة"]
["المرحلة\n الدراسية",null,"مريضة ؟"]
["اسم الباحث"]
["رأي الباحث"]
[]
[]
["بيانات الحالة"]
["طالب رقم ",27,"اسم أم الطالب","A27"]
["اسم الطالب","إبراهيم منصف عطية","عدد الأخوة"]
["الصف",null,"عدد المتزوجون منهم"]
["اسم ولي الأمر",null,"تسكن بالإيجار ؟"]
["البلد",null,"موظفة ؟"]
["تاريخ الميلاد",null,"مرتب الوظيفة"]
["حالة القيد ",null,"لها حيازة ؟"]
["نوع القيد",null,"العدد بالقيراط"]
["له أخوة\n بالمدرسة ؟",null,"قيمة المعاش أو النفقة"]
["المرحلة\n الدراسية",null,"مريضة ؟"]
["اسم الباحث"]
["رأي الباحث"]
[]
[]
["بيانات الحالة"]
["طالب رقم ",28,"اسم أم الطالب","A28"]
["اسم الطالب","دعاء السعيد علي","عدد الأخوة"]
["الصف",null,"عدد المتزوجون منهم"]
["اسم ولي الأمر",null,"تسكن بالإيجار ؟"]
["البلد",null,"موظفة ؟"]
["تاريخ الميلاد",null,"مرتب الوظيفة"]
["حالة القيد ",null,"لها حيازة ؟"]
["نوع القيد",null,"العدد بالقيراط"]
["له أخوة\n بالمدرسة ؟",null,"قيمة المعاش أو النفقة"]
["المرحلة\n الدراسية",null,"مريضة ؟"]
["اسم الباحث"]
["رأي الباحث"]
[]
[]
["بيانات الحالة"]
["طالب رقم ",29,"اسم أم الطالب","A29"]
["اسم الطالب","محمود طه حسن","عدد الأخوة"]
["الصف",null,"عدد المتزوجون منهم"]
["اسم ولي الأمر",null,"تسكن بالإيجار ؟"]
["البلد",null,"موظفة ؟"]
["تاريخ الميلاد",null,"مرتب الوظيفة"]
["حالة القيد ",null,"لها حيازة ؟"]
["نوع القيد",null,"العدد بالقيراط"]
["له أخوة\n بالمدرسة ؟",null,"قيمة المعاش أو النفقة"]
["المرحلة\n الدراسية",null,"مريضة ؟"]
["اسم الباحث"]
["رأي الباحث"]
[]
[]
["بيانات الحالة"]
["طالب رقم ",30,"اسم أم الطالب","A30"]
["اسم الطالب","هاجر عطية بسيوني","عدد الأخوة"]
["الصف",null,"عدد المتزوجون منهم"]
["اسم ولي الأمر",null,"تسكن بالإيجار ؟"]
["البلد",null,"موظفة ؟"]
["تاريخ الميلاد",null,"مرتب الوظيفة"]
["حالة القيد ",null,"لها حيازة ؟"]
["نوع القيد",null,"العدد بالقيراط"]
["له أخوة\n بالمدرسة ؟",null,"قيمة المعاش أو النفقة"]
["المرحلة\n الدراسية",null,"مريضة ؟"]
["اسم الباحث"]
["رأي الباحث"]
[]
[]
["بيانات الحالة"]
["طالب رقم ",31,"اسم أم الطالب","A31"]
["اسم الطالب","محمد حامد","عدد الأخوة"]
["الصف",null,"عدد المتزوجون منهم"]
["اسم ولي الأمر",null,"تسكن بالإيجار ؟"]
["البلد",null,"موظفة ؟"]
["تاريخ الميلاد",null,"مرتب الوظيفة"]
["حالة القيد ",null,"لها حيازة ؟"]
["نوع القيد",null,"العدد بالقيراط"]
["له أخوة\n بالمدرسة ؟",null,"قيمة المعاش أو النفقة"]
["المرحلة\n الدراسية",null,"مريضة ؟"]
["اسم الباحث"]
["رأي الباحث"]
[]
[]
["بيانات الحالة"]
["طالب رقم ",32,"اسم أم الطالب","A32"]
["اسم الطالب","خلود ماهر","عدد الأخوة"]
["الصف",null,"عدد المتزوجون منهم"]
["اسم ولي الأمر",null,"تسكن بالإيجار ؟"]
["البلد",null,"موظفة ؟"]
["تاريخ الميلاد",null,"مرتب الوظيفة"]
["حالة القيد ",null,"لها حيازة ؟"]
["نوع القيد",null,"العدد بالقيراط"]
["له أخوة\n بالمدرسة ؟",null,"قيمة المعاش أو النفقة"]
["المرحلة\n الدراسية",null,"مريضة ؟"]
["اسم الباحث"]
["رأي الباحث"]
[]
[]
["بيانات الحالة"]
["طالب رقم ",33,"اسم أم الطالب","A33"]
["اسم الطالب","احمد محمود","عدد الأخوة"]
["الصف",null,"عدد المتزوجون منهم"]
["اسم ولي الأمر",null,"تسكن بالإيجار ؟"]
["البلد",null,"موظفة ؟"]
["تاريخ الميلاد",null,"مرتب الوظيفة"]
["حالة القيد ",null,"لها حيازة ؟"]
["نوع القيد",null,"العدد بالقيراط"]
["له أخوة\n بالمدرسة ؟",null,"قيمة المعاش أو النفقة"]
["المرحلة\n الدراسية",null,"مريضة ؟"]
["اسم الباحث"]
["رأي الباحث"]
[]
[]
["بيانات الحالة"]
["طالب رقم ",34,"اسم أم الطالب","A34"]
["اسم الطالب","هند علي خميس","عدد الأخوة"]
["الصف",null,"عدد المتزوجون منهم"]
["اسم ولي الأمر",null,"تسكن بالإيجار ؟"]
["البلد",null,"موظفة ؟"]
["تاريخ الميلاد",null,"مرتب الوظيفة"]
["حالة القيد ",null,"لها حيازة ؟"]
["نوع القيد",null,"العدد بالقيراط"]
["له أخوة\n بالمدرسة ؟",null,"قيمة المعاش أو النفقة"]
["المرحلة\n الدراسية",null,"مريضة ؟"]
["اسم الباحث"]
["رأي الباحث"]
[]
[]
["بيانات الحالة"]
["طالب رقم ",35,"اسم أم الطالب","A35"]
["اسم الطالب","سليمان عبد الرحيم","عدد الأخوة"]
["الصف",null,"عدد المتزوجون منهم"]
["اسم ولي الأمر",null,"تسكن بالإيجار ؟"]
["البلد",null,"موظفة ؟"]
["تاريخ الميلاد",null,"مرتب الوظيفة"]
["حالة القيد ",null,"لها حيازة ؟"]
["نوع القيد",null,"العدد بالقيراط"]
["له أخوة\n بالمدرسة ؟",null,"قيمة المعاش أو النفقة"]
["المرحلة\n الدراسية",null,"مريضة ؟"]
["اسم الباحث"]
["رأي الباحث"]
[]
[]
["بيانات الحالة"]
["طالب رقم ",36,"اسم أم الطالب","A36"]
["اسم الطالب","عفت إبراهيم محجوب","عدد الأخوة"]
["الصف",null,"عدد المتزوجون منهم"]
["اسم ولي الأمر",null,"تسكن بالإيجار ؟"]
["البلد",null,"موظفة ؟"]
["تاريخ الميلاد",null,"مرتب الوظيفة"]
["حالة القيد ",null,"لها حيازة ؟"]
["نوع القيد",null,"العدد بالقيراط"]
["له أخوة\n بالمدرسة ؟",null,"قيمة المعاش أو النفقة"]
["المرحلة\n الدراسية",null,"مريضة ؟"]
["اسم الباحث"]
["رأي الباحث"]
[]
[]
["بيانات الحالة"]
["طالب رقم ",37,"اسم أم الطالب","A37"]
["اسم الطالب","إبراهيم منصف عطية","عدد الأخوة"]
["الصف",null,"عدد المتزوجون منهم"]
["اسم ولي الأمر",null,"تسكن بالإيجار ؟"]
["البلد",null,"موظفة ؟"]
["تاريخ الميلاد",null,"مرتب الوظيفة"]
["حالة القيد ",null,"لها حيازة ؟"]
["نوع القيد",null,"العدد بالقيراط"]
["له أخوة\n بالمدرسة ؟",null,"قيمة المعاش أو النفقة"]
["المرحلة\n الدراسية",null,"مريضة ؟"]
["اسم الباحث"]
["رأي الباحث"]
[]
[]
["بيانات الحالة"]
["طالب رقم ",38,"اسم أم الطالب","A38"]
["اسم الطالب","دعاء السعيد علي","عدد الأخوة"]
["الصف",null,"عدد المتزوجون منهم"]
["اسم ولي الأمر",null,"تسكن بالإيجار ؟"]
["البلد",null,"موظفة ؟"]
["تاريخ الميلاد",null,"مرتب الوظيفة"]
["حالة القيد ",null,"لها حيازة ؟"]
["نوع القيد",null,"العدد بالقيراط"]
["له أخوة\n بالمدرسة ؟",null,"قيمة المعاش أو النفقة"]
["المرحلة\n الدراسية",null,"مريضة ؟"]
["اسم الباحث"]
["رأي الباحث"]
[]
[]
["بيانات الحالة"]
["طالب رقم ",39,"اسم أم الطالب","A39"]
["اسم الطالب","محمود طه حسن","عدد الأخوة"]
["الصف",null,"عدد المتزوجون منهم"]
["اسم ولي الأمر",null,"تسكن بالإيجار ؟"]
["البلد",null,"موظفة ؟"]
["تاريخ الميلاد",null,"مرتب الوظيفة"]
["حالة القيد ",null,"لها حيازة ؟"]
["نوع القيد",null,"العدد بالقيراط"]
["له أخوة\n بالمدرسة ؟",null,"قيمة المعاش أو النفقة"]
["المرحلة\n الدراسية",null,"مريضة ؟"]
["اسم الباحث"]
["رأي الباحث"]
[]
[]
["بيانات الحالة"]
["طالب رقم ",40,"اسم أم الطالب","A40"]
["اسم الطالب","هاجر عطية بسيوني","عدد الأخوة"]
["الصف",null,"عدد المتزوجون منهم"]
["اسم ولي الأمر",null,"تسكن بالإيجار ؟"]
["البلد",null,"موظفة ؟"]
["تاريخ الميلاد",null,"مرتب الوظيفة"]
["حالة القيد ",null,"لها حيازة ؟"]
["نوع القيد",null,"العدد بالقيراط"]
["له أخوة\n بالمدرسة ؟",null,"قيمة المعاش أو النفقة"]
["المرحلة\n الدراسية",null,"مريضة ؟"]
["اسم الباحث"]
["رأي الباحث"]
[]
[]
["بيانات الحالة"]
["طالب رقم ",41,"اسم أم الطالب","A41"]
["اسم الطالب","محمد حامد","عدد الأخوة"]
["الصف",null,"عدد المتزوجون منهم"]
["اسم ولي الأمر",null,"تسكن بالإيجار ؟"]
["البلد",null,"موظفة ؟"]
["تاريخ الميلاد",null,"مرتب الوظيفة"]
["حالة القيد ",null,"لها حيازة ؟"]
["نوع القيد",null,"العدد بالقيراط"]
["له أخوة\n بالمدرسة ؟",null,"قيمة المعاش أو النفقة"]
["المرحلة\n الدراسية",null,"مريضة ؟"]
["اسم الباحث"]
["رأي الباحث"]
[]
[]
["بيانات الحالة"]
["طالب رقم ",42,"اسم أم الطالب","A42"]
["اسم الطالب","خلود ماهر","عدد الأخوة"]
["الصف",null,"عدد المتزوجون منهم"]
["اسم ولي الأمر",null,"تسكن بالإيجار ؟"]
["البلد",null,"موظفة ؟"]
["تاريخ الميلاد",null,"مرتب الوظيفة"]
["حالة القيد ",null,"لها حيازة ؟"]
["نوع القيد",null,"العدد بالقيراط"]
["له أخوة\n بالمدرسة ؟",null,"قيمة المعاش أو النفقة"]
["المرحلة\n الدراسية",null,"مريضة ؟"]
["اسم الباحث"]
["رأي الباحث"]
[]
[]
["بيانات الحالة"]
["طالب رقم ",43,"اسم أم الطالب","A43"]
["اسم الطالب","احمد محمود","عدد الأخوة"]
["الصف",null,"عدد المتزوجون منهم"]
["اسم ولي الأمر",null,"تسكن بالإيجار ؟"]
["البلد",null,"موظفة ؟"]
["تاريخ الميلاد",null,"مرتب الوظيفة"]
["حالة القيد ",null,"لها حيازة ؟"]
["نوع القيد",null,"العدد بالقيراط"]
["له أخوة\n بالمدرسة ؟",null,"قيمة المعاش أو النفقة"]
["المرحلة\n الدراسية",null,"مريضة ؟"]
["اسم الباحث"]
["رأي الباحث"]
[]
[]
["بيانات الحالة"]
["طالب رقم ",44,"اسم أم الطالب","A44"]
["اسم الطالب","هند علي خميس","عدد الأخوة"]
["الصف",null,"عدد المتزوجون منهم"]
["اسم ولي الأمر",null,"تسكن بالإيجار ؟"]
["البلد",null,"موظفة ؟"]
["تاريخ الميلاد",null,"مرتب الوظيفة"]
["حالة القيد ",null,"لها حيازة ؟"]
["نوع القيد",null,"العدد بالقيراط"]
["له أخوة\n بالمدرسة ؟",null,"قيمة المعاش أو النفقة"]
["المرحلة\n الدراسية",null,"مريضة ؟"]
["اسم الباحث"]
["رأي الباحث"]
[]
[]
["بيانات الحالة"]
["طالب رقم ",45,"اسم أم الطالب","A45"]
["اسم الطالب","سليمان عبد الرحيم","عدد الأخوة"]
["الصف",null,"عدد المتزوجون منهم"]
["اسم ولي الأمر",null,"تسكن بالإيجار ؟"]
["البلد",null,"موظفة ؟"]
["تاريخ الميلاد",null,"مرتب الوظيفة"]
["حالة القيد ",null,"لها حيازة ؟"]
["نوع القيد",null,"العدد بالقيراط"]
["له أخوة\n بالمدرسة ؟",null,"قيمة المعاش أو النفقة"]
["المرحلة\n الدراسية",null,"مريضة ؟"]
["اسم الباحث"]
["رأي الباحث"]
[]
[]
["بيانات الحالة"]
["طالب رقم ",46,"اسم أم الطالب","A46"]
["اسم الطالب","عفت إبراهيم محجوب","عدد الأخوة"]
["الصف",null,"عدد المتزوجون منهم"]
["اسم ولي الأمر",null,"تسكن بالإيجار ؟"]
["البلد",null,"موظفة ؟"]
["تاريخ الميلاد",null,"مرتب الوظيفة"]
["حالة القيد ",null,"لها حيازة ؟"]
["نوع القيد",null,"العدد بالقيراط"]
["له أخوة\n بالمدرسة ؟",null,"قيمة المعاش أو النفقة"]
["المرحلة\n الدراسية",null,"مريضة ؟"]
["اسم الباحث"]
["رأي الباحث"]
[]
[]
["بيانات الحالة"]
["طالب رقم ",47,"اسم أم الطالب","A47"]
["اسم الطالب","إبراهيم منصف عطية","عدد الأخوة"]
["الصف",null,"عدد المتزوجون منهم"]
["اسم ولي الأمر",null,"تسكن بالإيجار ؟"]
["البلد",null,"موظفة ؟"]
["تاريخ الميلاد",null,"مرتب الوظيفة"]
["حالة القيد ",null,"لها حيازة ؟"]
["نوع القيد",null,"العدد بالقيراط"]
["له أخوة\n بالمدرسة ؟",null,"قيمة المعاش أو النفقة"]
["المرحلة\n الدراسية",null,"مريضة ؟"]
["اسم الباحث"]
["رأي الباحث"]
[]
[]
["بيانات الحالة"]
["طالب رقم ",48,"اسم أم الطالب","A48"]
["اسم الطالب","دعاء السعيد علي","عدد الأخوة"]
["الصف",null,"عدد المتزوجون منهم"]
["اسم ولي الأمر",null,"تسكن بالإيجار ؟"]
["البلد",null,"موظفة ؟"]
["تاريخ الميلاد",null,"مرتب الوظيفة"]
["حالة القيد ",null,"لها حيازة ؟"]
["نوع القيد",null,"العدد بالقيراط"]
["له أخوة\n بالمدرسة ؟",null,"قيمة المعاش أو النفقة"]
["المرحلة\n الدراسية",null,"مريضة ؟"]
["اسم الباحث"]
["رأي الباحث"]
[]
[]
["بيانات الحالة"]
["طالب رقم ",49,"اسم أم الطالب","A49"]
["اسم الطالب","محمود طه حسن","عدد الأخوة"]
["الصف",null,"عدد المتزوجون منهم"]
["اسم ولي الأمر",null,"تسكن بالإيجار ؟"]
["البلد",null,"موظفة ؟"]
["تاريخ الميلاد",null,"مرتب الوظيفة"]
["حالة القيد ",null,"لها حيازة ؟"]
["نوع القيد",null,"العدد بالقيراط"]
["له أخوة\n بالمدرسة ؟",null,"قيمة المعاش أو النفقة"]
["المرحلة\n الدراسية",null,"مريضة ؟"]
["اسم الباحث"]
["رأي الباحث"]
[]
[]
["بيانات الحالة"]
["طالب رقم ",50,"اسم أم الطالب","A50"]
["اسم الطالب","هاجر عطية بسيوني","عدد الأخوة"]
["الصف",null,"عدد المتزوجون منهم"]
["اسم ولي الأمر",null,"تسكن بالإيجار ؟"]
["البلد",null,"موظفة ؟"]
["تاريخ الميلاد",null,"مرتب الوظيفة"]
["حالة القيد ",null,"لها حيازة ؟"]
["نوع القيد",null,"العدد بالقيراط"]
["له أخوة\n بالمدرسة ؟",null,"قيمة المعاش أو النفقة"]
["المرحلة\n الدراسية",null,"مريضة ؟"]
["اسم الباحث"]
["رأي الباحث"]
[]
[]
["بيانات الحالة"]
["طالب رقم ",51,"اسم أم الطالب","A51"]
["اسم الطالب","محمد حامد","عدد الأخوة"]
["الصف",null,"عدد المتزوجون منهم"]
["اسم ولي الأمر",null,"تسكن بالإيجار ؟"]
["البلد",null,"موظفة ؟"]
["تاريخ الميلاد",null,"مرتب الوظيفة"]
["حالة القيد ",null,"لها حيازة ؟"]
["نوع القيد",null,"العدد بالقيراط"]
["له أخوة\n بالمدرسة ؟",null,"قيمة المعاش أو النفقة"]
["المرحلة\n الدراسية",null,"مريضة ؟"]
["اسم الباحث"]
["رأي الباحث"]
[]
[]
["بيانات الحالة"]
["طالب رقم ",52,"اسم أم الطالب","A52"]
["اسم الطالب","خلود ماهر","عدد الأخوة"]
["الصف",null,"عدد المتزوجون منهم"]
["اسم ولي الأمر",null,"تسكن بالإيجار ؟"]
["البلد",null,"موظفة ؟"]
["تاريخ الميلاد",null,"مرتب الوظيفة"]
["حالة القيد ",null,"لها حيازة ؟"]
["نوع القيد",null,"العدد بالقيراط"]
["له أخوة\n بالمدرسة ؟",null,"قيمة المعاش أو النفقة"]
["المرحلة\n الدراسية",null,"مريضة ؟"]
["اسم الباحث"]
["رأي الباحث"]
[]
[]
["بيانات الحالة"]
["طالب رقم ",53,"اسم أم الطالب","A53"]
["اسم الطالب","احمد محمود","عدد الأخوة"]
["الصف",null,"عدد المتزوجون منهم"]
["اسم ولي الأمر",null,"تسكن بالإيجار ؟"]
["البلد",null,"موظفة ؟"]
["تاريخ الميلاد",null,"مرتب الوظيفة"]
["حالة القيد ",null,"لها حيازة ؟"]
["نوع القيد",null,"العدد بالقيراط"]
["له أخوة\n بالمدرسة ؟",null,"قيمة المعاش أو النفقة"]
["المرحلة\n الدراسية",null,"مريضة ؟"]
["اسم الباحث"]
["رأي الباحث"]
[]
[]
["بيانات الحالة"]
["طالب رقم ",54,"اسم أم الطالب","A54"]
["اسم الطالب","هند علي خميس","عدد الأخوة"]
["الصف",null,"عدد المتزوجون منهم"]
["اسم ولي الأمر",null,"تسكن بالإيجار ؟"]
["البلد",null,"موظفة ؟"]
["تاريخ الميلاد",null,"مرتب الوظيفة"]
["حالة القيد ",null,"لها حيازة ؟"]
["نوع القيد",null,"العدد بالقيراط"]
["له أخوة\n بالمدرسة ؟",null,"قيمة المعاش أو النفقة"]
["المرحلة\n الدراسية",null,"مريضة ؟"]
["اسم الباحث"]
["رأي الباحث"]
[]
[]
["بيانات الحالة"]
["طالب رقم ",55,"اسم أم الطالب","A55"]
["اسم الطالب","سليمان عبد الرحيم","عدد الأخوة"]
["الصف",null,"عدد المتزوجون منهم"]
["اسم ولي الأمر",null,"تسكن بالإيجار ؟"]
["البلد",null,"موظفة ؟"]
["تاريخ الميلاد",null,"مرتب الوظيفة"]
["حالة القيد ",null,"لها حيازة ؟"]
["نوع القيد",null,"العدد بالقيراط"]
["له أخوة\n بالمدرسة ؟",null,"قيمة المعاش أو النفقة"]
["المرحلة\n الدراسية",null,"مريضة ؟"]
["اسم الباحث"]
["رأي الباحث"]
[]
[]
["بيانات الحالة"]
["طالب رقم ",56,"اسم أم الطالب","A56"]
["اسم الطالب","عفت إبراهيم محجوب","عدد الأخوة"]
["الصف",null,"عدد المتزوجون منهم"]
["اسم ولي الأمر",null,"تسكن بالإيجار ؟"]
["البلد",null,"موظفة ؟"]
["تاريخ الميلاد",null,"مرتب الوظيفة"]
["حالة القيد ",null,"لها حيازة ؟"]
["نوع القيد",null,"العدد بالقيراط"]
["له أخوة\n بالمدرسة ؟",null,"قيمة المعاش أو النفقة"]
["المرحلة\n الدراسية",null,"مريضة ؟"]
["اسم الباحث"]
["رأي الباحث"]
[]
[]
["بيانات الحالة"]
["طالب رقم ",57,"اسم أم الطالب","A57"]
["اسم الطالب","إبراهيم منصف عطية","عدد الأخوة"]
["الصف",null,"عدد المتزوجون منهم"]
["اسم ولي الأمر",null,"تسكن بالإيجار ؟"]
["البلد",null,"موظفة ؟"]
["تاريخ الميلاد",null,"مرتب الوظيفة"]
["حالة القيد ",null,"لها حيازة ؟"]
["نوع القيد",null,"العدد بالقيراط"]
["له أخوة\n بالمدرسة ؟",null,"قيمة المعاش أو النفقة"]
["المرحلة\n الدراسية",null,"مريضة ؟"]
["اسم الباحث"]
["رأي الباحث"]
[]
[]
["بيانات الحالة"]
["طالب رقم ",58,"اسم أم الطالب","A58"]
["اسم الطالب","دعاء السعيد علي","عدد الأخوة"]
["الصف",null,"عدد المتزوجون منهم"]
["اسم ولي الأمر",null,"تسكن بالإيجار ؟"]
["البلد",null,"موظفة ؟"]
["تاريخ الميلاد",null,"مرتب الوظيفة"]
["حالة القيد ",null,"لها حيازة ؟"]
["نوع القيد",null,"العدد بالقيراط"]
["له أخوة\n بالمدرسة ؟",null,"قيمة المعاش أو النفقة"]
["المرحلة\n الدراسية",null,"مريضة ؟"]
["اسم الباحث"]
["رأي الباحث"]
[]
[]
["بيانات الحالة"]
["طالب رقم ",59,"اسم أم الطالب","A59"]
["اسم الطالب","محمود طه حسن","عدد الأخوة"]
["الصف",null,"عدد المتزوجون منهم"]
["اسم ولي الأمر",null,"تسكن بالإيجار ؟"]
["البلد",null,"موظفة ؟"]
["تاريخ الميلاد",null,"مرتب الوظيفة"]
["حالة القيد ",null,"لها حيازة ؟"]
["نوع القيد",null,"العدد بالقيراط"]
["له أخوة\n بالمدرسة ؟",null,"قيمة المعاش أو النفقة"]
["المرحلة\n الدراسية",null,"مريضة ؟"]
["اسم الباحث"]
["رأي الباحث"]
[]
[]
["بيانات الحالة"]
["طالب رقم ",60,"اسم أم الطالب","A60"]
["اسم الطالب","هاجر عطية بسيوني","عدد الأخوة"]
["الصف",null,"عدد المتزوجون منهم"]
["اسم ولي الأمر",null,"تسكن بالإيجار ؟"]
["البلد",null,"موظفة ؟"]
["تاريخ الميلاد",null,"مرتب الوظيفة"]
["حالة القيد ",null,"لها حيازة ؟"]
["نوع القيد",null,"العدد بالقيراط"]
["له أخوة\n بالمدرسة ؟",null,"قيمة المعاش أو النفقة"]
["المرحلة\n الدراسية",null,"مريضة ؟"]
["اسم الباحث"]
["رأي الباحث"]
[]
[]
["بيانات الحالة"]
["طالب رقم ",61,"اسم أم الطالب","A61"]
["اسم الطالب","محمد حامد","عدد الأخوة"]
["الصف",null,"عدد المتزوجون منهم"]
["اسم ولي الأمر",null,"تسكن بالإيجار ؟"]
["البلد",null,"موظفة ؟"]
["تاريخ الميلاد",null,"مرتب الوظيفة"]
["حالة القيد ",null,"لها حيازة ؟"]
["نوع القيد",null,"العدد بالقيراط"]
["له أخوة\n بالمدرسة ؟",null,"قيمة المعاش أو النفقة"]
["المرحلة\n الدراسية",null,"مريضة ؟"]
["اسم الباحث"]
["رأي الباحث"]
[]
[]
["بيانات الحالة"]
["طالب رقم ",62,"اسم أم الطالب","A62"]
["اسم الطالب","خلود ماهر","عدد الأخوة"]
["الصف",null,"عدد المتزوجون منهم"]
["اسم ولي الأمر",null,"تسكن بالإيجار ؟"]
["البلد",null,"موظفة ؟"]
["تاريخ الميلاد",null,"مرتب الوظيفة"]
["حالة القيد ",null,"لها حيازة ؟"]
["نوع القيد",null,"العدد بالقيراط"]
["له أخوة\n بالمدرسة ؟",null,"قيمة المعاش أو النفقة"]
["المرحلة\n الدراسية",null,"مريضة ؟"]
["اسم الباحث"]
["رأي الباحث"]
[]
[]
["بيانات الحالة"]
["طالب رقم ",63,"اسم أم الطالب","A63"]
["اسم الطالب","احمد محمود","عدد الأخوة"]
["الصف",null,"عدد المتزوجون منهم"]
["اسم ولي الأمر",null,"تسكن بالإيجار ؟"]
["البلد",null,"موظفة ؟"]
["تاريخ الميلاد",null,"مرتب الوظيفة"]
["حالة القيد ",null,"لها حيازة ؟"]
["نوع القيد",null,"العدد بالقيراط"]
["له أخوة\n بالمدرسة ؟",null,"قيمة المعاش أو النفقة"]
["المرحلة\n الدراسية",null,"مريضة ؟"]
["اسم الباحث"]
["رأي الباحث"]
[]
[]
["بيانات الحالة"]
["طالب رقم ",64,"اسم أم الطالب","A64"]
["اسم الطالب","هند علي خميس","عدد الأخوة"]
["الصف",null,"عدد المتزوجون منهم"]
["اسم ولي الأمر",null,"تسكن بالإيجار ؟"]
["البلد",null,"موظفة ؟"]
["تاريخ الميلاد",null,"مرتب الوظيفة"]
["حالة القيد ",null,"لها حيازة ؟"]
["نوع القيد",null,"العدد بالقيراط"]
["له أخوة\n بالمدرسة ؟",null,"قيمة المعاش أو النفقة"]
["المرحلة\n الدراسية",null,"مريضة ؟"]
["اسم الباحث"]
["رأي الباحث"]
[]
[]
["بيانات الحالة"]
["طالب رقم ",65,"اسم أم الطالب","A65"]
["اسم الطالب","سليمان عبد الرحيم","عدد الأخوة"]
["الصف",null,"عدد المتزوجون منهم"]
["اسم ولي الأمر",null,"تسكن بالإيجار ؟"]
["البلد",null,"موظفة ؟"]
["تاريخ الميلاد",null,"مرتب الوظيفة"]
["حالة القيد ",null,"لها حيازة ؟"]
["نوع القيد",null,"العدد بالقيراط"]
["له أخوة\n بالمدرسة ؟",null,"قيمة المعاش أو النفقة"]
["المرحلة\n الدراسية",null,"مريضة ؟"]
["اسم الباحث"]
["رأي الباحث"]
[]
[]
["بيانات الحالة"]
["طالب رقم ",66,"اسم أم الطالب","A66"]
["اسم الطالب","عفت إبراهيم محجوب","عدد الأخوة"]
["الصف",null,"عدد المتزوجون منهم"]
["اسم ولي الأمر",null,"تسكن بالإيجار ؟"]
["البلد",null,"موظفة ؟"]
["تاريخ الميلاد",null,"مرتب الوظيفة"]
["حالة القيد ",null,"لها حيازة ؟"]
["نوع القيد",null,"العدد بالقيراط"]
["له أخوة\n بالمدرسة ؟",null,"قيمة المعاش أو النفقة"]
["المرحلة\n الدراسية",null,"مريضة ؟"]
["اسم الباحث"]
["رأي الباحث"]
[]
[]
["بيانات الحالة"]
["طالب رقم ",67,"اسم أم الطالب","A67"]
["اسم الطالب","إبراهيم منصف عطية","عدد الأخوة"]
["الصف",null,"عدد المتزوجون منهم"]
["اسم ولي الأمر",null,"تسكن بالإيجار ؟"]
["البلد",null,"موظفة ؟"]
["تاريخ الميلاد",null,"مرتب الوظيفة"]
["حالة القيد ",null,"لها حيازة ؟"]
["نوع القيد",null,"العدد بالقيراط"]
["له أخوة\n بالمدرسة ؟",null,"قيمة المعاش أو النفقة"]
["المرحلة\n الدراسية",null,"مريضة ؟"]
["اسم الباحث"]
["رأي الباحث"]
[]
[]
["بيانات الحالة"]
["طالب رقم ",68,"اسم أم الطالب","A68"]
["اسم الطالب","دعاء السعيد علي","عدد الأخوة"]
["الصف",null,"عدد المتزوجون منهم"]
["اسم ولي الأمر",null,"تسكن بالإيجار ؟"]
["البلد",null,"موظفة ؟"]
["تاريخ الميلاد",null,"مرتب الوظيفة"]
["حالة القيد ",null,"لها حيازة ؟"]
["نوع القيد",null,"العدد بالقيراط"]
["له أخوة\n بالمدرسة ؟",null,"قيمة المعاش أو النفقة"]
["المرحلة\n الدراسية",null,"مريضة ؟"]
["اسم الباحث"]
["رأي الباحث"]
[]
[]
["بيانات الحالة"]
["طالب رقم ",69,"اسم أم الطالب","A69"]
["اسم الطالب","محمود طه حسن","عدد الأخوة"]
["الصف",null,"عدد المتزوجون منهم"]
["اسم ولي الأمر",null,"تسكن بالإيجار ؟"]
["البلد",null,"موظفة ؟"]
["تاريخ الميلاد",null,"مرتب الوظيفة"]
["حالة القيد ",null,"لها حيازة ؟"]
["نوع القيد",null,"العدد بالقيراط"]
["له أخوة\n بالمدرسة ؟",null,"قيمة المعاش أو النفقة"]
["المرحلة\n الدراسية",null,"مريضة ؟"]
["اسم الباحث"]
["رأي الباحث"]
[]
[]
["بيانات الحالة"]
["طالب رقم ",70,"اسم أم الطالب","A70"]
["اسم الطالب","هاجر عطية بسيوني","عدد الأخوة"]
["الصف",null,"عدد المتزوجون منهم"]
["اسم ولي الأمر",null,"تسكن بالإيجار ؟"]
["البلد",null,"موظفة ؟"]
["تاريخ الميلاد",null,"مرتب الوظيفة"]
["حالة القيد ",null,"لها حيازة ؟"]
["نوع القيد",null,"العدد بالقيراط"]
["له أخوة\n بالمدرسة ؟",null,"قيمة المعاش أو النفقة"]
["المرحلة\n الدراسية",null,"مريضة ؟"]
["اسم الباحث"]
["رأي الباحث"]
[]
[]
["بيانات الحالة"]
["طالب رقم ",71,"اسم أم الطالب","A71"]
["اسم الطالب","محمد حامد","عدد الأخوة"]
["الصف",null,"عدد المتزوجون منهم"]
["اسم ولي الأمر",null,"تسكن بالإيجار ؟"]
["البلد",null,"موظفة ؟"]
["تاريخ الميلاد",null,"مرتب الوظيفة"]
["حالة القيد ",null,"لها حيازة ؟"]
["نوع القيد",null,"العدد بالقيراط"]
["له أخوة\n بالمدرسة ؟",null,"قيمة المعاش أو النفقة"]
["المرحلة\n الدراسية",null,"مريضة ؟"]
["اسم الباحث"]
["رأي الباحث"]
[]
[]
["بيانات الحالة"]
["طالب رقم ",72,"اسم أم الطالب","A72"]
["اسم الطالب","خلود ماهر","عدد الأخوة"]
["الصف",null,"عدد المتزوجون منهم"]
["اسم ولي الأمر",null,"تسكن بالإيجار ؟"]
["البلد",null,"موظفة ؟"]
["تاريخ الميلاد",null,"مرتب الوظيفة"]
["حالة القيد ",null,"لها حيازة ؟"]
["نوع القيد",null,"العدد بالقيراط"]
["له أخوة\n بالمدرسة ؟",null,"قيمة المعاش أو النفقة"]
["المرحلة\n الدراسية",null,"مريضة ؟"]
["اسم الباحث"]
["رأي الباحث"]
[]
[]
["بيانات الحالة"]
["طالب رقم ",73,"اسم أم الطالب","A73"]
["اسم الطالب","احمد محمود","عدد الأخوة"]
["الصف",null,"عدد المتزوجون منهم"]
["اسم ولي الأمر",null,"تسكن بالإيجار ؟"]
["البلد",null,"موظفة ؟"]
["تاريخ الميلاد",null,"مرتب الوظيفة"]
["حالة القيد ",null,"لها حيازة ؟"]
["نوع القيد",null,"العدد بالقيراط"]
["له أخوة\n بالمدرسة ؟",null,"قيمة المعاش أو النفقة"]
["المرحلة\n الدراسية",null,"مريضة ؟"]
["اسم الباحث"]
["رأي الباحث"]
[]
[]
["بيانات الحالة"]
["طالب رقم ",74,"اسم أم الطالب","A74"]
["اسم الطالب","هند علي خميس","عدد الأخوة"]
["الصف",null,"عدد المتزوجون منهم"]
["اسم ولي الأمر",null,"تسكن بالإيجار ؟"]
["البلد",null,"موظفة ؟"]
["تاريخ الميلاد",null,"مرتب الوظيفة"]
["حالة القيد ",null,"لها حيازة ؟"]
["نوع القيد",null,"العدد بالقيراط"]
["له أخوة\n بالمدرسة ؟",null,"قيمة المعاش أو النفقة"]
["المرحلة\n الدراسية",null,"مريضة ؟"]
["اسم الباحث"]
["رأي الباحث"]
[]
[]
["بيانات الحالة"]
["طالب رقم ",75,"اسم أم الطالب","A75"]
["اسم الطالب","سليمان عبد الرحيم","عدد الأخوة"]
["الصف",null,"عدد المتزوجون منهم"]
["اسم ولي الأمر",null,"تسكن بالإيجار ؟"]
["البلد",null,"موظفة ؟"]
["تاريخ الميلاد",null,"مرتب الوظيفة"]
["حالة القيد ",null,"لها حيازة ؟"]
["نوع القيد",null,"العدد بالقيراط"]
["له أخوة\n بالمدرسة ؟",null,"قيمة المعاش أو النفقة"]
["المرحلة\n الدراسية",null,"مريضة ؟"]
["اسم الباحث"]
["رأي الباحث"]
[]
[]
["بيانات الحالة"]
["طالب رقم ",76,"اسم أم الطالب","A76"]
["اسم الطالب","عفت إبراهيم محجوب","عدد الأخوة"]
["الصف",null,"عدد المتزوجون منهم"]
["اسم ولي الأمر",null,"تسكن بالإيجار ؟"]
["البلد",null,"موظفة ؟"]
["تاريخ الميلاد",null,"مرتب الوظيفة"]
["حالة القيد ",null,"لها حيازة ؟"]
["نوع القيد",null,"العدد بالقيراط"]
["له أخوة\n بالمدرسة ؟",null,"قيمة المعاش أو النفقة"]
["المرحلة\n الدراسية",null,"مريضة ؟"]
["اسم الباحث"]
["رأي الباحث"]
[]
[]
["بيانات الحالة"]
["طالب رقم ",77,"اسم أم الطالب","A77"]
["اسم الطالب","إبراهيم منصف عطية","عدد الأخوة"]
["الصف",null,"عدد المتزوجون منهم"]
["اسم ولي الأمر",null,"تسكن بالإيجار ؟"]
["البلد",null,"موظفة ؟"]
["تاريخ الميلاد",null,"مرتب الوظيفة"]
["حالة القيد ",null,"لها حيازة ؟"]
["نوع القيد",null,"العدد بالقيراط"]
["له أخوة\n بالمدرسة ؟",null,"قيمة المعاش أو النفقة"]
["المرحلة\n الدراسية",null,"مريضة ؟"]
["اسم الباحث"]
["رأي الباحث"]
[]
[]
["بيانات الحالة"]
["طالب رقم ",78,"اسم أم الطالب","A78"]
["اسم الطالب","دعاء السعيد علي","عدد الأخوة"]
["الصف",null,"عدد المتزوجون منهم"]
["اسم ولي الأمر",null,"تسكن بالإيجار ؟"]
["البلد",null,"موظفة ؟"]
["تاريخ الميلاد",null,"مرتب الوظيفة"]
["حالة القيد ",null,"لها حيازة ؟"]
["نوع القيد",null,"العدد بالقيراط"]
["له أخوة\n بالمدرسة ؟",null,"قيمة المعاش أو النفقة"]
["المرحلة\n الدراسية",null,"مريضة ؟"]
["اسم الباحث"]
["رأي الباحث"]
[]
[]
["بيانات الحالة"]
["طالب رقم ",79,"اسم أم الطالب","A79"]
["اسم الطالب","محمود طه حسن","عدد الأخوة"]
["الصف",null,"عدد المتزوجون منهم"]
["اسم ولي الأمر",null,"تسكن بالإيجار ؟"]
["البلد",null,"موظفة ؟"]
["تاريخ الميلاد",null,"مرتب الوظيفة"]
["حالة القيد ",null,"لها حيازة ؟"]
["نوع القيد",null,"العدد بالقيراط"]
["له أخوة\n بالمدرسة ؟",null,"قيمة المعاش أو النفقة"]
["المرحلة\n الدراسية",null,"مريضة ؟"]
["اسم الباحث"]
["رأي الباحث"]
[]
[]
["بيانات الحالة"]
["طالب رقم ",80,"اسم أم الطالب","A80"]
["اسم الطالب","هاجر عطية بسيوني","عدد الأخوة"]
["الصف",null,"عدد المتزوجون منهم"]
["اسم ولي الأمر",null,"تسكن بالإيجار ؟"]
["البلد",null,"موظفة ؟"]
["تاريخ الميلاد",null,"مرتب الوظيفة"]
["حالة القيد ",null,"لها حيازة ؟"]
["نوع القيد",null,"العدد بالقيراط"]
["له أخوة\n بالمدرسة ؟",null,"قيمة المعاش أو النفقة"]
["المرحلة\n الدراسية",null,"مريضة ؟"]
["اسم الباحث"]
["رأي الباحث"]
[]
[]
["بيانات الحالة"]
["طالب رقم ",81,"اسم أم الطالب","A81"]
["اسم الطالب","محمد حامد","عدد الأخوة"]
["الصف",null,"عدد المتزوجون منهم"]
["اسم ولي الأمر",null,"تسكن بالإيجار ؟"]
["البلد",null,"موظفة ؟"]
["تاريخ الميلاد",null,"مرتب الوظيفة"]
["حالة القيد ",null,"لها حيازة ؟"]
["نوع القيد",null,"العدد بالقيراط"]
["له أخوة\n بالمدرسة ؟",null,"قيمة المعاش أو النفقة"]
["المرحلة\n الدراسية",null,"مريضة ؟"]
["اسم الباحث"]
["رأي الباحث"]
[]
[]
["بيانات الحالة"]
["طالب رقم ",82,"اسم أم الطالب","A82"]
["اسم الطالب","خلود ماهر","عدد الأخوة"]
["الصف",null,"عدد المتزوجون منهم"]
["اسم ولي الأمر",null,"تسكن بالإيجار ؟"]
["البلد",null,"موظفة ؟"]
["تاريخ الميلاد",null,"مرتب الوظيفة"]
["حالة القيد ",null,"لها حيازة ؟"]
["نوع القيد",null,"العدد بالقيراط"]
["له أخوة\n بالمدرسة ؟",null,"قيمة المعاش أو النفقة"]
["المرحلة\n الدراسية",null,"مريضة ؟"]
["اسم الباحث"]
["رأي الباحث"]
[]
[]
["بيانات الحالة"]
["طالب رقم ",83,"اسم أم الطالب","A83"]
["اسم الطالب","احمد محمود","عدد الأخوة"]
["الصف",null,"عدد المتزوجون منهم"]
["اسم ولي الأمر",null,"تسكن بالإيجار ؟"]
["البلد",null,"موظفة ؟"]
["تاريخ الميلاد",null,"مرتب الوظيفة"]
["حالة القيد ",null,"لها حيازة ؟"]
["نوع القيد",null,"العدد بالقيراط"]
["له أخوة\n بالمدرسة ؟",null,"قيمة المعاش أو النفقة"]
["المرحلة\n الدراسية",null,"مريضة ؟"]
["اسم الباحث"]
["رأي الباحث"]
[]
[]
["بيانات الحالة"]
["طالب رقم ",84,"اسم أم الطالب","A84"]
["اسم الطالب","هند علي خميس","عدد الأخوة"]
["الصف",null,"عدد المتزوجون منهم"]
["اسم ولي الأمر",null,"تسكن بالإيجار ؟"]
["البلد",null,"موظفة ؟"]
["تاريخ الميلاد",null,"مرتب الوظيفة"]
["حالة القيد ",null,"لها حيازة ؟"]
["نوع القيد",null,"العدد بالقيراط"]
["له أخوة\n بالمدرسة ؟",null,"قيمة المعاش أو النفقة"]
["المرحلة\n الدراسية",null,"مريضة ؟"]
["اسم الباحث"]
["رأي الباحث"]
[]
[]
["بيانات الحالة"]
["طالب رقم ",85,"اسم أم الطالب","A85"]
["اسم الطالب","سليمان عبد الرحيم","عدد الأخوة"]
["الصف",null,"عدد المتزوجون منهم"]
["اسم ولي الأمر",null,"تسكن بالإيجار ؟"]
["البلد",null,"موظفة ؟"]
["تاريخ الميلاد",null,"مرتب الوظيفة"]
["حالة القيد ",null,"لها حيازة ؟"]
["نوع القيد",null,"العدد بالقيراط"]
["له أخوة\n بالمدرسة ؟",null,"قيمة المعاش أو النفقة"]
["المرحلة\n الدراسية",null,"مريضة ؟"]
["اسم الباحث"]
["رأي الباحث"]
[]
[]
["بيانات الحالة"]
["طالب رقم ",86,"اسم أم الطالب","A86"]
["اسم الطالب","عفت إبراهيم محجوب","عدد الأخوة"]
["الصف",null,"عدد المتزوجون منهم"]
["اسم ولي الأمر",null,"تسكن بالإيجار ؟"]
["البلد",null,"موظفة ؟"]
["تاريخ الميلاد",null,"مرتب الوظيفة"]
["حالة القيد ",null,"لها حيازة ؟"]
["نوع القيد",null,"العدد بالقيراط"]
["له أخوة\n بالمدرسة ؟",null,"قيمة المعاش أو النفقة"]
["المرحلة\n الدراسية",null,"مريضة ؟"]
["اسم الباحث"]
["رأي الباحث"]
[]
[]
["بيانات الحالة"]
["طالب رقم ",87,"اسم أم الطالب","A87"]
["اسم الطالب","إبراهيم منصف عطية","عدد الأخوة"]
["الصف",null,"عدد المتزوجون منهم"]
["اسم ولي الأمر",null,"تسكن بالإيجار ؟"]
["البلد",null,"موظفة ؟"]
["تاريخ الميلاد",null,"مرتب الوظيفة"]
["حالة القيد ",null,"لها حيازة ؟"]
["نوع القيد",null,"العدد بالقيراط"]
["له أخوة\n بالمدرسة ؟",null,"قيمة المعاش أو النفقة"]
["المرحلة\n الدراسية",null,"مريضة ؟"]
["اسم الباحث"]
["رأي الباحث"]
[]
[]
["بيانات الحالة"]
["طالب رقم ",88,"اسم أم الطالب","A88"]
["اسم الطالب","دعاء السعيد علي","عدد الأخوة"]
["الصف",null,"عدد المتزوجون منهم"]
["اسم ولي الأمر",null,"تسكن بالإيجار ؟"]
["البلد",null,"موظفة ؟"]
["تاريخ الميلاد",null,"مرتب الوظيفة"]
["حالة القيد ",null,"لها حيازة ؟"]
["نوع القيد",null,"العدد بالقيراط"]
["له أخوة\n بالمدرسة ؟",null,"قيمة المعاش أو النفقة"]
["المرحلة\n الدراسية",null,"مريضة ؟"]
["اسم الباحث"]
["رأي الباحث"]
[]
[]
["بيانات الحالة"]
["طالب رقم ",89,"اسم أم الطالب","A89"]
["اسم الطالب","محمود طه حسن","عدد الأخوة"]
["الصف",null,"عدد المتزوجون منهم"]
["اسم ولي الأمر",null,"تسكن بالإيجار ؟"]
["البلد",null,"موظفة ؟"]
["تاريخ الميلاد",null,"مرتب الوظيفة"]
["حالة القيد ",null,"لها حيازة ؟"]
["نوع القيد",null,"العدد بالقيراط"]
["له أخوة\n بالمدرسة ؟",null,"قيمة المعاش أو النفقة"]
["المرحلة\n الدراسية",null,"مريضة ؟"]
["اسم الباحث"]
["رأي الباحث"]
[]
[]
["بيانات الحالة"]
["طالب رقم ",90,"اسم أم الطالب","A90"]
["اسم الطالب","هاجر عطية بسيوني","عدد الأخوة"]
["الصف",null,"عدد المتزوجون منهم"]
["اسم ولي الأمر",null,"تسكن بالإيجار ؟"]
["البلد",null,"موظفة ؟"]
["تاريخ الميلاد",null,"مرتب الوظيفة"]
["حالة القيد ",null,"لها حيازة ؟"]
["نوع القيد",null,"العدد بالقيراط"]
["له أخوة\n بالمدرسة ؟",null,"قيمة المعاش أو النفقة"]
["المرحلة\n الدراسية",null,"مريضة ؟"]
["اسم الباحث"]
["رأي الباحث"]
[]
[]
["بيانات الحالة"]
["طالب رقم ",91,"اسم أم الطالب","A91"]
["اسم الطالب","محمد حامد","عدد الأخوة"]
["الصف",null,"عدد المتزوجون منهم"]
["اسم ولي الأمر",null,"تسكن بالإيجار ؟"]
["البلد",null,"موظفة ؟"]
["تاريخ الميلاد",null,"مرتب الوظيفة"]
["حالة القيد ",null,"لها حيازة ؟"]
["نوع القيد",null,"العدد بالقيراط"]
["له أخوة\n بالمدرسة ؟",null,"قيمة المعاش أو النفقة"]
["المرحلة\n الدراسية",null,"مريضة ؟"]
["اسم الباحث"]
["رأي الباحث"]
[]
[]
["بيانات الحالة"]
["طالب رقم ",92,"اسم أم الطالب","A92"]
["اسم الطالب","خلود ماهر","عدد الأخوة"]
["الصف",null,"عدد المتزوجون منهم"]
["اسم ولي الأمر",null,"تسكن بالإيجار ؟"]
["البلد",null,"موظفة ؟"]
["تاريخ الميلاد",null,"مرتب الوظيفة"]
["حالة القيد ",null,"لها حيازة ؟"]
["نوع القيد",null,"العدد بالقيراط"]
["له أخوة\n بالمدرسة ؟",null,"قيمة المعاش أو النفقة"]
["المرحلة\n الدراسية",null,"مريضة ؟"]
["اسم الباحث"]
["رأي الباحث"]
[]
[]
["بيانات الحالة"]
["طالب رقم ",93,"اسم أم الطالب","A93"]
["اسم الطالب","احمد محمود","عدد الأخوة"]
["الصف",null,"عدد المتزوجون منهم"]
["اسم ولي الأمر",null,"تسكن بالإيجار ؟"]
["البلد",null,"موظفة ؟"]
["تاريخ الميلاد",null,"مرتب الوظيفة"]
["حالة القيد ",null,"لها حيازة ؟"]
["نوع القيد",null,"العدد بالقيراط"]
["له أخوة\n بالمدرسة ؟",null,"قيمة المعاش أو النفقة"]
["المرحلة\n الدراسية",null,"مريضة ؟"]
["اسم الباحث"]
["رأي الباحث"]
[]
[]
["بيانات الحالة"]
["طالب رقم ",94,"اسم أم الطالب","A94"]
["اسم الطالب","هند علي خميس","عدد الأخوة"]
["الصف",null,"عدد المتزوجون منهم"]
["اسم ولي الأمر",null,"تسكن بالإيجار ؟"]
["البلد",null,"موظفة ؟"]
["تاريخ الميلاد",null,"مرتب الوظيفة"]
["حالة القيد ",null,"لها حيازة ؟"]
["نوع القيد",null,"العدد بالقيراط"]
["له أخوة\n بالمدرسة ؟",null,"قيمة المعاش أو النفقة"]
["المرحلة\n الدراسية",null,"مريضة ؟"]
["اسم الباحث"]
["رأي الباحث"]
[]
[]
["بيانات الحالة"]
["طالب رقم ",95,"اسم أم الطالب","A95"]
["اسم الطالب","سليمان عبد الرحيم","عدد الأخوة"]
["الصف",null,"عدد المتزوجون منهم"]
["اسم ولي الأمر",null,"تسكن بالإيجار ؟"]
["البلد",null,"موظفة ؟"]
["تاريخ الميلاد",null,"مرتب الوظيفة"]
["حالة القيد ",null,"لها حيازة ؟"]
["نوع القيد",null,"العدد بالقيراط"]
["له أخوة\n بالمدرسة ؟",null,"قيمة المعاش أو النفقة"]
["المرحلة\n الدراسية",null,"مريضة ؟"]
["اسم الباحث"]
["رأي الباحث"]
[]
[]
["بيانات الحالة"]
["طالب رقم ",96,"اسم أم الطالب","A96"]
["اسم الطالب","عفت إبراهيم محجوب","عدد الأخوة"]
["الصف",null,"عدد المتزوجون منهم"]
["اسم ولي الأمر",null,"تسكن بالإيجار ؟"]
["البلد",null,"موظفة ؟"]
["تاريخ الميلاد",null,"مرتب الوظيفة"]
["حالة القيد ",null,"لها حيازة ؟"]
["نوع القيد",null,"العدد بالقيراط"]
["له أخوة\n بالمدرسة ؟",null,"قيمة المعاش أو النفقة"]
["المرحلة\n الدراسية",null,"مريضة ؟"]
["اسم الباحث"]
["رأي الباحث"]
[]
[]
["بيانات الحالة"]
["طالب رقم ",97,"اسم أم الطالب","A97"]
["اسم الطالب","إبراهيم منصف عطية","عدد الأخوة"]
["الصف",null,"عدد المتزوجون منهم"]
["اسم ولي الأمر",null,"تسكن بالإيجار ؟"]
["البلد",null,"موظفة ؟"]
["تاريخ الميلاد",null,"مرتب الوظيفة"]
["حالة القيد ",null,"لها حيازة ؟"]
["نوع القيد",null,"العدد بالقيراط"]
["له أخوة\n بالمدرسة ؟",null,"قيمة المعاش أو النفقة"]
["المرحلة\n الدراسية",null,"مريضة ؟"]
["اسم الباحث"]
["رأي الباحث"]
[]
[]
["بيانات الحالة"]
["طالب رقم ",98,"اسم أم الطالب","A98"]
["اسم الطالب","دعاء السعيد علي","عدد الأخوة"]
["الصف",null,"عدد المتزوجون منهم"]
["اسم ولي الأمر",null,"تسكن بالإيجار ؟"]
["البلد",null,"موظفة ؟"]
["تاريخ الميلاد",null,"مرتب الوظيفة"]
["حالة القيد ",null,"لها حيازة ؟"]
["نوع القيد",null,"العدد بالقيراط"]
["له أخوة\n بالمدرسة ؟",null,"قيمة المعاش أو النفقة"]
["المرحلة\n الدراسية",null,"مريضة ؟"]
["اسم الباحث"]
["رأي الباحث"]
[]
[]
["بيانات الحالة"]
["طالب رقم ",99,"اسم أم الطالب","A99"]
["اسم الطالب","محمود طه حسن","عدد الأخوة"]
["الصف",null,"عدد المتزوجون منهم"]
["اسم ولي الأمر",null,"تسكن بالإيجار ؟"]
["البلد",null,"موظفة ؟"]
["تاريخ الميلاد",null,"مرتب الوظيفة"]
["حالة القيد ",null,"لها حيازة ؟"]
["نوع القيد",null,"العدد بالقيراط"]
["له أخوة\n بالمدرسة ؟",null,"قيمة المعاش أو النفقة"]
["المرحلة\n الدراسية",null,"مريضة ؟"]
["اسم الباحث"]
["رأي الباحث"]
[]
[]
["بيانات الحالة"]
["طالب رقم ",100,"اسم أم الطالب","A100"]
["اسم الطالب","هاجر عطية بسيوني","عدد الأخوة"]
["الصف",null,"عدد المتزوجون منهم"]
["اسم ولي الأمر",null,"تسكن بالإيجار ؟"]
["البلد",null,"موظفة ؟"]
["تاريخ الميلاد",null,"مرتب الوظيفة"]
["حالة القيد ",null,"لها حيازة ؟"]
["نوع القيد",null,"العدد بالقيراط"]
["له أخوة\n بالمدرسة ؟",null,"قيمة المعاش أو النفقة"]
["المرحلة\n الدراسية",null,"مريضة ؟"]
["اسم الباحث"]
["رأي الباحث"]
[]
[]
["بيانات الحالة"]
["طالب رقم ",101,"اسم أم الطالب","A101"]
["اسم الطالب","محمد حامد","عدد الأخوة"]
["الصف",null,"عدد المتزوجون منهم"]
["اسم ولي الأمر",null,"تسكن بالإيجار ؟"]
["البلد",null,"موظفة ؟"]
["تاريخ الميلاد",null,"مرتب الوظيفة"]
["حالة القيد ",null,"لها حيازة ؟"]
["نوع القيد",null,"العدد بالقيراط"]
["له أخوة\n بالمدرسة ؟",null,"قيمة المعاش أو النفقة"]
["المرحلة\n الدراسية",null,"مريضة ؟"]
["اسم الباحث"]
["رأي الباحث"]
[]
[]
["بيانات الحالة"]
["طالب رقم ",102,"اسم أم الطالب","A102"]
["اسم الطالب","خلود ماهر","عدد الأخوة"]
["الصف",null,"عدد المتزوجون منهم"]
["اسم ولي الأمر",null,"تسكن بالإيجار ؟"]
["البلد",null,"موظفة ؟"]
["تاريخ الميلاد",null,"مرتب الوظيفة"]
["حالة القيد ",null,"لها حيازة ؟"]
["نوع القيد",null,"العدد بالقيراط"]
["له أخوة\n بالمدرسة ؟",null,"قيمة المعاش أو النفقة"]
["المرحلة\n الدراسية",null,"مريضة ؟"]
["اسم الباحث"]
["رأي الباحث"]
[]
[]
["بيانات الحالة"]
["طالب رقم ",103,"اسم أم الطالب","A103"]
["اسم الطالب","احمد محمود","عدد الأخوة"]
["الصف",null,"عدد المتزوجون منهم"]
["اسم ولي الأمر",null,"تسكن بالإيجار ؟"]
["البلد",null,"موظفة ؟"]
["تاريخ الميلاد",null,"مرتب الوظيفة"]
["حالة القيد ",null,"لها حيازة ؟"]
["نوع القيد",null,"العدد بالقيراط"]
["له أخوة\n بالمدرسة ؟",null,"قيمة المعاش أو النفقة"]
["المرحلة\n الدراسية",null,"مريضة ؟"]
["اسم الباحث"]
["رأي الباحث"]
[]
[]
["بيانات الحالة"]
["طالب رقم ",104,"اسم أم الطالب","A104"]
["اسم الطالب","هند علي خميس","عدد الأخوة"]
["الصف",null,"عدد المتزوجون منهم"]
["اسم ولي الأمر",null,"تسكن بالإيجار ؟"]
["البلد",null,"موظفة ؟"]
["تاريخ الميلاد",null,"مرتب الوظيفة"]
["حالة القيد ",null,"لها حيازة ؟"]
["نوع القيد",null,"العدد بالقيراط"]
["له أخوة\n بالمدرسة ؟",null,"قيمة المعاش أو النفقة"]
["المرحلة\n الدراسية",null,"مريضة ؟"]
["اسم الباحث"]
["رأي الباحث"]
[]
[]
["بيانات الحالة"]
["طالب رقم ",105,"اسم أم الطالب","A105"]
["اسم الطالب","سليمان عبد الرحيم","عدد الأخوة"]
["الصف",null,"عدد المتزوجون منهم"]
["اسم ولي الأمر",null,"تسكن بالإيجار ؟"]
["البلد",null,"موظفة ؟"]
["تاريخ الميلاد",null,"مرتب الوظيفة"]
["حالة القيد ",null,"لها حيازة ؟"]
["نوع القيد",null,"العدد بالقيراط"]
["له أخوة\n بالمدرسة ؟",null,"قيمة المعاش أو النفقة"]
["المرحلة\n الدراسية",null,"مريضة ؟"]
["اسم الباحث"]
["رأي الباحث"]
[]
[]
["بيانات الحالة"]
["طالب رقم ",106,"اسم أم الطالب","A106"]
["اسم الطالب","عفت إبراهيم محجوب","عدد الأخوة"]
["الصف",null,"عدد المتزوجون منهم"]
["اسم ولي الأمر",null,"تسكن بالإيجار ؟"]
["البلد",null,"موظفة ؟"]
["تاريخ الميلاد",null,"مرتب الوظيفة"]
["حالة القيد ",null,"لها حيازة ؟"]
["نوع القيد",null,"العدد بالقيراط"]
["له أخوة\n بالمدرسة ؟",null,"قيمة المعاش أو النفقة"]
["المرحلة\n الدراسية",null,"مريضة ؟"]
["اسم الباحث"]
["رأي الباحث"]
[]
[]
["بيانات الحالة"]
["طالب رقم ",107,"اسم أم الطالب","A107"]
["اسم الطالب","إبراهيم منصف عطية","عدد الأخوة"]
["الصف",null,"عدد المتزوجون منهم"]
["اسم ولي الأمر",null,"تسكن بالإيجار ؟"]
["البلد",null,"موظفة ؟"]
["تاريخ الميلاد",null,"مرتب الوظيفة"]
["حالة القيد ",null,"لها حيازة ؟"]
["نوع القيد",null,"العدد بالقيراط"]
["له أخوة\n بالمدرسة ؟",null,"قيمة المعاش أو النفقة"]
["المرحلة\n الدراسية",null,"مريضة ؟"]
["اسم الباحث"]
["رأي الباحث"]
[]
[]
["بيانات الحالة"]
["طالب رقم ",108,"اسم أم الطالب","A108"]
["اسم الطالب","دعاء السعيد علي","عدد الأخوة"]
["الصف",null,"عدد المتزوجون منهم"]
["اسم ولي الأمر",null,"تسكن بالإيجار ؟"]
["البلد",null,"موظفة ؟"]
["تاريخ الميلاد",null,"مرتب الوظيفة"]
["حالة القيد ",null,"لها حيازة ؟"]
["نوع القيد",null,"العدد بالقيراط"]
["له أخوة\n بالمدرسة ؟",null,"قيمة المعاش أو النفقة"]
["المرحلة\n الدراسية",null,"مريضة ؟"]
["اسم الباحث"]
["رأي الباحث"]
[]
[]
["بيانات الحالة"]
["طالب رقم ",109,"اسم أم الطالب","A109"]
["اسم الطالب","محمود طه حسن","عدد الأخوة"]
["الصف",null,"عدد المتزوجون منهم"]
["اسم ولي الأمر",null,"تسكن بالإيجار ؟"]
["البلد",null,"موظفة ؟"]
["تاريخ الميلاد",null,"مرتب الوظيفة"]
["حالة القيد ",null,"لها حيازة ؟"]
["نوع القيد",null,"العدد بالقيراط"]
["له أخوة\n بالمدرسة ؟",null,"قيمة المعاش أو النفقة"]
["المرحلة\n الدراسية",null,"مريضة ؟"]
["اسم الباحث"]
["رأي الباحث"]
[]
[]
["بيانات الحالة"]
["طالب رقم ",110,"اسم أم الطالب","A110"]
["اسم الطالب","هاجر عطية بسيوني","عدد الأخوة"]
["الصف",null,"عدد المتزوجون منهم"]
["اسم ولي الأمر",null,"تسكن بالإيجار ؟"]
["البلد",null,"موظفة ؟"]
["تاريخ الميلاد",null,"مرتب الوظيفة"]
["حالة القيد ",null,"لها حيازة ؟"]
["نوع القيد",null,"العدد بالقيراط"]
["له أخوة\n بالمدرسة ؟",null,"قيمة المعاش أو النفقة"]
["المرحلة\n الدراسية",null,"مريضة ؟"]
["اسم الباحث"]
["رأي الباحث"]
[]
[]
["بيانات الحالة"]
["طالب رقم ",111,"اسم أم الطالب","A111"]
["اسم الطالب","محمد حامد","عدد الأخوة"]
["الصف",null,"عدد المتزوجون منهم"]
["اسم ولي الأمر",null,"تسكن بالإيجار ؟"]
["البلد",null,"موظفة ؟"]
["تاريخ الميلاد",null,"مرتب الوظيفة"]
["حالة القيد ",null,"لها حيازة ؟"]
["نوع القيد",null,"العدد بالقيراط"]
["له أخوة\n بالمدرسة ؟",null,"قيمة المعاش أو النفقة"]
["المرحلة\n الدراسية",null,"مريضة ؟"]
["اسم الباحث"]
["رأي الباحث"]
[]
[]
["بيانات الحالة"]
["طالب رقم ",112,"اسم أم الطالب","A112"]
["اسم الطالب","خلود ماهر","عدد الأخوة"]
["الصف",null,"عدد المتزوجون منهم"]
["اسم ولي الأمر",null,"تسكن بالإيجار ؟"]
["البلد",null,"موظفة ؟"]
["تاريخ الميلاد",null,"مرتب الوظيفة"]
["حالة القيد ",null,"لها حيازة ؟"]
["نوع القيد",null,"العدد بالقيراط"]
["له أخوة\n بالمدرسة ؟",null,"قيمة المعاش أو النفقة"]
["المرحلة\n الدراسية",null,"مريضة ؟"]
["اسم الباحث"]
["رأي الباحث"]
[]
[]
["بيانات الحالة"]
["طالب رقم ",113,"اسم أم الطالب","A113"]
["اسم الطالب","احمد محمود","عدد الأخوة"]
["الصف",null,"عدد المتزوجون منهم"]
["اسم ولي الأمر",null,"تسكن بالإيجار ؟"]
["البلد",null,"موظفة ؟"]
["تاريخ الميلاد",null,"مرتب الوظيفة"]
["حالة القيد ",null,"لها حيازة ؟"]
["نوع القيد",null,"العدد بالقيراط"]
["له أخوة\n بالمدرسة ؟",null,"قيمة المعاش أو النفقة"]
["المرحلة\n الدراسية",null,"مريضة ؟"]
["اسم الباحث"]
["رأي الباحث"]
[]
[]
["بيانات الحالة"]
["طالب رقم ",114,"اسم أم الطالب","A114"]
["اسم الطالب","هند علي خميس","عدد الأخوة"]
["الصف",null,"عدد المتزوجون منهم"]
["اسم ولي الأمر",null,"تسكن بالإيجار ؟"]
["البلد",null,"موظفة ؟"]
["تاريخ الميلاد",null,"مرتب الوظيفة"]
["حالة القيد ",null,"لها حيازة ؟"]
["نوع القيد",null,"العدد بالقيراط"]
["له أخوة\n بالمدرسة ؟",null,"قيمة المعاش أو النفقة"]
["المرحلة\n الدراسية",null,"مريضة ؟"]
["اسم الباحث"]
["رأي الباحث"]
[]
[]
["بيانات الحالة"]
["طالب رقم ",115,"اسم أم الطالب","A115"]
["اسم الطالب","سليمان عبد الرحيم","عدد الأخوة"]
["الصف",null,"عدد المتزوجون منهم"]
["اسم ولي الأمر",null,"تسكن بالإيجار ؟"]
["البلد",null,"موظفة ؟"]
["تاريخ الميلاد",null,"مرتب الوظيفة"]
["حالة القيد ",null,"لها حيازة ؟"]
["نوع القيد",null,"العدد بالقيراط"]
["له أخوة\n بالمدرسة ؟",null,"قيمة المعاش أو النفقة"]
["المرحلة\n الدراسية",null,"مريضة ؟"]
["اسم الباحث"]
["رأي الباحث"]
[]
[]
["بيانات الحالة"]
["طالب رقم ",116,"اسم أم الطالب","A116"]
["اسم الطالب","عفت إبراهيم محجوب","عدد الأخوة"]
["الصف",null,"عدد المتزوجون منهم"]
["اسم ولي الأمر",null,"تسكن بالإيجار ؟"]
["البلد",null,"موظفة ؟"]
["تاريخ الميلاد",null,"مرتب الوظيفة"]
["حالة القيد ",null,"لها حيازة ؟"]
["نوع القيد",null,"العدد بالقيراط"]
["له أخوة\n بالمدرسة ؟",null,"قيمة المعاش أو النفقة"]
["المرحلة\n الدراسية",null,"مريضة ؟"]
["اسم الباحث"]
["رأي الباحث"]
[]
[]
["بيانات الحالة"]
["طالب رقم ",117,"اسم أم الطالب","A117"]
["اسم الطالب","إبراهيم منصف عطية","عدد الأخوة"]
["الصف",null,"عدد المتزوجون منهم"]
["اسم ولي الأمر",null,"تسكن بالإيجار ؟"]
["البلد",null,"موظفة ؟"]
["تاريخ الميلاد",null,"مرتب الوظيفة"]
["حالة القيد ",null,"لها حيازة ؟"]
["نوع القيد",null,"العدد بالقيراط"]
["له أخوة\n بالمدرسة ؟",null,"قيمة المعاش أو النفقة"]
["المرحلة\n الدراسية",null,"مريضة ؟"]
["اسم الباحث"]
["رأي الباحث"]
[]
[]
["بيانات الحالة"]
["طالب رقم ",118,"اسم أم الطالب","A118"]
["اسم الطالب","دعاء السعيد علي","عدد الأخوة"]
["الصف",null,"عدد المتزوجون منهم"]
["اسم ولي الأمر",null,"تسكن بالإيجار ؟"]
["البلد",null,"موظفة ؟"]
["تاريخ الميلاد",null,"مرتب الوظيفة"]
["حالة القيد ",null,"لها حيازة ؟"]
["نوع القيد",null,"العدد بالقيراط"]
["له أخوة\n بالمدرسة ؟",null,"قيمة المعاش أو النفقة"]
["المرحلة\n الدراسية",null,"مريضة ؟"]
["اسم الباحث"]
["رأي الباحث"]
[]
[]
["بيانات الحالة"]
["طالب رقم ",119,"اسم أم الطالب","A119"]
["اسم الطالب","محمود طه حسن","عدد الأخوة"]
["الصف",null,"عدد المتزوجون منهم"]
["اسم ولي الأمر",null,"تسكن بالإيجار ؟"]
["البلد",null,"موظفة ؟"]
["تاريخ الميلاد",null,"مرتب الوظيفة"]
["حالة القيد ",null,"لها حيازة ؟"]
["نوع القيد",null,"العدد بالقيراط"]
["له أخوة\n بالمدرسة ؟",null,"قيمة المعاش أو النفقة"]
["المرحلة\n الدراسية",null,"مريضة ؟"]
["اسم الباحث"]
["رأي الباحث"]
[]
[]
["بيانات الحالة"]
["طالب رقم ",120,"اسم أم الطالب","A120"]
["اسم الطالب","هاجر عطية بسيوني","عدد الأخوة"]
["الصف",null,"عدد المتزوجون منهم"]
["اسم ولي الأمر",null,"تسكن بالإيجار ؟"]
["البلد",null,"موظفة ؟"]
["تاريخ الميلاد",null,"مرتب الوظيفة"]
["حالة القيد ",null,"لها حيازة ؟"]
["نوع القيد",null,"العدد بالقيراط"]
["له أخوة\n بالمدرسة ؟",null,"قيمة المعاش أو النفقة"]
["المرحلة\n الدراسية",null,"مريضة ؟"]
["اسم الباحث"]
["رأي الباحث"]
[]
[]
["بيانات الحالة"]
["طالب رقم ",121,"اسم أم الطالب","A121"]
["اسم الطالب","محمد حامد","عدد الأخوة"]
["الصف",null,"عدد المتزوجون منهم"]
["اسم ولي الأمر",null,"تسكن بالإيجار ؟"]
["البلد",null,"موظفة ؟"]
["تاريخ الميلاد",null,"مرتب الوظيفة"]
["حالة القيد ",null,"لها حيازة ؟"]
["نوع القيد",null,"العدد بالقيراط"]
["له أخوة\n بالمدرسة ؟",null,"قيمة المعاش أو النفقة"]
["المرحلة\n الدراسية",null,"مريضة ؟"]
["اسم الباحث"]
["رأي الباحث"]
[]
[]
["بيانات الحالة"]
["طالب رقم ",122,"اسم أم الطالب","A122"]
["اسم الطالب","خلود ماهر","عدد الأخوة"]
["الصف",null,"عدد المتزوجون منهم"]
["اسم ولي الأمر",null,"تسكن بالإيجار ؟"]
["البلد",null,"موظفة ؟"]
["تاريخ الميلاد",null,"مرتب الوظيفة"]
["حالة القيد ",null,"لها حيازة ؟"]
["نوع القيد",null,"العدد بالقيراط"]
["له أخوة\n بالمدرسة ؟",null,"قيمة المعاش أو النفقة"]
["المرحلة\n الدراسية",null,"مريضة ؟"]
["اسم الباحث"]
["رأي الباحث"]
[]
[]
["بيانات الحالة"]
["طالب رقم ",123,"اسم أم الطالب","A123"]
["اسم الطالب","احمد محمود","عدد الأخوة"]
["الصف",null,"عدد المتزوجون منهم"]
["اسم ولي الأمر",null,"تسكن بالإيجار ؟"]
["البلد",null,"موظفة ؟"]
["تاريخ الميلاد",null,"مرتب الوظيفة"]
["حالة القيد ",null,"لها حيازة ؟"]
["نوع القيد",null,"العدد بالقيراط"]
["له أخوة\n بالمدرسة ؟",null,"قيمة المعاش أو النفقة"]
["المرحلة\n الدراسية",null,"مريضة ؟"]
["اسم الباحث"]
["رأي الباحث"]
[]
[]
["بيانات الحالة"]
["طالب رقم ",124,"اسم أم الطالب","A124"]
["اسم الطالب","هند علي خميس","عدد الأخوة"]
["الصف",null,"عدد المتزوجون منهم"]
["اسم ولي الأمر",null,"تسكن بالإيجار ؟"]
["البلد",null,"موظفة ؟"]
["تاريخ الميلاد",null,"مرتب الوظيفة"]
["حالة القيد ",null,"لها حيازة ؟"]
["نوع القيد",null,"العدد بالقيراط"]
["له أخوة\n بالمدرسة ؟",null,"قيمة المعاش أو النفقة"]
["المرحلة\n الدراسية",null,"مريضة ؟"]
["اسم الباحث"]
["رأي الباحث"]
[]
[]
["بيانات الحالة"]
["طالب رقم ",125,"اسم أم الطالب","A125"]
["اسم الطالب","سليمان عبد الرحيم","عدد الأخوة"]
["الصف",null,"عدد المتزوجون منهم"]
["اسم ولي الأمر",null,"تسكن بالإيجار ؟"]
["البلد",null,"موظفة ؟"]
["تاريخ الميلاد",null,"مرتب الوظيفة"]
["حالة القيد ",null,"لها حيازة ؟"]
["نوع القيد",null,"العدد بالقيراط"]
["له أخوة\n بالمدرسة ؟",null,"قيمة المعاش أو النفقة"]
["المرحلة\n الدراسية",null,"مريضة ؟"]
["اسم الباحث"]
["رأي الباحث"]
[]
[]
["بيانات الحالة"]
["طالب رقم ",126,"اسم أم الطالب","A126"]
["اسم الطالب","عفت إبراهيم محجوب","عدد الأخوة"]
["الصف",null,"عدد المتزوجون منهم"]
["اسم ولي الأمر",null,"تسكن بالإيجار ؟"]
["البلد",null,"موظفة ؟"]
["تاريخ الميلاد",null,"مرتب الوظيفة"]
["حالة القيد ",null,"لها حيازة ؟"]
["نوع القيد",null,"العدد بالقيراط"]
["له أخوة\n بالمدرسة ؟",null,"قيمة المعاش أو النفقة"]
["المرحلة\n الدراسية",null,"مريضة ؟"]
["اسم الباحث"]
["رأي الباحث"]
[]
[]
["بيانات الحالة"]
["طالب رقم ",127,"اسم أم الطالب","A127"]
["اسم الطالب","إبراهيم منصف عطية","عدد الأخوة"]
["الصف",null,"عدد المتزوجون منهم"]
["اسم ولي الأمر",null,"تسكن بالإيجار ؟"]
["البلد",null,"موظفة ؟"]
["تاريخ الميلاد",null,"مرتب الوظيفة"]
["حالة القيد ",null,"لها حيازة ؟"]
["نوع القيد",null,"العدد بالقيراط"]
["له أخوة\n بالمدرسة ؟",null,"قيمة المعاش أو النفقة"]
["المرحلة\n الدراسية",null,"مريضة ؟"]
["اسم الباحث"]
["رأي الباحث"]
[]
[]
["بيانات الحالة"]
["طالب رقم ",128,"اسم أم الطالب","A128"]
["اسم الطالب","دعاء السعيد علي","عدد الأخوة"]
["الصف",null,"عدد المتزوجون منهم"]
["اسم ولي الأمر",null,"تسكن بالإيجار ؟"]
["البلد",null,"موظفة ؟"]
["تاريخ الميلاد",null,"مرتب الوظيفة"]
["حالة القيد ",null,"لها حيازة ؟"]
["نوع القيد",null,"العدد بالقيراط"]
["له أخوة\n بالمدرسة ؟",null,"قيمة المعاش أو النفقة"]
["المرحلة\n الدراسية",null,"مريضة ؟"]
["اسم الباحث"]
["رأي الباحث"]
[]
[]
["بيانات الحالة"]
["طالب رقم ",129,"اسم أم الطالب","A129"]
["اسم الطالب","محمود طه حسن","عدد الأخوة"]
["الصف",null,"عدد المتزوجون منهم"]
["اسم ولي الأمر",null,"تسكن بالإيجار ؟"]
["البلد",null,"موظفة ؟"]
["تاريخ الميلاد",null,"مرتب الوظيفة"]
["حالة القيد ",null,"لها حيازة ؟"]
["نوع القيد",null,"العدد بالقيراط"]
["له أخوة\n بالمدرسة ؟",null,"قيمة المعاش أو النفقة"]
["المرحلة\n الدراسية",null,"مريضة ؟"]
["اسم الباحث"]
["رأي الباحث"]
[]
[]
["بيانات الحالة"]
["طالب رقم ",130,"اسم أم الطالب","A130"]
["اسم الطالب","هاجر عطية بسيوني","عدد الأخوة"]
["الصف",null,"عدد المتزوجون منهم"]
["اسم ولي الأمر",null,"تسكن بالإيجار ؟"]
["البلد",null,"موظفة ؟"]
["تاريخ الميلاد",null,"مرتب الوظيفة"]
["حالة القيد ",null,"لها حيازة ؟"]
["نوع القيد",null,"العدد بالقيراط"]
["له أخوة\n بالمدرسة ؟",null,"قيمة المعاش أو النفقة"]
["المرحلة\n الدراسية",null,"مريضة ؟"]
["اسم الباحث"]
["رأي الباحث"]
[]
[]
["بيانات الحالة"]
["طالب رقم ",131,"اسم أم الطالب","A131"]
["اسم الطالب","محمد حامد","عدد الأخوة"]
["الصف",null,"عدد المتزوجون منهم"]
["اسم ولي الأمر",null,"تسكن بالإيجار ؟"]
["البلد",null,"موظفة ؟"]
["تاريخ الميلاد",null,"مرتب الوظيفة"]
["حالة القيد ",null,"لها حيازة ؟"]
["نوع القيد",null,"العدد بالقيراط"]
["له أخوة\n بالمدرسة ؟",null,"قيمة المعاش أو النفقة"]
["المرحلة\n الدراسية",null,"مريضة ؟"]
["اسم الباحث"]
["رأي الباحث"]
[]
[]
["بيانات الحالة"]
["طالب رقم ",132,"اسم أم الطالب","A132"]
["اسم الطالب","خلود ماهر","عدد الأخوة"]
["الصف",null,"عدد المتزوجون منهم"]
["اسم ولي الأمر",null,"تسكن بالإيجار ؟"]
["البلد",null,"موظفة ؟"]
["تاريخ الميلاد",null,"مرتب الوظيفة"]
["حالة القيد ",null,"لها حيازة ؟"]
["نوع القيد",null,"العدد بالقيراط"]
["له أخوة\n بالمدرسة ؟",null,"قيمة المعاش أو النفقة"]
["المرحلة\n الدراسية",null,"مريضة ؟"]
["اسم الباحث"]
["رأي الباحث"]
[]
[]
["بيانات الحالة"]
["طالب رقم ",133,"اسم أم الطالب","A133"]
["اسم الطالب","احمد محمود","عدد الأخوة"]
["الصف",null,"عدد المتزوجون منهم"]
["اسم ولي الأمر",null,"تسكن بالإيجار ؟"]
["البلد",null,"موظفة ؟"]
["تاريخ الميلاد",null,"مرتب الوظيفة"]
["حالة القيد ",null,"لها حيازة ؟"]
["نوع القيد",null,"العدد بالقيراط"]
["له أخوة\n بالمدرسة ؟",null,"قيمة المعاش أو النفقة"]
["المرحلة\n الدراسية",null,"مريضة ؟"]
["اسم الباحث"]
["رأي الباحث"]
[]
[]
["بيانات الحالة"]
["طالب رقم ",134,"اسم أم الطالب","A134"]
["اسم الطالب","هند علي خميس","عدد الأخوة"]
["الصف",null,"عدد المتزوجون منهم"]
["اسم ولي الأمر",null,"تسكن بالإيجار ؟"]
["البلد",null,"موظفة ؟"]
["تاريخ الميلاد",null,"مرتب الوظيفة"]
["حالة القيد ",null,"لها حيازة ؟"]
["نوع القيد",null,"العدد بالقيراط"]
["له أخوة\n بالمدرسة ؟",null,"قيمة المعاش أو النفقة"]
["المرحلة\n الدراسية",null,"مريضة ؟"]
["اسم الباحث"]
["رأي الباحث"]
[]
[]
["بيانات الحالة"]
["طالب رقم ",135,"اسم أم الطالب","A135"]
["اسم الطالب","سليمان عبد الرحيم","عدد الأخوة"]
["الصف",null,"عدد المتزوجون منهم"]
["اسم ولي الأمر",null,"تسكن بالإيجار ؟"]
["البلد",null,"موظفة ؟"]
["تاريخ الميلاد",null,"مرتب الوظيفة"]
["حالة القيد ",null,"لها حيازة ؟"]
["نوع القيد",null,"العدد بالقيراط"]
["له أخوة\n بالمدرسة ؟",null,"قيمة المعاش أو النفقة"]
["المرحلة\n الدراسية",null,"مريضة ؟"]
["اسم الباحث"]
["رأي الباحث"]
[]
[]
["بيانات الحالة"]
["طالب رقم ",136,"اسم أم الطالب","A136"]
["اسم الطالب","عفت إبراهيم محجوب","عدد الأخوة"]
["الصف",null,"عدد المتزوجون منهم"]
["اسم ولي الأمر",null,"تسكن بالإيجار ؟"]
["البلد",null,"موظفة ؟"]
["تاريخ الميلاد",null,"مرتب الوظيفة"]
["حالة القيد ",null,"لها حيازة ؟"]
["نوع القيد",null,"العدد بالقيراط"]
["له أخوة\n بالمدرسة ؟",null,"قيمة المعاش أو النفقة"]
["المرحلة\n الدراسية",null,"مريضة ؟"]
["اسم الباحث"]
["رأي الباحث"]
[]
[]
["بيانات الحالة"]
["طالب رقم ",137,"اسم أم الطالب","A137"]
["اسم الطالب","إبراهيم منصف عطية","عدد الأخوة"]
["الصف",null,"عدد المتزوجون منهم"]
["اسم ولي الأمر",null,"تسكن بالإيجار ؟"]
["البلد",null,"موظفة ؟"]
["تاريخ الميلاد",null,"مرتب الوظيفة"]
["حالة القيد ",null,"لها حيازة ؟"]
["نوع القيد",null,"العدد بالقيراط"]
["له أخوة\n بالمدرسة ؟",null,"قيمة المعاش أو النفقة"]
["المرحلة\n الدراسية",null,"مريضة ؟"]
["اسم الباحث"]
["رأي الباحث"]
[]
[]
["بيانات الحالة"]
["طالب رقم ",138,"اسم أم الطالب","A138"]
["اسم الطالب","دعاء السعيد علي","عدد الأخوة"]
["الصف",null,"عدد المتزوجون منهم"]
["اسم ولي الأمر",null,"تسكن بالإيجار ؟"]
["البلد",null,"موظفة ؟"]
["تاريخ الميلاد",null,"مرتب الوظيفة"]
["حالة القيد ",null,"لها حيازة ؟"]
["نوع القيد",null,"العدد بالقيراط"]
["له أخوة\n بالمدرسة ؟",null,"قيمة المعاش أو النفقة"]
["المرحلة\n الدراسية",null,"مريضة ؟"]
["اسم الباحث"]
["رأي الباحث"]
[]
[]
["بيانات الحالة"]
["طالب رقم ",139,"اسم أم الطالب","A139"]
["اسم الطالب","محمود طه حسن","عدد الأخوة"]
["الصف",null,"عدد المتزوجون منهم"]
["اسم ولي الأمر",null,"تسكن بالإيجار ؟"]
["البلد",null,"موظفة ؟"]
["تاريخ الميلاد",null,"مرتب الوظيفة"]
["حالة القيد ",null,"لها حيازة ؟"]
["نوع القيد",null,"العدد بالقيراط"]
["له أخوة\n بالمدرسة ؟",null,"قيمة المعاش أو النفقة"]
["المرحلة\n الدراسية",null,"مريضة ؟"]
["اسم الباحث"]
["رأي الباحث"]
[]
[]
["بيانات الحالة"]
["طالب رقم ",140,"اسم أم الطالب","A140"]
["اسم الطالب","هاجر عطية بسيوني","عدد الأخوة"]
["الصف",null,"عدد المتزوجون منهم"]
["اسم ولي الأمر",null,"تسكن بالإيجار ؟"]
["البلد",null,"موظفة ؟"]
["تاريخ الميلاد",null,"مرتب الوظيفة"]
["حالة القيد ",null,"لها حيازة ؟"]
["نوع القيد",null,"العدد بالقيراط"]
["له أخوة\n بالمدرسة ؟",null,"قيمة المعاش أو النفقة"]
["المرحلة\n الدراسية",null,"مريضة ؟"]
["اسم الباحث"]
["رأي الباحث"]
[]
[]
["بيانات الحالة"]
["طالب رقم ",141,"اسم أم الطالب","A141"]
["اسم الطالب","محمد حامد","عدد الأخوة"]
["الصف",null,"عدد المتزوجون منهم"]
["اسم ولي الأمر",null,"تسكن بالإيجار ؟"]
["البلد",null,"موظفة ؟"]
["تاريخ الميلاد",null,"مرتب الوظيفة"]
["حالة القيد ",null,"لها حيازة ؟"]
["نوع القيد",null,"العدد بالقيراط"]
["له أخوة\n بالمدرسة ؟",null,"قيمة المعاش أو النفقة"]
["المرحلة\n الدراسية",null,"مريضة ؟"]
["اسم الباحث"]
["رأي الباحث"]
[]
[]
["بيانات الحالة"]
["طالب رقم ",142,"اسم أم الطالب","A142"]
["اسم الطالب","خلود ماهر","عدد الأخوة"]
["الصف",null,"عدد المتزوجون منهم"]
["اسم ولي الأمر",null,"تسكن بالإيجار ؟"]
["البلد",null,"موظفة ؟"]
["تاريخ الميلاد",null,"مرتب الوظيفة"]
["حالة القيد ",null,"لها حيازة ؟"]
["نوع القيد",null,"العدد بالقيراط"]
["له أخوة\n بالمدرسة ؟",null,"قيمة المعاش أو النفقة"]
["المرحلة\n الدراسية",null,"مريضة ؟"]
["اسم الباحث"]
["رأي الباحث"]
[]
[]
["بيانات الحالة"]
["طالب رقم ",143,"اسم أم الطالب","A143"]
["اسم الطالب","احمد محمود","عدد الأخوة"]
["الصف",null,"عدد المتزوجون منهم"]
["اسم ولي الأمر",null,"تسكن بالإيجار ؟"]
["البلد",null,"موظفة ؟"]
["تاريخ الميلاد",null,"مرتب الوظيفة"]
["حالة القيد ",null,"لها حيازة ؟"]
["نوع القيد",null,"العدد بالقيراط"]
["له أخوة\n بالمدرسة ؟",null,"قيمة المعاش أو النفقة"]
["المرحلة\n الدراسية",null,"مريضة ؟"]
["اسم الباحث"]
["رأي الباحث"]
[]
[]
["بيانات الحالة"]
["طالب رقم ",144,"اسم أم الطالب","A144"]
["اسم الطالب","هند علي خميس","عدد الأخوة"]
["الصف",null,"عدد المتزوجون منهم"]
["اسم ولي الأمر",null,"تسكن بالإيجار ؟"]
["البلد",null,"موظفة ؟"]
["تاريخ الميلاد",null,"مرتب الوظيفة"]
["حالة القيد ",null,"لها حيازة ؟"]
["نوع القيد",null,"العدد بالقيراط"]
["له أخوة\n بالمدرسة ؟",null,"قيمة المعاش أو النفقة"]
["المرحلة\n الدراسية",null,"مريضة ؟"]
["اسم الباحث"]
["رأي الباحث"]
[]
[]
["بيانات الحالة"]
["طالب رقم ",145,"اسم أم الطالب","A145"]
["اسم الطالب","سليمان عبد الرحيم","عدد الأخوة"]
["الصف",null,"عدد المتزوجون منهم"]
["اسم ولي الأمر",null,"تسكن بالإيجار ؟"]
["البلد",null,"موظفة ؟"]
["تاريخ الميلاد",null,"مرتب الوظيفة"]
["حالة القيد ",null,"لها حيازة ؟"]
["نوع القيد",null,"العدد بالقيراط"]
["له أخوة\n بالمدرسة ؟",null,"قيمة المعاش أو النفقة"]
["المرحلة\n الدراسية",null,"مريضة ؟"]
["اسم الباحث"]
["رأي الباحث"]
[]
[]
["بيانات الحالة"]
["طالب رقم ",146,"اسم أم الطالب","A146"]
["اسم الطالب","عفت إبراهيم محجوب","عدد الأخوة"]
["الصف",null,"عدد المتزوجون منهم"]
["اسم ولي الأمر",null,"تسكن بالإيجار ؟"]
["البلد",null,"موظفة ؟"]
["تاريخ الميلاد",null,"مرتب الوظيفة"]
["حالة القيد ",null,"لها حيازة ؟"]
["نوع القيد",null,"العدد بالقيراط"]
["له أخوة\n بالمدرسة ؟",null,"قيمة المعاش أو النفقة"]
["المرحلة\n الدراسية",null,"مريضة ؟"]
["اسم الباحث"]
["رأي الباحث"]
[]
[]
["بيانات الحالة"]
["طالب رقم ",147,"اسم أم الطالب","A147"]
["اسم الطالب","إبراهيم منصف عطية","عدد الأخوة"]
["الصف",null,"عدد المتزوجون منهم"]
["اسم ولي الأمر",null,"تسكن بالإيجار ؟"]
["البلد",null,"موظفة ؟"]
["تاريخ الميلاد",null,"مرتب الوظيفة"]
["حالة القيد ",null,"لها حيازة ؟"]
["نوع القيد",null,"العدد بالقيراط"]
["له أخوة\n بالمدرسة ؟",null,"قيمة المعاش أو النفقة"]
["المرحلة\n الدراسية",null,"مريضة ؟"]
["اسم الباحث"]
["رأي الباحث"]
[]
[]
["بيانات الحالة"]
["طالب رقم ",148,"اسم أم الطالب","A148"]
["اسم الطالب","دعاء السعيد علي","عدد الأخوة"]
["الصف",null,"عدد المتزوجون منهم"]
["اسم ولي الأمر",null,"تسكن بالإيجار ؟"]
["البلد",null,"موظفة ؟"]
["تاريخ الميلاد",null,"مرتب الوظيفة"]
["حالة القيد ",null,"لها حيازة ؟"]
["نوع القيد",null,"العدد بالقيراط"]
["له أخوة\n بالمدرسة ؟",null,"قيمة المعاش أو النفقة"]
["المرحلة\n الدراسية",null,"مريضة ؟"]
["اسم الباحث"]
["رأي الباحث"]
[]
[]
["بيانات الحالة"]
["طالب رقم ",149,"اسم أم الطالب","A149"]
["اسم الطالب","محمود طه حسن","عدد الأخوة"]
["الصف",null,"عدد المتزوجون منهم"]
["اسم ولي الأمر",null,"تسكن بالإيجار ؟"]
["البلد",null,"موظفة ؟"]
["تاريخ الميلاد",null,"مرتب الوظيفة"]
["حالة القيد ",null,"لها حيازة ؟"]
["نوع القيد",null,"العدد بالقيراط"]
["له أخوة\n بالمدرسة ؟",null,"قيمة المعاش أو النفقة"]
["المرحلة\n الدراسية",null,"مريضة ؟"]
["اسم الباحث"]
["رأي الباحث"]
[]
[]
["بيانات الحالة"]
["طالب رقم ",150,"اسم أم الطالب","A150"]
["اسم الطالب","هاجر عطية بسيوني","عدد الأخوة"]
["الصف",null,"عدد المتزوجون منهم"]
["اسم ولي الأمر",null,"تسكن بالإيجار ؟"]
["البلد",null,"موظفة ؟"]
["تاريخ الميلاد",null,"مرتب الوظيفة"]
["حالة القيد ",null,"لها حيازة ؟"]
["نوع القيد",null,"العدد بالقيراط"]
["له أخوة\n بالمدرسة ؟",null,"قيمة المعاش أو النفقة"]
["المرحلة\n الدراسية",null,"مريضة ؟"]
["اسم الباحث"]
["رأي الباحث"]
[]
[]
["بيانات الحالة"]
["طالب رقم ",151,"اسم أم الطالب","A151"]
["اسم الطالب","محمد حامد","عدد الأخوة"]
["الصف",null,"عدد المتزوجون منهم"]
["اسم ولي الأمر",null,"تسكن بالإيجار ؟"]
["البلد",null,"موظفة ؟"]
["تاريخ الميلاد",null,"مرتب الوظيفة"]
["حالة القيد ",null,"لها حيازة ؟"]
["نوع القيد",null,"العدد بالقيراط"]
["له أخوة\n بالمدرسة ؟",null,"قيمة المعاش أو النفقة"]
["المرحلة\n الدراسية",null,"مريضة ؟"]
["اسم الباحث"]
["رأي الباحث"]
[]
[]
["بيانات الحالة"]
["طالب رقم ",152,"اسم أم الطالب","A152"]
["اسم الطالب","خلود ماهر","عدد الأخوة"]
["الصف",null,"عدد المتزوجون منهم"]
["اسم ولي الأمر",null,"تسكن بالإيجار ؟"]
["البلد",null,"موظفة ؟"]
["تاريخ الميلاد",null,"مرتب الوظيفة"]
["حالة القيد ",null,"لها حيازة ؟"]
["نوع القيد",null,"العدد بالقيراط"]
["له أخوة\n بالمدرسة ؟",null,"قيمة المعاش أو النفقة"]
["المرحلة\n الدراسية",null,"مريضة ؟"]
["اسم الباحث"]
["رأي الباحث"]
[]
[]
["بيانات الحالة"]
["طالب رقم ",153,"اسم أم الطالب","A153"]
["اسم الطالب","احمد محمود","عدد الأخوة"]
["الصف",null,"عدد المتزوجون منهم"]
["اسم ولي الأمر",null,"تسكن بالإيجار ؟"]
["البلد",null,"موظفة ؟"]
["تاريخ الميلاد",null,"مرتب الوظيفة"]
["حالة القيد ",null,"لها حيازة ؟"]
["نوع القيد",null,"العدد بالقيراط"]
["له أخوة\n بالمدرسة ؟",null,"قيمة المعاش أو النفقة"]
["المرحلة\n الدراسية",null,"مريضة ؟"]
["اسم الباحث"]
["رأي الباحث"]
[]
[]
["بيانات الحالة"]
["طالب رقم ",154,"اسم أم الطالب","A154"]
["اسم الطالب","هند علي خميس","عدد الأخوة"]
["الصف",null,"عدد المتزوجون منهم"]
["اسم ولي الأمر",null,"تسكن بالإيجار ؟"]
["البلد",null,"موظفة ؟"]
["تاريخ الميلاد",null,"مرتب الوظيفة"]
["حالة القيد ",null,"لها حيازة ؟"]
["نوع القيد",null,"العدد بالقيراط"]
["له أخوة\n بالمدرسة ؟",null,"قيمة المعاش أو النفقة"]
["المرحلة\n الدراسية",null,"مريضة ؟"]
["اسم الباحث"]
["رأي الباحث"]
[]
[]
["بيانات الحالة"]
["طالب رقم ",155,"اسم أم الطالب","A155"]
["اسم الطالب","سليمان عبد الرحيم","عدد الأخوة"]
["الصف",null,"عدد المتزوجون منهم"]
["اسم ولي الأمر",null,"تسكن بالإيجار ؟"]
["البلد",null,"موظفة ؟"]
["تاريخ الميلاد",null,"مرتب الوظيفة"]
["حالة القيد ",null,"لها حيازة ؟"]
["نوع القيد",null,"العدد بالقيراط"]
["له أخوة\n بالمدرسة ؟",null,"قيمة المعاش أو النفقة"]
["المرحلة\n الدراسية",null,"مريضة ؟"]
["اسم الباحث"]
["رأي الباحث"]
[]
[]
["بيانات الحالة"]
["طالب رقم ",156,"اسم أم الطالب","A156"]
["اسم الطالب","عفت إبراهيم محجوب","عدد الأخوة"]
["الصف",null,"عدد المتزوجون منهم"]
["اسم ولي الأمر",null,"تسكن بالإيجار ؟"]
["البلد",null,"موظفة ؟"]
["تاريخ الميلاد",null,"مرتب الوظيفة"]
["حالة القيد ",null,"لها حيازة ؟"]
["نوع القيد",null,"العدد بالقيراط"]
["له أخوة\n بالمدرسة ؟",null,"قيمة المعاش أو النفقة"]
["المرحلة\n الدراسية",null,"مريضة ؟"]
["اسم الباحث"]
["رأي الباحث"]
[]
[]
["بيانات الحالة"]
["طالب رقم ",157,"اسم أم الطالب","A157"]
["اسم الطالب","إبراهيم منصف عطية","عدد الأخوة"]
["الصف",null,"عدد المتزوجون منهم"]
["اسم ولي الأمر",null,"تسكن بالإيجار ؟"]
["البلد",null,"موظفة ؟"]
["تاريخ الميلاد",null,"مرتب الوظيفة"]
["حالة القيد ",null,"لها حيازة ؟"]
["نوع القيد",null,"العدد بالقيراط"]
["له أخوة\n بالمدرسة ؟",null,"قيمة المعاش أو النفقة"]
["المرحلة\n الدراسية",null,"مريضة ؟"]
["اسم الباحث"]
["رأي الباحث"]
[]
[]
["بيانات الحالة"]
["طالب رقم ",158,"اسم أم الطالب","A158"]
["اسم الطالب","دعاء السعيد علي","عدد الأخوة"]
["الصف",null,"عدد المتزوجون منهم"]
["اسم ولي الأمر",null,"تسكن بالإيجار ؟"]
["البلد",null,"موظفة ؟"]
["تاريخ الميلاد",null,"مرتب الوظيفة"]
["حالة القيد ",null,"لها حيازة ؟"]
["نوع القيد",null,"العدد بالقيراط"]
["له أخوة\n بالمدرسة ؟",null,"قيمة المعاش أو النفقة"]
["المرحلة\n الدراسية",null,"مريضة ؟"]
["اسم الباحث"]
["رأي الباحث"]
[]
[]
["بيانات الحالة"]
["طالب رقم ",159,"اسم أم الطالب","A159"]
["اسم الطالب","محمود طه حسن","عدد الأخوة"]
["الصف",null,"عدد المتزوجون منهم"]
["اسم ولي الأمر",null,"تسكن بالإيجار ؟"]
["البلد",null,"موظفة ؟"]
["تاريخ الميلاد",null,"مرتب الوظيفة"]
["حالة القيد ",null,"لها حيازة ؟"]
["نوع القيد",null,"العدد بالقيراط"]
["له أخوة\n بالمدرسة ؟",null,"قيمة المعاش أو النفقة"]
["المرحلة\n الدراسية",null,"مريضة ؟"]
["اسم الباحث"]
["رأي الباحث"]
[]
[]
["بيانات الحالة"]
["طالب رقم ",160,"اسم أم الطالب","A160"]
["اسم الطالب","هاجر عطية بسيوني","عدد الأخوة"]
["الصف",null,"عدد المتزوجون منهم"]
["اسم ولي الأمر",null,"تسكن بالإيجار ؟"]
["البلد",null,"موظفة ؟"]
["تاريخ الميلاد",null,"مرتب الوظيفة"]
["حالة القيد ",null,"لها حيازة ؟"]
["نوع القيد",null,"العدد بالقيراط"]
["له أخوة\n بالمدرسة ؟",null,"قيمة المعاش أو النفقة"]
["المرحلة\n الدراسية",null,"مريضة ؟"]
["اسم الباحث"]
["رأي الباحث"]
[]
[]
["بيانات الحالة"]
["طالب رقم ",161,"اسم أم الطالب","A161"]
["اسم الطالب","محمد حامد","عدد الأخوة"]
["الصف",null,"عدد المتزوجون منهم"]
["اسم ولي الأمر",null,"تسكن بالإيجار ؟"]
["البلد",null,"موظفة ؟"]
["تاريخ الميلاد",null,"مرتب الوظيفة"]
["حالة القيد ",null,"لها حيازة ؟"]
["نوع القيد",null,"العدد بالقيراط"]
["له أخوة\n بالمدرسة ؟",null,"قيمة المعاش أو النفقة"]
["المرحلة\n الدراسية",null,"مريضة ؟"]
["اسم الباحث"]
["رأي الباحث"]
[]
[]
["بيانات الحالة"]
["طالب رقم ",162,"اسم أم الطالب","A162"]
["اسم الطالب","خلود ماهر","عدد الأخوة"]
["الصف",null,"عدد المتزوجون منهم"]
["اسم ولي الأمر",null,"تسكن بالإيجار ؟"]
["البلد",null,"موظفة ؟"]
["تاريخ الميلاد",null,"مرتب الوظيفة"]
["حالة القيد ",null,"لها حيازة ؟"]
["نوع القيد",null,"العدد بالقيراط"]
["له أخوة\n بالمدرسة ؟",null,"قيمة المعاش أو النفقة"]
["المرحلة\n الدراسية",null,"مريضة ؟"]
["اسم الباحث"]
["رأي الباحث"]
[]
[]
["بيانات الحالة"]
["طالب رقم ",163,"اسم أم الطالب","A163"]
["اسم الطالب","احمد محمود","عدد الأخوة"]
["الصف",null,"عدد المتزوجون منهم"]
["اسم ولي الأمر",null,"تسكن بالإيجار ؟"]
["البلد",null,"موظفة ؟"]
["تاريخ الميلاد",null,"مرتب الوظيفة"]
["حالة القيد ",null,"لها حيازة ؟"]
["نوع القيد",null,"العدد بالقيراط"]
["له أخوة\n بالمدرسة ؟",null,"قيمة المعاش أو النفقة"]
["المرحلة\n الدراسية",null,"مريضة ؟"]
["اسم الباحث"]
["رأي الباحث"]
[]
[]
["بيانات الحالة"]
["طالب رقم ",164,"اسم أم الطالب","A164"]
["اسم الطالب","هند علي خميس","عدد الأخوة"]
["الصف",null,"عدد المتزوجون منهم"]
["اسم ولي الأمر",null,"تسكن بالإيجار ؟"]
["البلد",null,"موظفة ؟"]
["تاريخ الميلاد",null,"مرتب الوظيفة"]
["حالة القيد ",null,"لها حيازة ؟"]
["نوع القيد",null,"العدد بالقيراط"]
["له أخوة\n بالمدرسة ؟",null,"قيمة المعاش أو النفقة"]
["المرحلة\n الدراسية",null,"مريضة ؟"]
["اسم الباحث"]
["رأي الباحث"]
[]
[]
["بيانات الحالة"]
["طالب رقم ",165,"اسم أم الطالب","A165"]
["اسم الطالب","سليمان عبد الرحيم","عدد الأخوة"]
["الصف",null,"عدد المتزوجون منهم"]
["اسم ولي الأمر",null,"تسكن بالإيجار ؟"]
["البلد",null,"موظفة ؟"]
["تاريخ الميلاد",null,"مرتب الوظيفة"]
["حالة القيد ",null,"لها حيازة ؟"]
["نوع القيد",null,"العدد بالقيراط"]
["له أخوة\n بالمدرسة ؟",null,"قيمة المعاش أو النفقة"]
["المرحلة\n الدراسية",null,"مريضة ؟"]
["اسم الباحث"]
["رأي الباحث"]
[]
[]
["بيانات الحالة"]
["طالب رقم ",166,"اسم أم الطالب","A166"]
["اسم الطالب","عفت إبراهيم محجوب","عدد الأخوة"]
["الصف",null,"عدد المتزوجون منهم"]
["اسم ولي الأمر",null,"تسكن بالإيجار ؟"]
["البلد",null,"موظفة ؟"]
["تاريخ الميلاد",null,"مرتب الوظيفة"]
["حالة القيد ",null,"لها حيازة ؟"]
["نوع القيد",null,"العدد بالقيراط"]
["له أخوة\n بالمدرسة ؟",null,"قيمة المعاش أو النفقة"]
["المرحلة\n الدراسية",null,"مريضة ؟"]
["اسم الباحث"]
["رأي الباحث"]
[]
[]
["بيانات الحالة"]
["طالب رقم ",167,"اسم أم الطالب","A167"]
["اسم الطالب","إبراهيم منصف عطية","عدد الأخوة"]
["الصف",null,"عدد المتزوجون منهم"]
["اسم ولي الأمر",null,"تسكن بالإيجار ؟"]
["البلد",null,"موظفة ؟"]
["تاريخ الميلاد",null,"مرتب الوظيفة"]
["حالة القيد ",null,"لها حيازة ؟"]
["نوع القيد",null,"العدد بالقيراط"]
["له أخوة\n بالمدرسة ؟",null,"قيمة المعاش أو النفقة"]
["المرحلة\n الدراسية",null,"مريضة ؟"]
["اسم الباحث"]
["رأي الباحث"]
[]
[]
["بيانات الحالة"]
["طالب رقم ",168,"اسم أم الطالب","A168"]
["اسم الطالب","دعاء السعيد علي","عدد الأخوة"]
["الصف",null,"عدد المتزوجون منهم"]
["اسم ولي الأمر",null,"تسكن بالإيجار ؟"]
["البلد",null,"موظفة ؟"]
["تاريخ الميلاد",null,"مرتب الوظيفة"]
["حالة القيد ",null,"لها حيازة ؟"]
["نوع القيد",null,"العدد بالقيراط"]
["له أخوة\n بالمدرسة ؟",null,"قيمة المعاش أو النفقة"]
["المرحلة\n الدراسية",null,"مريضة ؟"]
["اسم الباحث"]
["رأي الباحث"]
[]
[]
["بيانات الحالة"]
["طالب رقم ",169,"اسم أم الطالب","A169"]
["اسم الطالب","محمود طه حسن","عدد الأخوة"]
["الصف",null,"عدد المتزوجون منهم"]
["اسم ولي الأمر",null,"تسكن بالإيجار ؟"]
["البلد",null,"موظفة ؟"]
["تاريخ الميلاد",null,"مرتب الوظيفة"]
["حالة القيد ",null,"لها حيازة ؟"]
["نوع القيد",null,"العدد بالقيراط"]
["له أخوة\n بالمدرسة ؟",null,"قيمة المعاش أو النفقة"]
["المرحلة\n الدراسية",null,"مريضة ؟"]
["اسم الباحث"]
["رأي الباحث"]
[]
[]
["بيانات الحالة"]
["طالب رقم ",170,"اسم أم الطالب","A170"]
["اسم الطالب","هاجر عطية بسيوني","عدد الأخوة"]
["الصف",null,"عدد المتزوجون منهم"]
["اسم ولي الأمر",null,"تسكن بالإيجار ؟"]
["البلد",null,"موظفة ؟"]
["تاريخ الميلاد",null,"مرتب الوظيفة"]
["حالة القيد ",null,"لها حيازة ؟"]
["نوع القيد",null,"العدد بالقيراط"]
["له أخوة\n بالمدرسة ؟",null,"قيمة المعاش أو النفقة"]
["المرحلة\n الدراسية",null,"مريضة ؟"]
["اسم الباحث"]
["رأي الباحث"]
[]
[]
["بيانات الحالة"]
["طالب رقم ",171,"اسم أم الطالب","A171"]
["اسم الطالب","محمد حامد","عدد الأخوة"]
["الصف",null,"عدد المتزوجون منهم"]
["اسم ولي الأمر",null,"تسكن بالإيجار ؟"]
["البلد",null,"موظفة ؟"]
["تاريخ الميلاد",null,"مرتب الوظيفة"]
["حالة القيد ",null,"لها حيازة ؟"]
["نوع القيد",null,"العدد بالقيراط"]
["له أخوة\n بالمدرسة ؟",null,"قيمة المعاش أو النفقة"]
["المرحلة\n الدراسية",null,"مريضة ؟"]
["اسم الباحث"]
["رأي الباحث"]
[]
[]
["بيانات الحالة"]
["طالب رقم ",172,"اسم أم الطالب","A172"]
["اسم الطالب","خلود ماهر","عدد الأخوة"]
["الصف",null,"عدد المتزوجون منهم"]
["اسم ولي الأمر",null,"تسكن بالإيجار ؟"]
["البلد",null,"موظفة ؟"]
["تاريخ الميلاد",null,"مرتب الوظيفة"]
["حالة القيد ",null,"لها حيازة ؟"]
["نوع القيد",null,"العدد بالقيراط"]
["له أخوة\n بالمدرسة ؟",null,"قيمة المعاش أو النفقة"]
["المرحلة\n الدراسية",null,"مريضة ؟"]
["اسم الباحث"]
["رأي الباحث"]
[]
[]
["بيانات الحالة"]
["طالب رقم ",173,"اسم أم الطالب","A173"]
["اسم الطالب","احمد محمود","عدد الأخوة"]
["الصف",null,"عدد المتزوجون منهم"]
["اسم ولي الأمر",null,"تسكن بالإيجار ؟"]
["البلد",null,"موظفة ؟"]
["تاريخ الميلاد",null,"مرتب الوظيفة"]
["حالة القيد ",null,"لها حيازة ؟"]
["نوع القيد",null,"العدد بالقيراط"]
["له أخوة\n بالمدرسة ؟",null,"قيمة المعاش أو النفقة"]
["المرحلة\n الدراسية",null,"مريضة ؟"]
["اسم الباحث"]
["رأي الباحث"]
[]
[]
["بيانات الحالة"]
["طالب رقم ",174,"اسم أم الطالب","A174"]
["اسم الطالب","هند علي خميس","عدد الأخوة"]
["الصف",null,"عدد المتزوجون منهم"]
["اسم ولي الأمر",null,"تسكن بالإيجار ؟"]
["البلد",null,"موظفة ؟"]
["تاريخ الميلاد",null,"مرتب الوظيفة"]
["حالة القيد ",null,"لها حيازة ؟"]
["نوع القيد",null,"العدد بالقيراط"]
["له أخوة\n بالمدرسة ؟",null,"قيمة المعاش أو النفقة"]
["المرحلة\n الدراسية",null,"مريضة ؟"]
["اسم الباحث"]
["رأي الباحث"]
[]
[]
["بيانات الحالة"]
["طالب رقم ",175,"اسم أم الطالب","A175"]
["اسم الطالب","سليمان عبد الرحيم","عدد الأخوة"]
["الصف",null,"عدد المتزوجون منهم"]
["اسم ولي الأمر",null,"تسكن بالإيجار ؟"]
["البلد",null,"موظفة ؟"]
["تاريخ الميلاد",null,"مرتب الوظيفة"]
["حالة القيد ",null,"لها حيازة ؟"]
["نوع القيد",null,"العدد بالقيراط"]
["له أخوة\n بالمدرسة ؟",null,"قيمة المعاش أو النفقة"]
["المرحلة\n الدراسية",null,"مريضة ؟"]
["اسم الباحث"]
["رأي الباحث"]
[]
[]
["بيانات الحالة"]
["طالب رقم ",176,"اسم أم الطالب","A176"]
["اسم الطالب","عفت إبراهيم محجوب","عدد الأخوة"]
["الصف",null,"عدد المتزوجون منهم"]
["اسم ولي الأمر",null,"تسكن بالإيجار ؟"]
["البلد",null,"موظفة ؟"]
["تاريخ الميلاد",null,"مرتب الوظيفة"]
["حالة القيد ",null,"لها حيازة ؟"]
["نوع القيد",null,"العدد بالقيراط"]
["له أخوة\n بالمدرسة ؟",null,"قيمة المعاش أو النفقة"]
["المرحلة\n الدراسية",null,"مريضة ؟"]
["اسم الباحث"]
["رأي الباحث"]
[]
[]
["بيانات الحالة"]
["طالب رقم ",177,"اسم أم الطالب","A177"]
["اسم الطالب","إبراهيم منصف عطية","عدد الأخوة"]
["الصف",null,"عدد المتزوجون منهم"]
["اسم ولي الأمر",null,"تسكن بالإيجار ؟"]
["البلد",null,"موظفة ؟"]
["تاريخ الميلاد",null,"مرتب الوظيفة"]
["حالة القيد ",null,"لها حيازة ؟"]
["نوع القيد",null,"العدد بالقيراط"]
["له أخوة\n بالمدرسة ؟",null,"قيمة المعاش أو النفقة"]
["المرحلة\n الدراسية",null,"مريضة ؟"]
["اسم الباحث"]
["رأي الباحث"]
[]
[]
["بيانات الحالة"]
["طالب رقم ",178,"اسم أم الطالب","A178"]
["اسم الطالب","دعاء السعيد علي","عدد الأخوة"]
["الصف",null,"عدد المتزوجون منهم"]
["اسم ولي الأمر",null,"تسكن بالإيجار ؟"]
["البلد",null,"موظفة ؟"]
["تاريخ الميلاد",null,"مرتب الوظيفة"]
["حالة القيد ",null,"لها حيازة ؟"]
["نوع القيد",null,"العدد بالقيراط"]
["له أخوة\n بالمدرسة ؟",null,"قيمة المعاش أو النفقة"]
["المرحلة\n الدراسية",null,"مريضة ؟"]
["اسم الباحث"]
["رأي الباحث"]
[]
[]
["بيانات الحالة"]
["طالب رقم ",179,"اسم أم الطالب","A179"]
["اسم الطالب","محمود طه حسن","عدد الأخوة"]
["الصف",null,"عدد المتزوجون منهم"]
["اسم ولي الأمر",null,"تسكن بالإيجار ؟"]
["البلد",null,"موظفة ؟"]
["تاريخ الميلاد",null,"مرتب الوظيفة"]
["حالة القيد ",null,"لها حيازة ؟"]
["نوع القيد",null,"العدد بالقيراط"]
["له أخوة\n بالمدرسة ؟",null,"قيمة المعاش أو النفقة"]
["المرحلة\n الدراسية",null,"مريضة ؟"]
["اسم الباحث"]
["رأي الباحث"]
[]
[]
["بيانات الحالة"]
["طالب رقم ",180,"اسم أم الطالب","A180"]
["اسم الطالب","هاجر عطية بسيوني","عدد الأخوة"]
["الصف",null,"عدد المتزوجون منهم"]
["اسم ولي الأمر",null,"تسكن بالإيجار ؟"]
["البلد",null,"موظفة ؟"]
["تاريخ الميلاد",null,"مرتب الوظيفة"]
["حالة القيد ",null,"لها حيازة ؟"]
["نوع القيد",null,"العدد بالقيراط"]
["له أخوة\n بالمدرسة ؟",null,"قيمة المعاش أو النفقة"]
["المرحلة\n الدراسية",null,"مريضة ؟"]
["اسم الباحث"]
["رأي الباحث"]
[]
[]
["بيانات الحالة"]
["طالب رقم ",181,"اسم أم الطالب","A181"]
["اسم الطالب","محمد حامد","عدد الأخوة"]
["الصف",null,"عدد المتزوجون منهم"]
["اسم ولي الأمر",null,"تسكن بالإيجار ؟"]
["البلد",null,"موظفة ؟"]
["تاريخ الميلاد",null,"مرتب الوظيفة"]
["حالة القيد ",null,"لها حيازة ؟"]
["نوع القيد",null,"العدد بالقيراط"]
["له أخوة\n بالمدرسة ؟",null,"قيمة المعاش أو النفقة"]
["المرحلة\n الدراسية",null,"مريضة ؟"]
["اسم الباحث"]
["رأي الباحث"]
[]
[]
["بيانات الحالة"]
["طالب رقم ",182,"اسم أم الطالب","A182"]
["اسم الطالب","خلود ماهر","عدد الأخوة"]
["الصف",null,"عدد المتزوجون منهم"]
["اسم ولي الأمر",null,"تسكن بالإيجار ؟"]
["البلد",null,"موظفة ؟"]
["تاريخ الميلاد",null,"مرتب الوظيفة"]
["حالة القيد ",null,"لها حيازة ؟"]
["نوع القيد",null,"العدد بالقيراط"]
["له أخوة\n بالمدرسة ؟",null,"قيمة المعاش أو النفقة"]
["المرحلة\n الدراسية",null,"مريضة ؟"]
["اسم الباحث"]
["رأي الباحث"]
[]
[]
["بيانات الحالة"]
["طالب رقم ",183,"اسم أم الطالب","A183"]
["اسم الطالب","احمد محمود","عدد الأخوة"]
["الصف",null,"عدد المتزوجون منهم"]
["اسم ولي الأمر",null,"تسكن بالإيجار ؟"]
["البلد",null,"موظفة ؟"]
["تاريخ الميلاد",null,"مرتب الوظيفة"]
["حالة القيد ",null,"لها حيازة ؟"]
["نوع القيد",null,"العدد بالقيراط"]
["له أخوة\n بالمدرسة ؟",null,"قيمة المعاش أو النفقة"]
["المرحلة\n الدراسية",null,"مريضة ؟"]
["اسم الباحث"]
["رأي الباحث"]
[]
[]
["بيانات الحالة"]
["طالب رقم ",184,"اسم أم الطالب","A184"]
["اسم الطالب","هند علي خميس","عدد الأخوة"]
["الصف",null,"عدد المتزوجون منهم"]
["اسم ولي الأمر",null,"تسكن بالإيجار ؟"]
["البلد",null,"موظفة ؟"]
["تاريخ الميلاد",null,"مرتب الوظيفة"]
["حالة القيد ",null,"لها حيازة ؟"]
["نوع القيد",null,"العدد بالقيراط"]
["له أخوة\n بالمدرسة ؟",null,"قيمة المعاش أو النفقة"]
["المرحلة\n الدراسية",null,"مريضة ؟"]
["اسم الباحث"]
["رأي الباحث"]
[]
[]
["بيانات الحالة"]
["طالب رقم ",185,"اسم أم الطالب","A185"]
["اسم الطالب","سليمان عبد الرحيم","عدد الأخوة"]
["الصف",null,"عدد المتزوجون منهم"]
["اسم ولي الأمر",null,"تسكن بالإيجار ؟"]
["البلد",null,"موظفة ؟"]
["تاريخ الميلاد",null,"مرتب الوظيفة"]
["حالة القيد ",null,"لها حيازة ؟"]
["نوع القيد",null,"العدد بالقيراط"]
["له أخوة\n بالمدرسة ؟",null,"قيمة المعاش أو النفقة"]
["المرحلة\n الدراسية",null,"مريضة ؟"]
["اسم الباحث"]
["رأي الباحث"]
[]
[]
["بيانات الحالة"]
["طالب رقم ",186,"اسم أم الطالب","A186"]
["اسم الطالب","عفت إبراهيم محجوب","عدد الأخوة"]
["الصف",null,"عدد المتزوجون منهم"]
["اسم ولي الأمر",null,"تسكن بالإيجار ؟"]
["البلد",null,"موظفة ؟"]
["تاريخ الميلاد",null,"مرتب الوظيفة"]
["حالة القيد ",null,"لها حيازة ؟"]
["نوع القيد",null,"العدد بالقيراط"]
["له أخوة\n بالمدرسة ؟",null,"قيمة المعاش أو النفقة"]
["المرحلة\n الدراسية",null,"مريضة ؟"]
["اسم الباحث"]
["رأي الباحث"]
[]
[]
["بيانات الحالة"]
["طالب رقم ",187,"اسم أم الطالب","A187"]
["اسم الطالب","إبراهيم منصف عطية","عدد الأخوة"]
["الصف",null,"عدد المتزوجون منهم"]
["اسم ولي الأمر",null,"تسكن بالإيجار ؟"]
["البلد",null,"موظفة ؟"]
["تاريخ الميلاد",null,"مرتب الوظيفة"]
["حالة القيد ",null,"لها حيازة ؟"]
["نوع القيد",null,"العدد بالقيراط"]
["له أخوة\n بالمدرسة ؟",null,"قيمة المعاش أو النفقة"]
["المرحلة\n الدراسية",null,"مريضة ؟"]
["اسم الباحث"]
["رأي الباحث"]
[]
[]
["بيانات الحالة"]
["طالب رقم ",188,"اسم أم الطالب","A188"]
["اسم الطالب","دعاء السعيد علي","عدد الأخوة"]
["الصف",null,"عدد المتزوجون منهم"]
["اسم ولي الأمر",null,"تسكن بالإيجار ؟"]
["البلد",null,"موظفة ؟"]
["تاريخ الميلاد",null,"مرتب الوظيفة"]
["حالة القيد ",null,"لها حيازة ؟"]
["نوع القيد",null,"العدد بالقيراط"]
["له أخوة\n بالمدرسة ؟",null,"قيمة المعاش أو النفقة"]
["المرحلة\n الدراسية",null,"مريضة ؟"]
["اسم الباحث"]
["رأي الباحث"]
[]
[]
["بيانات الحالة"]
["طالب رقم ",189,"اسم أم الطالب","A189"]
["اسم الطالب","محمود طه حسن","عدد الأخوة"]
["الصف",null,"عدد المتزوجون منهم"]
["اسم ولي الأمر",null,"تسكن بالإيجار ؟"]
["البلد",null,"موظفة ؟"]
["تاريخ الميلاد",null,"مرتب الوظيفة"]
["حالة القيد ",null,"لها حيازة ؟"]
["نوع القيد",null,"العدد بالقيراط"]
["له أخوة\n بالمدرسة ؟",null,"قيمة المعاش أو النفقة"]
["المرحلة\n الدراسية",null,"مريضة ؟"]
["اسم الباحث"]
["رأي الباحث"]
[]
[]
["بيانات الحالة"]
["طالب رقم ",190,"اسم أم الطالب","A190"]
["اسم الطالب","هاجر عطية بسيوني","عدد الأخوة"]
["الصف",null,"عدد المتزوجون منهم"]
["اسم ولي الأمر",null,"تسكن بالإيجار ؟"]
["البلد",null,"موظفة ؟"]
["تاريخ الميلاد",null,"مرتب الوظيفة"]
["حالة القيد ",null,"لها حيازة ؟"]
["نوع القيد",null,"العدد بالقيراط"]
["له أخوة\n بالمدرسة ؟",null,"قيمة المعاش أو النفقة"]
["المرحلة\n الدراسية",null,"مريضة ؟"]
["اسم الباحث"]
["رأي الباحث"]
[]
[]
["بيانات الحالة"]
["طالب رقم ",191,"اسم أم الطالب","A191"]
["اسم الطالب","محمد حامد","عدد الأخوة"]
["الصف",null,"عدد المتزوجون منهم"]
["اسم ولي الأمر",null,"تسكن بالإيجار ؟"]
["البلد",null,"موظفة ؟"]
["تاريخ الميلاد",null,"مرتب الوظيفة"]
["حالة القيد ",null,"لها حيازة ؟"]
["نوع القيد",null,"العدد بالقيراط"]
["له أخوة\n بالمدرسة ؟",null,"قيمة المعاش أو النفقة"]
["المرحلة\n الدراسية",null,"مريضة ؟"]
["اسم الباحث"]
["رأي الباحث"]
[]
[]
["بيانات الحالة"]
["طالب رقم ",192,"اسم أم الطالب","A192"]
["اسم الطالب","خلود ماهر","عدد الأخوة"]
["الصف",null,"عدد المتزوجون منهم"]
["اسم ولي الأمر",null,"تسكن بالإيجار ؟"]
["البلد",null,"موظفة ؟"]
["تاريخ الميلاد",null,"مرتب الوظيفة"]
["حالة القيد ",null,"لها حيازة ؟"]
["نوع القيد",null,"العدد بالقيراط"]
["له أخوة\n بالمدرسة ؟",null,"قيمة المعاش أو النفقة"]
["المرحلة\n الدراسية",null,"مريضة ؟"]
["اسم الباحث"]
["رأي الباحث"]
[]
[]
["بيانات الحالة"]
["طالب رقم ",193,"اسم أم الطالب","A193"]
["اسم الطالب","احمد محمود","عدد الأخوة"]
["الصف",null,"عدد المتزوجون منهم"]
["اسم ولي الأمر",null,"تسكن بالإيجار ؟"]
["البلد",null,"موظفة ؟"]
["تاريخ الميلاد",null,"مرتب الوظيفة"]
["حالة القيد ",null,"لها حيازة ؟"]
["نوع القيد",null,"العدد بالقيراط"]
["له أخوة\n بالمدرسة ؟",null,"قيمة المعاش أو النفقة"]
["المرحلة\n الدراسية",null,"مريضة ؟"]
["اسم الباحث"]
["رأي الباحث"]
[]
[]
["بيانات الحالة"]
["طالب رقم ",194,"اسم أم الطالب","A194"]
["اسم الطالب","هند علي خميس","عدد الأخوة"]
["الصف",null,"عدد المتزوجون منهم"]
["اسم ولي الأمر",null,"تسكن بالإيجار ؟"]
["البلد",null,"موظفة ؟"]
["تاريخ الميلاد",null,"مرتب الوظيفة"]
["حالة القيد ",null,"لها حيازة ؟"]
["نوع القيد",null,"العدد بالقيراط"]
["له أخوة\n بالمدرسة ؟",null,"قيمة المعاش أو النفقة"]
["المرحلة\n الدراسية",null,"مريضة ؟"]
["اسم الباحث"]
["رأي الباحث"]
[]
[]
["بيانات الحالة"]
["طالب رقم ",195,"اسم أم الطالب","A195"]
["اسم الطالب","سليمان عبد الرحيم","عدد الأخوة"]
["الصف",null,"عدد المتزوجون منهم"]
["اسم ولي الأمر",null,"تسكن بالإيجار ؟"]
["البلد",null,"موظفة ؟"]
["تاريخ الميلاد",null,"مرتب الوظيفة"]
["حالة القيد ",null,"لها حيازة ؟"]
["نوع القيد",null,"العدد بالقيراط"]
["له أخوة\n بالمدرسة ؟",null,"قيمة المعاش أو النفقة"]
["المرحلة\n الدراسية",null,"مريضة ؟"]
["اسم الباحث"]
["رأي الباحث"]
[]
[]
["بيانات الحالة"]
["طالب رقم ",196,"اسم أم الطالب","A196"]
["اسم الطالب","عفت إبراهيم محجوب","عدد الأخوة"]
["الصف",null,"عدد المتزوجون منهم"]
["اسم ولي الأمر",null,"تسكن بالإيجار ؟"]
["البلد",null,"موظفة ؟"]
["تاريخ الميلاد",null,"مرتب الوظيفة"]
["حالة القيد ",null,"لها حيازة ؟"]
["نوع القيد",null,"العدد بالقيراط"]
["له أخوة\n بالمدرسة ؟",null,"قيمة المعاش أو النفقة"]
["المرحلة\n الدراسية",null,"مريضة ؟"]
["اسم الباحث"]
["رأي الباحث"]
[]
[]
["بيانات الحالة"]
["طالب رقم ",197,"اسم أم الطالب","A197"]
["اسم الطالب","إبراهيم منصف عطية","عدد الأخوة"]
["الصف",null,"عدد المتزوجون منهم"]
["اسم ولي الأمر",null,"تسكن بالإيجار ؟"]
["البلد",null,"موظفة ؟"]
["تاريخ الميلاد",null,"مرتب الوظيفة"]
["حالة القيد ",null,"لها حيازة ؟"]
["نوع القيد",null,"العدد بالقيراط"]
["له أخوة\n بالمدرسة ؟",null,"قيمة المعاش أو النفقة"]
["المرحلة\n الدراسية",null,"مريضة ؟"]
["اسم الباحث"]
["رأي الباحث"]
[]
[]
["بيانات الحالة"]
["طالب رقم ",198,"اسم أم الطالب","A198"]
["اسم الطالب","دعاء السعيد علي","عدد الأخوة"]
["الصف",null,"عدد المتزوجون منهم"]
["اسم ولي الأمر",null,"تسكن بالإيجار ؟"]
["البلد",null,"موظفة ؟"]
["تاريخ الميلاد",null,"مرتب الوظيفة"]
["حالة القيد ",null,"لها حيازة ؟"]
["نوع القيد",null,"العدد بالقيراط"]
["له أخوة\n بالمدرسة ؟",null,"قيمة المعاش أو النفقة"]
["المرحلة\n الدراسية",null,"مريضة ؟"]
["اسم الباحث"]
["رأي الباحث"]
[]
[]
["بيانات الحالة"]
["طالب رقم ",199,"اسم أم الطالب","A199"]
["اسم الطالب","محمود طه حسن","عدد الأخوة"]
["الصف",null,"عدد المتزوجون منهم"]
["اسم ولي الأمر",null,"تسكن بالإيجار ؟"]
["البلد",null,"موظفة ؟"]
["تاريخ الميلاد",null,"مرتب الوظيفة"]
["حالة القيد ",null,"لها حيازة ؟"]
["نوع القيد",null,"العدد بالقيراط"]
["له أخوة\n بالمدرسة ؟",null,"قيمة المعاش أو النفقة"]
["المرحلة\n الدراسية",null,"مريضة ؟"]
["اسم الباحث"]
["رأي الباحث"]
[]
[]
["بيانات الحالة"]
["طالب رقم ",200,"اسم أم الطالب","A200"]
["اسم الطالب","هاجر عطية بسيوني","عدد الأخوة"]
["الصف",null,"عدد المتزوجون منهم"]
["اسم ولي الأمر",null,"تسكن بالإيجار ؟"]
["البلد",null,"موظفة ؟"]
["تاريخ الميلاد",null,"مرتب الوظيفة"]
["حالة القيد ",null,"لها حيازة ؟"]
["نوع القيد",null,"العدد بالقيراط"]
["له أخوة\n بالمدرسة ؟",null,"قيمة المعاش أو النفقة"]
["المرحلة\n الدراسية",null,"مريضة ؟"]
["اسم الباحث"]
["رأي الباحث"]
[]
[]
["بيانات الحالة"]
["طالب رقم ",201,"اسم أم الطالب","A201"]
["اسم الطالب","محمد حامد","عدد الأخوة"]
["الصف",null,"عدد المتزوجون منهم"]
["اسم ولي الأمر",null,"تسكن بالإيجار ؟"]
["البلد",null,"موظفة ؟"]
["تاريخ الميلاد",null,"مرتب الوظيفة"]
["حالة القيد ",null,"لها حيازة ؟"]
["نوع القيد",null,"العدد بالقيراط"]
["له أخوة\n بالمدرسة ؟",null,"قيمة المعاش أو النفقة"]
["المرحلة\n الدراسية",null,"مريضة ؟"]
["اسم الباحث"]
["رأي الباحث"]
[]
[]
["بيانات الحالة"]
["طالب رقم ",202,"اسم أم الطالب","A202"]
["اسم الطالب","خلود ماهر","عدد الأخوة"]
["الصف",null,"عدد المتزوجون منهم"]
["اسم ولي الأمر",null,"تسكن بالإيجار ؟"]
["البلد",null,"موظفة ؟"]
["تاريخ الميلاد",null,"مرتب الوظيفة"]
["حالة القيد ",null,"لها حيازة ؟"]
["نوع القيد",null,"العدد بالقيراط"]
["له أخوة\n بالمدرسة ؟",null,"قيمة المعاش أو النفقة"]
["المرحلة\n الدراسية",null,"مريضة ؟"]
["اسم الباحث"]
["رأي الباحث"]
[]
[]
["بيانات الحالة"]
["طالب رقم ",203,"اسم أم الطالب","A203"]
["اسم الطالب","احمد محمود","عدد الأخوة"]
["الصف",null,"عدد المتزوجون منهم"]
["اسم ولي الأمر",null,"تسكن بالإيجار ؟"]
["البلد",null,"موظفة ؟"]
["تاريخ الميلاد",null,"مرتب الوظيفة"]
["حالة القيد ",null,"لها حيازة ؟"]
["نوع القيد",null,"العدد بالقيراط"]
["له أخوة\n بالمدرسة ؟",null,"قيمة المعاش أو النفقة"]
["المرحلة\n الدراسية",null,"مريضة ؟"]
["اسم الباحث"]
["رأي الباحث"]
[]
[]
["بيانات الحالة"]
["طالب رقم ",204,"اسم أم الطالب","A204"]
["اسم الطالب","هند علي خميس","عدد الأخوة"]
["الصف",null,"عدد المتزوجون منهم"]
["اسم ولي الأمر",null,"تسكن بالإيجار ؟"]
["البلد",null,"موظفة ؟"]
["تاريخ الميلاد",null,"مرتب الوظيفة"]
["حالة القيد ",null,"لها حيازة ؟"]
["نوع القيد",null,"العدد بالقيراط"]
["له أخوة\n بالمدرسة ؟",null,"قيمة المعاش أو النفقة"]
["المرحلة\n الدراسية",null,"مريضة ؟"]
["اسم الباحث"]
["رأي الباحث"]
[]
[]
["بيانات الحالة"]
["طالب رقم ",205,"اسم أم الطالب","A205"]
["اسم الطالب","سليمان عبد الرحيم","عدد الأخوة"]
["الصف",null,"عدد المتزوجون منهم"]
["اسم ولي الأمر",null,"تسكن بالإيجار ؟"]
["البلد",null,"موظفة ؟"]
["تاريخ الميلاد",null,"مرتب الوظيفة"]
["حالة القيد ",null,"لها حيازة ؟"]
["نوع القيد",null,"العدد بالقيراط"]
["له أخوة\n بالمدرسة ؟",null,"قيمة المعاش أو النفقة"]
["المرحلة\n الدراسية",null,"مريضة ؟"]
["اسم الباحث"]
["رأي الباحث"]
[]
[]
["بيانات الحالة"]
["طالب رقم ",206,"اسم أم الطالب","A206"]
["اسم الطالب","عفت إبراهيم محجوب","عدد الأخوة"]
["الصف",null,"عدد المتزوجون منهم"]
["اسم ولي الأمر",null,"تسكن بالإيجار ؟"]
["البلد",null,"موظفة ؟"]
["تاريخ الميلاد",null,"مرتب الوظيفة"]
["حالة القيد ",null,"لها حيازة ؟"]
["نوع القيد",null,"العدد بالقيراط"]
["له أخوة\n بالمدرسة ؟",null,"قيمة المعاش أو النفقة"]
["المرحلة\n الدراسية",null,"مريضة ؟"]
["اسم الباحث"]
["رأي الباحث"]
[]
[]
["بيانات الحالة"]
["طالب رقم ",207,"اسم أم الطالب","A207"]
["اسم الطالب","إبراهيم منصف عطية","عدد الأخوة"]
["الصف",null,"عدد المتزوجون منهم"]
["اسم ولي الأمر",null,"تسكن بالإيجار ؟"]
["البلد",null,"موظفة ؟"]
["تاريخ الميلاد",null,"مرتب الوظيفة"]
["حالة القيد ",null,"لها حيازة ؟"]
["نوع القيد",null,"العدد بالقيراط"]
["له أخوة\n بالمدرسة ؟",null,"قيمة المعاش أو النفقة"]
["المرحلة\n الدراسية",null,"مريضة ؟"]
["اسم الباحث"]
["رأي الباحث"]
[]
[]
["بيانات الحالة"]
["طالب رقم ",208,"اسم أم الطالب","A208"]
["اسم الطالب","دعاء السعيد علي","عدد الأخوة"]
["الصف",null,"عدد المتزوجون منهم"]
["اسم ولي الأمر",null,"تسكن بالإيجار ؟"]
["البلد",null,"موظفة ؟"]
["تاريخ الميلاد",null,"مرتب الوظيفة"]
["حالة القيد ",null,"لها حيازة ؟"]
["نوع القيد",null,"العدد بالقيراط"]
["له أخوة\n بالمدرسة ؟",null,"قيمة المعاش أو النفقة"]
["المرحلة\n الدراسية",null,"مريضة ؟"]
["اسم الباحث"]
["رأي الباحث"]
[]
[]
["بيانات الحالة"]
["طالب رقم ",209,"اسم أم الطالب","A209"]
["اسم الطالب","محمود طه حسن","عدد الأخوة"]
["الصف",null,"عدد المتزوجون منهم"]
["اسم ولي الأمر",null,"تسكن بالإيجار ؟"]
["البلد",null,"موظفة ؟"]
["تاريخ الميلاد",null,"مرتب الوظيفة"]
["حالة القيد ",null,"لها حيازة ؟"]
["نوع القيد",null,"العدد بالقيراط"]
["له أخوة\n بالمدرسة ؟",null,"قيمة المعاش أو النفقة"]
["المرحلة\n الدراسية",null,"مريضة ؟"]
["اسم الباحث"]
["رأي الباحث"]
[]
[]
["بيانات الحالة"]
["طالب رقم ",210,"اسم أم الطالب","A210"]
["اسم الطالب","هاجر عطية بسيوني","عدد الأخوة"]
["الصف",null,"عدد المتزوجون منهم"]
["اسم ولي الأمر",null,"تسكن بالإيجار ؟"]
["البلد",null,"موظفة ؟"]
["تاريخ الميلاد",null,"مرتب الوظيفة"]
["حالة القيد ",null,"لها حيازة ؟"]
["نوع القيد",null,"العدد بالقيراط"]
["له أخوة\n بالمدرسة ؟",null,"قيمة المعاش أو النفقة"]
["المرحلة\n الدراسية",null,"مريضة ؟"]
["اسم الباحث"]
["رأي الباحث"]
[]
[]
["بيانات الحالة"]
["طالب رقم ",211,"اسم أم الطالب","A211"]
["اسم الطالب","محمد حامد","عدد الأخوة"]
["الصف",null,"عدد المتزوجون منهم"]
["اسم ولي الأمر",null,"تسكن بالإيجار ؟"]
["البلد",null,"موظفة ؟"]
["تاريخ الميلاد",null,"مرتب الوظيفة"]
["حالة القيد ",null,"لها حيازة ؟"]
["نوع القيد",null,"العدد بالقيراط"]
["له أخوة\n بالمدرسة ؟",null,"قيمة المعاش أو النفقة"]
["المرحلة\n الدراسية",null,"مريضة ؟"]
["اسم الباحث"]
["رأي الباحث"]
[]
[]
["بيانات الحالة"]
["طالب رقم ",212,"اسم أم الطالب","A212"]
["اسم الطالب","خلود ماهر","عدد الأخوة"]
["الصف",null,"عدد المتزوجون منهم"]
["اسم ولي الأمر",null,"تسكن بالإيجار ؟"]
["البلد",null,"موظفة ؟"]
["تاريخ الميلاد",null,"مرتب الوظيفة"]
["حالة القيد ",null,"لها حيازة ؟"]
["نوع القيد",null,"العدد بالقيراط"]
["له أخوة\n بالمدرسة ؟",null,"قيمة المعاش أو النفقة"]
["المرحلة\n الدراسية",null,"مريضة ؟"]
["اسم الباحث"]
["رأي الباحث"]
[]
[]
["بيانات الحالة"]
["طالب رقم ",213,"اسم أم الطالب","A213"]
["اسم الطالب","احمد محمود","عدد الأخوة"]
["الصف",null,"عدد المتزوجون منهم"]
["اسم ولي الأمر",null,"تسكن بالإيجار ؟"]
["البلد",null,"موظفة ؟"]
["تاريخ الميلاد",null,"مرتب الوظيفة"]
["حالة القيد ",null,"لها حيازة ؟"]
["نوع القيد",null,"العدد بالقيراط"]
["له أخوة\n بالمدرسة ؟",null,"قيمة المعاش أو النفقة"]
["المرحلة\n الدراسية",null,"مريضة ؟"]
["اسم الباحث"]
["رأي الباحث"]
[]
[]
["بيانات الحالة"]
["طالب رقم ",214,"اسم أم الطالب","A214"]
["اسم الطالب","هند علي خميس","عدد الأخوة"]
["الصف",null,"عدد المتزوجون منهم"]
["اسم ولي الأمر",null,"تسكن بالإيجار ؟"]
["البلد",null,"موظفة ؟"]
["تاريخ الميلاد",null,"مرتب الوظيفة"]
["حالة القيد ",null,"لها حيازة ؟"]
["نوع القيد",null,"العدد بالقيراط"]
["له أخوة\n بالمدرسة ؟",null,"قيمة المعاش أو النفقة"]
["المرحلة\n الدراسية",null,"مريضة ؟"]
["اسم الباحث"]
["رأي الباحث"]
[]
[]
["بيانات الحالة"]
["طالب رقم ",215,"اسم أم الطالب","A215"]
["اسم الطالب","سليمان عبد الرحيم","عدد الأخوة"]
["الصف",null,"عدد المتزوجون منهم"]
["اسم ولي الأمر",null,"تسكن بالإيجار ؟"]
["البلد",null,"موظفة ؟"]
["تاريخ الميلاد",null,"مرتب الوظيفة"]
["حالة القيد ",null,"لها حيازة ؟"]
["نوع القيد",null,"العدد بالقيراط"]
["له أخوة\n بالمدرسة ؟",null,"قيمة المعاش أو النفقة"]
["المرحلة\n الدراسية",null,"مريضة ؟"]
["اسم الباحث"]
["رأي الباحث"]
[]
[]
["بيانات الحالة"]
["طالب رقم ",216,"اسم أم الطالب","A216"]
["اسم الطالب","عفت إبراهيم محجوب","عدد الأخوة"]
["الصف",null,"عدد المتزوجون منهم"]
["اسم ولي الأمر",null,"تسكن بالإيجار ؟"]
["البلد",null,"موظفة ؟"]
["تاريخ الميلاد",null,"مرتب الوظيفة"]
["حالة القيد ",null,"لها حيازة ؟"]
["نوع القيد",null,"العدد بالقيراط"]
["له أخوة\n بالمدرسة ؟",null,"قيمة المعاش أو النفقة"]
["المرحلة\n الدراسية",null,"مريضة ؟"]
["اسم الباحث"]
["رأي الباحث"]
[]
[]
["بيانات الحالة"]
["طالب رقم ",217,"اسم أم الطالب","A217"]
["اسم الطالب","إبراهيم منصف عطية","عدد الأخوة"]
["الصف",null,"عدد المتزوجون منهم"]
["اسم ولي الأمر",null,"تسكن بالإيجار ؟"]
["البلد",null,"موظفة ؟"]
["تاريخ الميلاد",null,"مرتب الوظيفة"]
["حالة القيد ",null,"لها حيازة ؟"]
["نوع القيد",null,"العدد بالقيراط"]
["له أخوة\n بالمدرسة ؟",null,"قيمة المعاش أو النفقة"]
["المرحلة\n الدراسية",null,"مريضة ؟"]
["اسم الباحث"]
["رأي الباحث"]
[]
[]
["بيانات الحالة"]
["طالب رقم ",218,"اسم أم الطالب","A218"]
["اسم الطالب","دعاء السعيد علي","عدد الأخوة"]
["الصف",null,"عدد المتزوجون منهم"]
["اسم ولي الأمر",null,"تسكن بالإيجار ؟"]
["البلد",null,"موظفة ؟"]
["تاريخ الميلاد",null,"مرتب الوظيفة"]
["حالة القيد ",null,"لها حيازة ؟"]
["نوع القيد",null,"العدد بالقيراط"]
["له أخوة\n بالمدرسة ؟",null,"قيمة المعاش أو النفقة"]
["المرحلة\n الدراسية",null,"مريضة ؟"]
["اسم الباحث"]
["رأي الباحث"]
[]
[]
["بيانات الحالة"]
["طالب رقم ",219,"اسم أم الطالب","A219"]
["اسم الطالب","محمود طه حسن","عدد الأخوة"]
["الصف",null,"عدد المتزوجون منهم"]
["اسم ولي الأمر",null,"تسكن بالإيجار ؟"]
["البلد",null,"موظفة ؟"]
["تاريخ الميلاد",null,"مرتب الوظيفة"]
["حالة القيد ",null,"لها حيازة ؟"]
["نوع القيد",null,"العدد بالقيراط"]
["له أخوة\n بالمدرسة ؟",null,"قيمة المعاش أو النفقة"]
["المرحلة\n الدراسية",null,"مريضة ؟"]
["اسم الباحث"]
["رأي الباحث"]
[]
[]
["بيانات الحالة"]
["طالب رقم ",220,"اسم أم الطالب","A220"]
["اسم الطالب","هاجر عطية بسيوني","عدد الأخوة"]
["الصف",null,"عدد المتزوجون منهم"]
["اسم ولي الأمر",null,"تسكن بالإيجار ؟"]
["البلد",null,"موظفة ؟"]
["تاريخ الميلاد",null,"مرتب الوظيفة"]
["حالة القيد ",null,"لها حيازة ؟"]
["نوع القيد",null,"العدد بالقيراط"]
["له أخوة\n بالمدرسة ؟",null,"قيمة المعاش أو النفقة"]
["المرحلة\n الدراسية",null,"مريضة ؟"]
["اسم الباحث"]
["رأي الباحث"]
[]
[]
["بيانات الحالة"]
["طالب رقم ",221,"اسم أم الطالب","A221"]
["اسم الطالب","محمد حامد","عدد الأخوة"]
["الصف",null,"عدد المتزوجون منهم"]
["اسم ولي الأمر",null,"تسكن بالإيجار ؟"]
["البلد",null,"موظفة ؟"]
["تاريخ الميلاد",null,"مرتب الوظيفة"]
["حالة القيد ",null,"لها حيازة ؟"]
["نوع القيد",null,"العدد بالقيراط"]
["له أخوة\n بالمدرسة ؟",null,"قيمة المعاش أو النفقة"]
["المرحلة\n الدراسية",null,"مريضة ؟"]
["اسم الباحث"]
["رأي الباحث"]
[]
[]
["بيانات الحالة"]
["طالب رقم ",222,"اسم أم الطالب","A222"]
["اسم الطالب","خلود ماهر","عدد الأخوة"]
["الصف",null,"عدد المتزوجون منهم"]
["اسم ولي الأمر",null,"تسكن بالإيجار ؟"]
["البلد",null,"موظفة ؟"]
["تاريخ الميلاد",null,"مرتب الوظيفة"]
["حالة القيد ",null,"لها حيازة ؟"]
["نوع القيد",null,"العدد بالقيراط"]
["له أخوة\n بالمدرسة ؟",null,"قيمة المعاش أو النفقة"]
["المرحلة\n الدراسية",null,"مريضة ؟"]
["اسم الباحث"]
["رأي الباحث"]
[]
[]
["بيانات الحالة"]
["طالب رقم ",223,"اسم أم الطالب","A223"]
["اسم الطالب","احمد محمود","عدد الأخوة"]
["الصف",null,"عدد المتزوجون منهم"]
["اسم ولي الأمر",null,"تسكن بالإيجار ؟"]
["البلد",null,"موظفة ؟"]
["تاريخ الميلاد",null,"مرتب الوظيفة"]
["حالة القيد ",null,"لها حيازة ؟"]
["نوع القيد",null,"العدد بالقيراط"]
["له أخوة\n بالمدرسة ؟",null,"قيمة المعاش أو النفقة"]
["المرحلة\n الدراسية",null,"مريضة ؟"]
["اسم الباحث"]
["رأي الباحث"]
[]
[]
["بيانات الحالة"]
["طالب رقم ",224,"اسم أم الطالب","A224"]
["اسم الطالب","هند علي خميس","عدد الأخوة"]
["الصف",null,"عدد المتزوجون منهم"]
["اسم ولي الأمر",null,"تسكن بالإيجار ؟"]
["البلد",null,"موظفة ؟"]
["تاريخ الميلاد",null,"مرتب الوظيفة"]
["حالة القيد ",null,"لها حيازة ؟"]
["نوع القيد",null,"العدد بالقيراط"]
["له أخوة\n بالمدرسة ؟",null,"قيمة المعاش أو النفقة"]
["المرحلة\n الدراسية",null,"مريضة ؟"]
["اسم الباحث"]
["رأي الباحث"]
[]
[]
["بيانات الحالة"]
["طالب رقم ",225,"اسم أم الطالب","A225"]
["اسم الطالب","سليمان عبد الرحيم","عدد الأخوة"]
["الصف",null,"عدد المتزوجون منهم"]
["اسم ولي الأمر",null,"تسكن بالإيجار ؟"]
["البلد",null,"موظفة ؟"]
["تاريخ الميلاد",null,"مرتب الوظيفة"]
["حالة القيد ",null,"لها حيازة ؟"]
["نوع القيد",null,"العدد بالقيراط"]
["له أخوة\n بالمدرسة ؟",null,"قيمة المعاش أو النفقة"]
["المرحلة\n الدراسية",null,"مريضة ؟"]
["اسم الباحث"]
["رأي الباحث"]
[]
[]
["بيانات الحالة"]
["طالب رقم ",226,"اسم أم الطالب","A226"]
["اسم الطالب","عفت إبراهيم محجوب","عدد الأخوة"]
["الصف",null,"عدد المتزوجون منهم"]
["اسم ولي الأمر",null,"تسكن بالإيجار ؟"]
["البلد",null,"موظفة ؟"]
["تاريخ الميلاد",null,"مرتب الوظيفة"]
["حالة القيد ",null,"لها حيازة ؟"]
["نوع القيد",null,"العدد بالقيراط"]
["له أخوة\n بالمدرسة ؟",null,"قيمة المعاش أو النفقة"]
["المرحلة\n الدراسية",null,"مريضة ؟"]
["اسم الباحث"]
["رأي الباحث"]
[]
[]
["بيانات الحالة"]
["طالب رقم ",227,"اسم أم الطالب","A227"]
["اسم الطالب","إبراهيم منصف عطية","عدد الأخوة"]
["الصف",null,"عدد المتزوجون منهم"]
["اسم ولي الأمر",null,"تسكن بالإيجار ؟"]
["البلد",null,"موظفة ؟"]
["تاريخ الميلاد",null,"مرتب الوظيفة"]
["حالة القيد ",null,"لها حيازة ؟"]
["نوع القيد",null,"العدد بالقيراط"]
["له أخوة\n بالمدرسة ؟",null,"قيمة المعاش أو النفقة"]
["المرحلة\n الدراسية",null,"مريضة ؟"]
["اسم الباحث"]
["رأي الباحث"]
[]
[]
["بيانات الحالة"]
["طالب رقم ",228,"اسم أم الطالب","A228"]
["اسم الطالب","دعاء السعيد علي","عدد الأخوة"]
["الصف",null,"عدد المتزوجون منهم"]
["اسم ولي الأمر",null,"تسكن بالإيجار ؟"]
["البلد",null,"موظفة ؟"]
["تاريخ الميلاد",null,"مرتب الوظيفة"]
["حالة القيد ",null,"لها حيازة ؟"]
["نوع القيد",null,"العدد بالقيراط"]
["له أخوة\n بالمدرسة ؟",null,"قيمة المعاش أو النفقة"]
["المرحلة\n الدراسية",null,"مريضة ؟"]
["اسم الباحث"]
["رأي الباحث"]
[]
[]
["بيانات الحالة"]
["طالب رقم ",229,"اسم أم الطالب","A229"]
["اسم الطالب","محمود طه حسن","عدد الأخوة"]
["الصف",null,"عدد المتزوجون منهم"]
["اسم ولي الأمر",null,"تسكن بالإيجار ؟"]
["البلد",null,"موظفة ؟"]
["تاريخ الميلاد",null,"مرتب الوظيفة"]
["حالة القيد ",null,"لها حيازة ؟"]
["نوع القيد",null,"العدد بالقيراط"]
["له أخوة\n بالمدرسة ؟",null,"قيمة المعاش أو النفقة"]
["المرحلة\n الدراسية",null,"مريضة ؟"]
["اسم الباحث"]
["رأي الباحث"]
[]
[]
["بيانات الحالة"]
["طالب رقم ",230,"اسم أم الطالب","A230"]
["اسم الطالب","هاجر عطية بسيوني","عدد الأخوة"]
["الصف",null,"عدد المتزوجون منهم"]
["اسم ولي الأمر",null,"تسكن بالإيجار ؟"]
["البلد",null,"موظفة ؟"]
["تاريخ الميلاد",null,"مرتب الوظيفة"]
["حالة القيد ",null,"لها حيازة ؟"]
["نوع القيد",null,"العدد بالقيراط"]
["له أخوة\n بالمدرسة ؟",null,"قيمة المعاش أو النفقة"]
["المرحلة\n الدراسية",null,"مريضة ؟"]
["اسم الباحث"]
["رأي الباحث"]
[]
[]
["بيانات الحالة"]
["طالب رقم ",231,"اسم أم الطالب","A231"]
["اسم الطالب","محمد حامد","عدد الأخوة"]
["الصف",null,"عدد المتزوجون منهم"]
["اسم ولي الأمر",null,"تسكن بالإيجار ؟"]
["البلد",null,"موظفة ؟"]
["تاريخ الميلاد",null,"مرتب الوظيفة"]
["حالة القيد ",null,"لها حيازة ؟"]
["نوع القيد",null,"العدد بالقيراط"]
["له أخوة\n بالمدرسة ؟",null,"قيمة المعاش أو النفقة"]
["المرحلة\n الدراسية",null,"مريضة ؟"]
["اسم الباحث"]
["رأي الباحث"]
[]
[]
["بيانات الحالة"]
["طالب رقم ",232,"اسم أم الطالب","A232"]
["اسم الطالب","خلود ماهر","عدد الأخوة"]
["الصف",null,"عدد المتزوجون منهم"]
["اسم ولي الأمر",null,"تسكن بالإيجار ؟"]
["البلد",null,"موظفة ؟"]
["تاريخ الميلاد",null,"مرتب الوظيفة"]
["حالة القيد ",null,"لها حيازة ؟"]
["نوع القيد",null,"العدد بالقيراط"]
["له أخوة\n بالمدرسة ؟",null,"قيمة المعاش أو النفقة"]
["المرحلة\n الدراسية",null,"مريضة ؟"]
["اسم الباحث"]
["رأي الباحث"]
[]
[]
["بيانات الحالة"]
["طالب رقم ",233,"اسم أم الطالب","A233"]
["اسم الطالب","احمد محمود","عدد الأخوة"]
["الصف",null,"عدد المتزوجون منهم"]
["اسم ولي الأمر",null,"تسكن بالإيجار ؟"]
["البلد",null,"موظفة ؟"]
["تاريخ الميلاد",null,"مرتب الوظيفة"]
["حالة القيد ",null,"لها حيازة ؟"]
["نوع القيد",null,"العدد بالقيراط"]
["له أخوة\n بالمدرسة ؟",null,"قيمة المعاش أو النفقة"]
["المرحلة\n الدراسية",null,"مريضة ؟"]
["اسم الباحث"]
["رأي الباحث"]
[]
[]
["بيانات الحالة"]
["طالب رقم ",234,"اسم أم الطالب","A234"]
["اسم الطالب","هند علي خميس","عدد الأخوة"]
["الصف",null,"عدد المتزوجون منهم"]
["اسم ولي الأمر",null,"تسكن بالإيجار ؟"]
["البلد",null,"موظفة ؟"]
["تاريخ الميلاد",null,"مرتب الوظيفة"]
["حالة القيد ",null,"لها حيازة ؟"]
["نوع القيد",null,"العدد بالقيراط"]
["له أخوة\n بالمدرسة ؟",null,"قيمة المعاش أو النفقة"]
["المرحلة\n الدراسية",null,"مريضة ؟"]
["اسم الباحث"]
["رأي الباحث"]
[]
[]
["بيانات الحالة"]
["طالب رقم ",235,"اسم أم الطالب","A235"]
["اسم الطالب","سليمان عبد الرحيم","عدد الأخوة"]
["الصف",null,"عدد المتزوجون منهم"]
["اسم ولي الأمر",null,"تسكن بالإيجار ؟"]
["البلد",null,"موظفة ؟"]
["تاريخ الميلاد",null,"مرتب الوظيفة"]
["حالة القيد ",null,"لها حيازة ؟"]
["نوع القيد",null,"العدد بالقيراط"]
["له أخوة\n بالمدرسة ؟",null,"قيمة المعاش أو النفقة"]
["المرحلة\n الدراسية",null,"مريضة ؟"]
["اسم الباحث"]
["رأي الباحث"]
[]
[]
["بيانات الحالة"]
["طالب رقم ",236,"اسم أم الطالب","A236"]
["اسم الطالب","عفت إبراهيم محجوب","عدد الأخوة"]
["الصف",null,"عدد المتزوجون منهم"]
["اسم ولي الأمر",null,"تسكن بالإيجار ؟"]
["البلد",null,"موظفة ؟"]
["تاريخ الميلاد",null,"مرتب الوظيفة"]
["حالة القيد ",null,"لها حيازة ؟"]
["نوع القيد",null,"العدد بالقيراط"]
["له أخوة\n بالمدرسة ؟",null,"قيمة المعاش أو النفقة"]
["المرحلة\n الدراسية",null,"مريضة ؟"]
["اسم الباحث"]
["رأي الباحث"]
[]
[]
["بيانات الحالة"]
["طالب رقم ",237,"اسم أم الطالب","A237"]
["اسم الطالب","إبراهيم منصف عطية","عدد الأخوة"]
["الصف",null,"عدد المتزوجون منهم"]
["اسم ولي الأمر",null,"تسكن بالإيجار ؟"]
["البلد",null,"موظفة ؟"]
["تاريخ الميلاد",null,"مرتب الوظيفة"]
["حالة القيد ",null,"لها حيازة ؟"]
["نوع القيد",null,"العدد بالقيراط"]
["له أخوة\n بالمدرسة ؟",null,"قيمة المعاش أو النفقة"]
["المرحلة\n الدراسية",null,"مريضة ؟"]
["اسم الباحث"]
["رأي الباحث"]
[]
[]
["بيانات الحالة"]
["طالب رقم ",238,"اسم أم الطالب","A238"]
["اسم الطالب","دعاء السعيد علي","عدد الأخوة"]
["الصف",null,"عدد المتزوجون منهم"]
["اسم ولي الأمر",null,"تسكن بالإيجار ؟"]
["البلد",null,"موظفة ؟"]
["تاريخ الميلاد",null,"مرتب الوظيفة"]
["حالة القيد ",null,"لها حيازة ؟"]
["نوع القيد",null,"العدد بالقيراط"]
["له أخوة\n بالمدرسة ؟",null,"قيمة المعاش أو النفقة"]
["المرحلة\n الدراسية",null,"مريضة ؟"]
["اسم الباحث"]
["رأي الباحث"]
[]
[]
["بيانات الحالة"]
["طالب رقم ",239,"اسم أم الطالب","A239"]
["اسم الطالب","محمود طه حسن","عدد الأخوة"]
["الصف",null,"عدد المتزوجون منهم"]
["اسم ولي الأمر",null,"تسكن بالإيجار ؟"]
["البلد",null,"موظفة ؟"]
["تاريخ الميلاد",null,"مرتب الوظيفة"]
["حالة القيد ",null,"لها حيازة ؟"]
["نوع القيد",null,"العدد بالقيراط"]
["له أخوة\n بالمدرسة ؟",null,"قيمة المعاش أو النفقة"]
["المرحلة\n الدراسية",null,"مريضة ؟"]
["اسم الباحث"]
["رأي الباحث"]
[]
[]
["بيانات الحالة"]
["طالب رقم ",240,"اسم أم الطالب","A240"]
["اسم الطالب","هاجر عطية بسيوني","عدد الأخوة"]
["الصف",null,"عدد المتزوجون منهم"]
["اسم ولي الأمر",null,"تسكن بالإيجار ؟"]
["البلد",null,"موظفة ؟"]
["تاريخ الميلاد",null,"مرتب الوظيفة"]
["حالة القيد ",null,"لها حيازة ؟"]
["نوع القيد",null,"العدد بالقيراط"]
["له أخوة\n بالمدرسة ؟",null,"قيمة المعاش أو النفقة"]
["المرحلة\n الدراسية",null,"مريضة ؟"]
["اسم الباحث"]
["رأي الباحث"]
[]
[]
["بيانات الحالة"]
["طالب رقم ",241,"اسم أم الطالب","A241"]
["اسم الطالب","محمد حامد","عدد الأخوة"]
["الصف",null,"عدد المتزوجون منهم"]
["اسم ولي الأمر",null,"تسكن بالإيجار ؟"]
["البلد",null,"موظفة ؟"]
["تاريخ الميلاد",null,"مرتب الوظيفة"]
["حالة القيد ",null,"لها حيازة ؟"]
["نوع القيد",null,"العدد بالقيراط"]
["له أخوة\n بالمدرسة ؟",null,"قيمة المعاش أو النفقة"]
["المرحلة\n الدراسية",null,"مريضة ؟"]
["اسم الباحث"]
["رأي الباحث"]
[]
[]
["بيانات الحالة"]
["طالب رقم ",242,"اسم أم الطالب","A242"]
["اسم الطالب","خلود ماهر","عدد الأخوة"]
["الصف",null,"عدد المتزوجون منهم"]
["اسم ولي الأمر",null,"تسكن بالإيجار ؟"]
["البلد",null,"موظفة ؟"]
["تاريخ الميلاد",null,"مرتب الوظيفة"]
["حالة القيد ",null,"لها حيازة ؟"]
["نوع القيد",null,"العدد بالقيراط"]
["له أخوة\n بالمدرسة ؟",null,"قيمة المعاش أو النفقة"]
["المرحلة\n الدراسية",null,"مريضة ؟"]
["اسم الباحث"]
["رأي الباحث"]
[]
[]
["بيانات الحالة"]
["طالب رقم ",243,"اسم أم الطالب","A243"]
["اسم الطالب","احمد محمود","عدد الأخوة"]
["الصف",null,"عدد المتزوجون منهم"]
["اسم ولي الأمر",null,"تسكن بالإيجار ؟"]
["البلد",null,"موظفة ؟"]
["تاريخ الميلاد",null,"مرتب الوظيفة"]
["حالة القيد ",null,"لها حيازة ؟"]
["نوع القيد",null,"العدد بالقيراط"]
["له أخوة\n بالمدرسة ؟",null,"قيمة المعاش أو النفقة"]
["المرحلة\n الدراسية",null,"مريضة ؟"]
["اسم الباحث"]
["رأي الباحث"]
[]
[]
["بيانات الحالة"]
["طالب رقم ",244,"اسم أم الطالب","A244"]
["اسم الطالب","هند علي خميس","عدد الأخوة"]
["الصف",null,"عدد المتزوجون منهم"]
["اسم ولي الأمر",null,"تسكن بالإيجار ؟"]
["البلد",null,"موظفة ؟"]
["تاريخ الميلاد",null,"مرتب الوظيفة"]
["حالة القيد ",null,"لها حيازة ؟"]
["نوع القيد",null,"العدد بالقيراط"]
["له أخوة\n بالمدرسة ؟",null,"قيمة المعاش أو النفقة"]
["المرحلة\n الدراسية",null,"مريضة ؟"]
["اسم الباحث"]
["رأي الباحث"]
[]
[]
["بيانات الحالة"]
["طالب رقم ",245,"اسم أم الطالب","A245"]
["اسم الطالب","سليمان عبد الرحيم","عدد الأخوة"]
["الصف",null,"عدد المتزوجون منهم"]
["اسم ولي الأمر",null,"تسكن بالإيجار ؟"]
["البلد",null,"موظفة ؟"]
["تاريخ الميلاد",null,"مرتب الوظيفة"]
["حالة القيد ",null,"لها حيازة ؟"]
["نوع القيد",null,"العدد بالقيراط"]
["له أخوة\n بالمدرسة ؟",null,"قيمة المعاش أو النفقة"]
["المرحلة\n الدراسية",null,"مريضة ؟"]
["اسم الباحث"]
["رأي الباحث"]
[]
[]
["بيانات الحالة"]
["طالب رقم ",246,"اسم أم الطالب","A246"]
["اسم الطالب","عفت إبراهيم محجوب","عدد الأخوة"]
["الصف",null,"عدد المتزوجون منهم"]
["اسم ولي الأمر",null,"تسكن بالإيجار ؟"]
["البلد",null,"موظفة ؟"]
["تاريخ الميلاد",null,"مرتب الوظيفة"]
["حالة القيد ",null,"لها حيازة ؟"]
["نوع القيد",null,"العدد بالقيراط"]
["له أخوة\n بالمدرسة ؟",null,"قيمة المعاش أو النفقة"]
["المرحلة\n الدراسية",null,"مريضة ؟"]
["اسم الباحث"]
["رأي الباحث"]
[]
[]
["بيانات الحالة"]
["طالب رقم ",247,"اسم أم الطالب","A247"]
["اسم الطالب","إبراهيم منصف عطية","عدد الأخوة"]
["الصف",null,"عدد المتزوجون منهم"]
["اسم ولي الأمر",null,"تسكن بالإيجار ؟"]
["البلد",null,"موظفة ؟"]
["تاريخ الميلاد",null,"مرتب الوظيفة"]
["حالة القيد ",null,"لها حيازة ؟"]
["نوع القيد",null,"العدد بالقيراط"]
["له أخوة\n بالمدرسة ؟",null,"قيمة المعاش أو النفقة"]
["المرحلة\n الدراسية",null,"مريضة ؟"]
["اسم الباحث"]
["رأي الباحث"]
[]
[]
["بيانات الحالة"]
["طالب رقم ",248,"اسم أم الطالب","A248"]
["اسم الطالب","دعاء السعيد علي","عدد الأخوة"]
["الصف",null,"عدد المتزوجون منهم"]
["اسم ولي الأمر",null,"تسكن بالإيجار ؟"]
["البلد",null,"موظفة ؟"]
["تاريخ الميلاد",null,"مرتب الوظيفة"]
["حالة القيد ",null,"لها حيازة ؟"]
["نوع القيد",null,"العدد بالقيراط"]
["له أخوة\n بالمدرسة ؟",null,"قيمة المعاش أو النفقة"]
["المرحلة\n الدراسية",null,"مريضة ؟"]
["اسم الباحث"]
["رأي الباحث"]
[]
[]
["بيانات الحالة"]
["طالب رقم ",249,"اسم أم الطالب","A249"]
["اسم الطالب","محمود طه حسن","عدد الأخوة"]
["الصف",null,"عدد المتزوجون منهم"]
["اسم ولي الأمر",null,"تسكن بالإيجار ؟"]
["البلد",null,"موظفة ؟"]
["تاريخ الميلاد",null,"مرتب الوظيفة"]
["حالة القيد ",null,"لها حيازة ؟"]
["نوع القيد",null,"العدد بالقيراط"]
["له أخوة\n بالمدرسة ؟",null,"قيمة المعاش أو النفقة"]
["المرحلة\n الدراسية",null,"مريضة ؟"]
["اسم الباحث"]
["رأي الباحث"]
[]
[]
["بيانات الحالة"]
["طالب رقم ",250,"اسم أم الطالب","A250"]
["اسم الطالب","هاجر عطية بسيوني","عدد الأخوة"]
["الصف",null,"عدد المتزوجون منهم"]
["اسم ولي الأمر",null,"تسكن بالإيجار ؟"]
["البلد",null,"موظفة ؟"]
["تاريخ الميلاد",null,"مرتب الوظيفة"]
["حالة القيد ",null,"لها حيازة ؟"]
["نوع القيد",null,"العدد بالقيراط"]
["له أخوة\n بالمدرسة ؟",null,"قيمة المعاش أو النفقة"]
["المرحلة\n الدراسية",null,"مريضة ؟"]
["اسم الباحث"]
["رأي الباحث"]
[]
[]
["بيانات الحالة"]
["طالب رقم ",251,"اسم أم الطالب","A251"]
["اسم الطالب","محمد حامد","عدد الأخوة"]
["الصف",null,"عدد المتزوجون منهم"]
["اسم ولي الأمر",null,"تسكن بالإيجار ؟"]
["البلد",null,"موظفة ؟"]
["تاريخ الميلاد",null,"مرتب الوظيفة"]
["حالة القيد ",null,"لها حيازة ؟"]
["نوع القيد",null,"العدد بالقيراط"]
["له أخوة\n بالمدرسة ؟",null,"قيمة المعاش أو النفقة"]
["المرحلة\n الدراسية",null,"مريضة ؟"]
["اسم الباحث"]
["رأي الباحث"]
[]
[]
["بيانات الحالة"]
["طالب رقم ",252,"اسم أم الطالب","A252"]
["اسم الطالب","خلود ماهر","عدد الأخوة"]
["الصف",null,"عدد المتزوجون منهم"]
["اسم ولي الأمر",null,"تسكن بالإيجار ؟"]
["البلد",null,"موظفة ؟"]
["تاريخ الميلاد",null,"مرتب الوظيفة"]
["حالة القيد ",null,"لها حيازة ؟"]
["نوع القيد",null,"العدد بالقيراط"]
["له أخوة\n بالمدرسة ؟",null,"قيمة المعاش أو النفقة"]
["المرحلة\n الدراسية",null,"مريضة ؟"]
["اسم الباحث"]
["رأي الباحث"]
[]
[]
["بيانات الحالة"]
["طالب رقم ",253,"اسم أم الطالب","A253"]
["اسم الطالب","احمد محمود","عدد الأخوة"]
["الصف",null,"عدد المتزوجون منهم"]
["اسم ولي الأمر",null,"تسكن بالإيجار ؟"]
["البلد",null,"موظفة ؟"]
["تاريخ الميلاد",null,"مرتب الوظيفة"]
["حالة القيد ",null,"لها حيازة ؟"]
["نوع القيد",null,"العدد بالقيراط"]
["له أخوة\n بالمدرسة ؟",null,"قيمة المعاش أو النفقة"]
["المرحلة\n الدراسية",null,"مريضة ؟"]
["اسم الباحث"]
["رأي الباحث"]
[]
[]
["بيانات الحالة"]
["طالب رقم ",254,"اسم أم الطالب","A254"]
["اسم الطالب","هند علي خميس","عدد الأخوة"]
["الصف",null,"عدد المتزوجون منهم"]
["اسم ولي الأمر",null,"تسكن بالإيجار ؟"]
["البلد",null,"موظفة ؟"]
["تاريخ الميلاد",null,"مرتب الوظيفة"]
["حالة القيد ",null,"لها حيازة ؟"]
["نوع القيد",null,"العدد بالقيراط"]
["له أخوة\n بالمدرسة ؟",null,"قيمة المعاش أو النفقة"]
["المرحلة\n الدراسية",null,"مريضة ؟"]
["اسم الباحث"]
["رأي الباحث"]
[]
[]
["بيانات الحالة"]
["طالب رقم ",255,"اسم أم الطالب","A255"]
["اسم الطالب","سليمان عبد الرحيم","عدد الأخوة"]
["الصف",null,"عدد المتزوجون منهم"]
["اسم ولي الأمر",null,"تسكن بالإيجار ؟"]
["البلد",null,"موظفة ؟"]
["تاريخ الميلاد",null,"مرتب الوظيفة"]
["حالة القيد ",null,"لها حيازة ؟"]
["نوع القيد",null,"العدد بالقيراط"]
["له أخوة\n بالمدرسة ؟",null,"قيمة المعاش أو النفقة"]
["المرحلة\n الدراسية",null,"مريضة ؟"]
["اسم الباحث"]
["رأي الباحث"]
[]
[]
["بيانات الحالة"]
["طالب رقم ",256,"اسم أم الطالب","A256"]
["اسم الطالب","عفت إبراهيم محجوب","عدد الأخوة"]
["الصف",null,"عدد المتزوجون منهم"]
["اسم ولي الأمر",null,"تسكن بالإيجار ؟"]
["البلد",null,"موظفة ؟"]
["تاريخ الميلاد",null,"مرتب الوظيفة"]
["حالة القيد ",null,"لها حيازة ؟"]
["نوع القيد",null,"العدد بالقيراط"]
["له أخوة\n بالمدرسة ؟",null,"قيمة المعاش أو النفقة"]
["المرحلة\n الدراسية",null,"مريضة ؟"]
["اسم الباحث"]
["رأي الباحث"]
[]
[]
["بيانات الحالة"]
["طالب رقم ",257,"اسم أم الطالب","A257"]
["اسم الطالب","إبراهيم منصف عطية","عدد الأخوة"]
["الصف",null,"عدد المتزوجون منهم"]
["اسم ولي الأمر",null,"تسكن بالإيجار ؟"]
["البلد",null,"موظفة ؟"]
["تاريخ الميلاد",null,"مرتب الوظيفة"]
["حالة القيد ",null,"لها حيازة ؟"]
["نوع القيد",null,"العدد بالقيراط"]
["له أخوة\n بالمدرسة ؟",null,"قيمة المعاش أو النفقة"]
["المرحلة\n الدراسية",null,"مريضة ؟"]
["اسم الباحث"]
["رأي الباحث"]
[]
[]
["بيانات الحالة"]
["طالب رقم ",258,"اسم أم الطالب","A258"]
["اسم الطالب","دعاء السعيد علي","عدد الأخوة"]
["الصف",null,"عدد المتزوجون منهم"]
["اسم ولي الأمر",null,"تسكن بالإيجار ؟"]
["البلد",null,"موظفة ؟"]
["تاريخ الميلاد",null,"مرتب الوظيفة"]
["حالة القيد ",null,"لها حيازة ؟"]
["نوع القيد",null,"العدد بالقيراط"]
["له أخوة\n بالمدرسة ؟",null,"قيمة المعاش أو النفقة"]
["المرحلة\n الدراسية",null,"مريضة ؟"]
["اسم الباحث"]
["رأي الباحث"]
[]
[]
["بيانات الحالة"]
["طالب رقم ",259,"اسم أم الطالب","A259"]
["اسم الطالب","محمود طه حسن","عدد الأخوة"]
["الصف",null,"عدد المتزوجون منهم"]
["اسم ولي الأمر",null,"تسكن بالإيجار ؟"]
["البلد",null,"موظفة ؟"]
["تاريخ الميلاد",null,"مرتب الوظيفة"]
["حالة القيد ",null,"لها حيازة ؟"]
["نوع القيد",null,"العدد بالقيراط"]
["له أخوة\n بالمدرسة ؟",null,"قيمة المعاش أو النفقة"]
["المرحلة\n الدراسية",null,"مريضة ؟"]
["اسم الباحث"]
["رأي الباحث"]
[]
[]
["بيانات الحالة"]
["طالب رقم ",260,"اسم أم الطالب","A260"]
["اسم الطالب","هاجر عطية بسيوني","عدد الأخوة"]
["الصف",null,"عدد المتزوجون منهم"]
["اسم ولي الأمر",null,"تسكن بالإيجار ؟"]
["البلد",null,"موظفة ؟"]
["تاريخ الميلاد",null,"مرتب الوظيفة"]
["حالة القيد ",null,"لها حيازة ؟"]
["نوع القيد",null,"العدد بالقيراط"]
["له أخوة\n بالمدرسة ؟",null,"قيمة المعاش أو النفقة"]
["المرحلة\n الدراسية",null,"مريضة ؟"]
["اسم الباحث"]
["رأي الباحث"]
[]
[]
["بيانات الحالة"]
["طالب رقم ",261,"اسم أم الطالب","A261"]
["اسم الطالب","محمد حامد","عدد الأخوة"]
["الصف",null,"عدد المتزوجون منهم"]
["اسم ولي الأمر",null,"تسكن بالإيجار ؟"]
["البلد",null,"موظفة ؟"]
["تاريخ الميلاد",null,"مرتب الوظيفة"]
["حالة القيد ",null,"لها حيازة ؟"]
["نوع القيد",null,"العدد بالقيراط"]
["له أخوة\n بالمدرسة ؟",null,"قيمة المعاش أو النفقة"]
["المرحلة\n الدراسية",null,"مريضة ؟"]
["اسم الباحث"]
["رأي الباحث"]
[]
[]
["بيانات الحالة"]
["طالب رقم ",262,"اسم أم الطالب","A262"]
["اسم الطالب","خلود ماهر","عدد الأخوة"]
["الصف",null,"عدد المتزوجون منهم"]
["اسم ولي الأمر",null,"تسكن بالإيجار ؟"]
["البلد",null,"موظفة ؟"]
["تاريخ الميلاد",null,"مرتب الوظيفة"]
["حالة القيد ",null,"لها حيازة ؟"]
["نوع القيد",null,"العدد بالقيراط"]
["له أخوة\n بالمدرسة ؟",null,"قيمة المعاش أو النفقة"]
["المرحلة\n الدراسية",null,"مريضة ؟"]
["اسم الباحث"]
["رأي الباحث"]
[]
[]
["بيانات الحالة"]
["طالب رقم ",263,"اسم أم الطالب","A263"]
["اسم الطالب","احمد محمود","عدد الأخوة"]
["الصف",null,"عدد المتزوجون منهم"]
["اسم ولي الأمر",null,"تسكن بالإيجار ؟"]
["البلد",null,"موظفة ؟"]
["تاريخ الميلاد",null,"مرتب الوظيفة"]
["حالة القيد ",null,"لها حيازة ؟"]
["نوع القيد",null,"العدد بالقيراط"]
["له أخوة\n بالمدرسة ؟",null,"قيمة المعاش أو النفقة"]
["المرحلة\n الدراسية",null,"مريضة ؟"]
["اسم الباحث"]
["رأي الباحث"]
[]
[]
["بيانات الحالة"]
["طالب رقم ",264,"اسم أم الطالب","A264"]
["اسم الطالب","هند علي خميس","عدد الأخوة"]
["الصف",null,"عدد المتزوجون منهم"]
["اسم ولي الأمر",null,"تسكن بالإيجار ؟"]
["البلد",null,"موظفة ؟"]
["تاريخ الميلاد",null,"مرتب الوظيفة"]
["حالة القيد ",null,"لها حيازة ؟"]
["نوع القيد",null,"العدد بالقيراط"]
["له أخوة\n بالمدرسة ؟",null,"قيمة المعاش أو النفقة"]
["المرحلة\n الدراسية",null,"مريضة ؟"]
["اسم الباحث"]
["رأي الباحث"]
[]
[]
["بيانات الحالة"]
["طالب رقم ",265,"اسم أم الطالب","A265"]
["اسم الطالب","سليمان عبد الرحيم","عدد الأخوة"]
["الصف",null,"عدد المتزوجون منهم"]
["اسم ولي الأمر",null,"تسكن بالإيجار ؟"]
["البلد",null,"موظفة ؟"]
["تاريخ الميلاد",null,"مرتب الوظيفة"]
["حالة القيد ",null,"لها حيازة ؟"]
["نوع القيد",null,"العدد بالقيراط"]
["له أخوة\n بالمدرسة ؟",null,"قيمة المعاش أو النفقة"]
["المرحلة\n الدراسية",null,"مريضة ؟"]
["اسم الباحث"]
["رأي الباحث"]
[]
[]
["بيانات الحالة"]
["طالب رقم ",266,"اسم أم الطالب","A266"]
["اسم الطالب","عفت إبراهيم محجوب","عدد الأخوة"]
["الصف",null,"عدد المتزوجون منهم"]
["اسم ولي الأمر",null,"تسكن بالإيجار ؟"]
["البلد",null,"موظفة ؟"]
["تاريخ الميلاد",null,"مرتب الوظيفة"]
["حالة القيد ",null,"لها حيازة ؟"]
["نوع القيد",null,"العدد بالقيراط"]
["له أخوة\n بالمدرسة ؟",null,"قيمة المعاش أو النفقة"]
["المرحلة\n الدراسية",null,"مريضة ؟"]
["اسم الباحث"]
["رأي الباحث"]
[]
[]
["بيانات الحالة"]
["طالب رقم ",267,"اسم أم الطالب","A267"]
["اسم الطالب","إبراهيم منصف عطية","عدد الأخوة"]
["الصف",null,"عدد المتزوجون منهم"]
["اسم ولي الأمر",null,"تسكن بالإيجار ؟"]
["البلد",null,"موظفة ؟"]
["تاريخ الميلاد",null,"مرتب الوظيفة"]
["حالة القيد ",null,"لها حيازة ؟"]
["نوع القيد",null,"العدد بالقيراط"]
["له أخوة\n بالمدرسة ؟",null,"قيمة المعاش أو النفقة"]
["المرحلة\n الدراسية",null,"مريضة ؟"]
["اسم الباحث"]
["رأي الباحث"]
[]
[]
["بيانات الحالة"]
["طالب رقم ",268,"اسم أم الطالب","A268"]
["اسم الطالب","دعاء السعيد علي","عدد الأخوة"]
["الصف",null,"عدد المتزوجون منهم"]
["اسم ولي الأمر",null,"تسكن بالإيجار ؟"]
["البلد",null,"موظفة ؟"]
["تاريخ الميلاد",null,"مرتب الوظيفة"]
["حالة القيد ",null,"لها حيازة ؟"]
["نوع القيد",null,"العدد بالقيراط"]
["له أخوة\n بالمدرسة ؟",null,"قيمة المعاش أو النفقة"]
["المرحلة\n الدراسية",null,"مريضة ؟"]
["اسم الباحث"]
["رأي الباحث"]
[]
[]
["بيانات الحالة"]
["طالب رقم ",269,"اسم أم الطالب","A269"]
["اسم الطالب","محمود طه حسن","عدد الأخوة"]
["الصف",null,"عدد المتزوجون منهم"]
["اسم ولي الأمر",null,"تسكن بالإيجار ؟"]
["البلد",null,"موظفة ؟"]
["تاريخ الميلاد",null,"مرتب الوظيفة"]
["حالة القيد ",null,"لها حيازة ؟"]
["نوع القيد",null,"العدد بالقيراط"]
["له أخوة\n بالمدرسة ؟",null,"قيمة المعاش أو النفقة"]
["المرحلة\n الدراسية",null,"مريضة ؟"]
["اسم الباحث"]
["رأي الباحث"]
[]
[]
["بيانات الحالة"]
["طالب رقم ",270,"اسم أم الطالب","A270"]
["اسم الطالب","هاجر عطية بسيوني","عدد الأخوة"]
["الصف",null,"عدد المتزوجون منهم"]
["اسم ولي الأمر",null,"تسكن بالإيجار ؟"]
["البلد",null,"موظفة ؟"]
["تاريخ الميلاد",null,"مرتب الوظيفة"]
["حالة القيد ",null,"لها حيازة ؟"]
["نوع القيد",null,"العدد بالقيراط"]
["له أخوة\n بالمدرسة ؟",null,"قيمة المعاش أو النفقة"]
["المرحلة\n الدراسية",null,"مريضة ؟"]
["اسم الباحث"]
["رأي الباحث"]
[]
[]
["بيانات الحالة"]
["طالب رقم ",271,"اسم أم الطالب","A271"]
["اسم الطالب","محمد حامد","عدد الأخوة"]
["الصف",null,"عدد المتزوجون منهم"]
["اسم ولي الأمر",null,"تسكن بالإيجار ؟"]
["البلد",null,"موظفة ؟"]
["تاريخ الميلاد",null,"مرتب الوظيفة"]
["حالة القيد ",null,"لها حيازة ؟"]
["نوع القيد",null,"العدد بالقيراط"]
["له أخوة\n بالمدرسة ؟",null,"قيمة المعاش أو النفقة"]
["المرحلة\n الدراسية",null,"مريضة ؟"]
["اسم الباحث"]
["رأي الباحث"]
[]
[]
["بيانات الحالة"]
["طالب رقم ",272,"اسم أم الطالب","A272"]
["اسم الطالب","خلود ماهر","عدد الأخوة"]
["الصف",null,"عدد المتزوجون منهم"]
["اسم ولي الأمر",null,"تسكن بالإيجار ؟"]
["البلد",null,"موظفة ؟"]
["تاريخ الميلاد",null,"مرتب الوظيفة"]
["حالة القيد ",null,"لها حيازة ؟"]
["نوع القيد",null,"العدد بالقيراط"]
["له أخوة\n بالمدرسة ؟",null,"قيمة المعاش أو النفقة"]
["المرحلة\n الدراسية",null,"مريضة ؟"]
["اسم الباحث"]
["رأي الباحث"]
[]
[]
["بيانات الحالة"]
["طالب رقم ",273,"اسم أم الطالب","A273"]
["اسم الطالب","احمد محمود","عدد الأخوة"]
["الصف",null,"عدد المتزوجون منهم"]
["اسم ولي الأمر",null,"تسكن بالإيجار ؟"]
["البلد",null,"موظفة ؟"]
["تاريخ الميلاد",null,"مرتب الوظيفة"]
["حالة القيد ",null,"لها حيازة ؟"]
["نوع القيد",null,"العدد بالقيراط"]
["له أخوة\n بالمدرسة ؟",null,"قيمة المعاش أو النفقة"]
["المرحلة\n الدراسية",null,"مريضة ؟"]
["اسم الباحث"]
["رأي الباحث"]
[]
[]
["بيانات الحالة"]
["طالب رقم ",274,"اسم أم الطالب","A274"]
["اسم الطالب","هند علي خميس","عدد الأخوة"]
["الصف",null,"عدد المتزوجون منهم"]
["اسم ولي الأمر",null,"تسكن بالإيجار ؟"]
["البلد",null,"موظفة ؟"]
["تاريخ الميلاد",null,"مرتب الوظيفة"]
["حالة القيد ",null,"لها حيازة ؟"]
["نوع القيد",null,"العدد بالقيراط"]
["له أخوة\n بالمدرسة ؟",null,"قيمة المعاش أو النفقة"]
["المرحلة\n الدراسية",null,"مريضة ؟"]
["اسم الباحث"]
["رأي الباحث"]
[]
[]
["بيانات الحالة"]
["طالب رقم ",275,"اسم أم الطالب","A275"]
["اسم الطالب","سليمان عبد الرحيم","عدد الأخوة"]
["الصف",null,"عدد المتزوجون منهم"]
["اسم ولي الأمر",null,"تسكن بالإيجار ؟"]
["البلد",null,"موظفة ؟"]
["تاريخ الميلاد",null,"مرتب الوظيفة"]
["حالة القيد ",null,"لها حيازة ؟"]
["نوع القيد",null,"العدد بالقيراط"]
["له أخوة\n بالمدرسة ؟",null,"قيمة المعاش أو النفقة"]
["المرحلة\n الدراسية",null,"مريضة ؟"]
["اسم الباحث"]
["رأي الباحث"]
[]
[]
["بيانات الحالة"]
["طالب رقم ",276,"اسم أم الطالب","A276"]
["اسم الطالب","عفت إبراهيم محجوب","عدد الأخوة"]
["الصف",null,"عدد المتزوجون منهم"]
["اسم ولي الأمر",null,"تسكن بالإيجار ؟"]
["البلد",null,"موظفة ؟"]
["تاريخ الميلاد",null,"مرتب الوظيفة"]
["حالة القيد ",null,"لها حيازة ؟"]
["نوع القيد",null,"العدد بالقيراط"]
["له أخوة\n بالمدرسة ؟",null,"قيمة المعاش أو النفقة"]
["المرحلة\n الدراسية",null,"مريضة ؟"]
["اسم الباحث"]
["رأي الباحث"]

{"sheet":"ترحيل","index":2,"n_rows":50,"n_cols":9,"rows_kept":50,"cut":false,"hidden":true,"merged":[]}
[null,null,4,1,6,7,null,6,8]
[]
["م","اسم الطالب","تاريخ الميلاد","الصف","نوع القيد","له أخوة","اسم أم الطالب","لها حيازة ؟","قيمة المعاش أو النفقة"]
[1,{"$f":"IFERROR(INDEX(Repport!$B$2:$B$500,MATCH($A4,Repport!$B$2:$B$500,0)+1),\"\")","v":"محمد حامد"},{"$f":"IFERROR(OFFSET(INDEX(Repport!$B$1:$B$500,MATCH($B4,Repport!$B$1:$B$500,0)),C$1,),\"\")","v":40308},{"$f":"IFERROR(OFFSET(INDEX(Repport!$B$1:$B$500,MATCH($B4,Repport!$B$1:$B$500,0)),D$1,),\"\")","v":"Clase1"},{"$f":"IFERROR(OFFSET(INDEX(Repport!$B$1:$B$500,MATCH($B4,Repport!$B$1:$B$500,0)),E$1,),\"\")","v":"Form1"},{"$f":"IFERROR(OFFSET(INDEX(Repport!$B$1:$B$500,MATCH($B4,Repport!$B$1:$B$500,0)),F$1,),\"\")","v":"Yes"},{"$f":"IFERROR(INDEX(Repport!$D$1:$D$500,MATCH($B4,Repport!$B$1:$B$500,0)-1),\"\")","v":"A1"},{"$f":"IFERROR(OFFSET(INDEX(Repport!$D$1:$D$500,MATCH($B4,Repport!$B$1:$B$500,0)-1),H$1,),\"\")","v":"yes"},{"$f":"IFERROR(OFFSET(INDEX(Repport!$D$1:$D$500,MATCH($B4,Repport!$B$1:$B$500,0)-1),I$1,),\"\")","v":1500}]
[1,{"$f":"IFERROR(INDEX(Repport!$B$2:$B$500,MATCH($A5,Repport!$B$2:$B$500,0)+1),\"\")","v":"محمد حامد"},{"$f":"IFERROR(OFFSET(INDEX(Repport!$B$1:$B$500,MATCH($B5,Repport!$B$1:$B$500,0)),C$1,),\"\")","v":40308},{"$f":"IFERROR(OFFSET(INDEX(Repport!$B$1:$B$500,MATCH($B5,Repport!$B$1:$B$500,0)),D$1,),\"\")","v":"Clase1"},{"$f":"IFERROR(OFFSET(INDEX(Repport!$B$1:$B$500,MATCH($B5,Repport!$B$1:$B$500,0)),E$1,),\"\")","v":"Form1"},{"$f":"IFERROR(OFFSET(INDEX(Repport!$B$1:$B$500,MATCH($B5,Repport!$B$1:$B$500,0)),F$1,),\"\")","v":"Yes"},{"$f":"IFERROR(INDEX(Repport!$D$1:$D$500,MATCH($B5,Repport!$B$1:$B$500,0)-1),\"\")","v":"A1"},{"$f":"IFERROR(OFFSET(INDEX(Repport!$D$1:$D$500,MATCH($B5,Repport!$B$1:$B$500,0)-1),H$1,),\"\")","v":"yes"},{"$f":"IFERROR(OFFSET(INDEX(Repport!$D$1:$D$500,MATCH($B5,Repport!$B$1:$B$500,0)-1),I$1,),\"\")","v":1500}]
[1,{"$f":"IFERROR(INDEX(Repport!$B$2:$B$500,MATCH($A6,Repport!$B$2:$B$500,0)+1),\"\")","v":"محمد حامد"},{"$f":"IFERROR(OFFSET(INDEX(Repport!$B$1:$B$500,MATCH($B6,Repport!$B$1:$B$500,0)),C$1,),\"\")","v":40308},{"$f":"IFERROR(OFFSET(INDEX(Repport!$B$1:$B$500,MATCH($B6,Repport!$B$1:$B$500,0)),D$1,),\"\")","v":"Clase1"},{"$f":"IFERROR(OFFSET(INDEX(Repport!$B$1:$B$500,MATCH($B6,Repport!$B$1:$B$500,0)),E$1,),\"\")","v":"Form1"},{"$f":"IFERROR(OFFSET(INDEX(Repport!$B$1:$B$500,MATCH($B6,Repport!$B$1:$B$500,0)),F$1,),\"\")","v":"Yes"},{"$f":"IFERROR(INDEX(Repport!$D$1:$D$500,MATCH($B6,Repport!$B$1:$B$500,0)-1),\"\")","v":"A1"},{"$f":"IFERROR(OFFSET(INDEX(Repport!$D$1:$D$500,MATCH($B6,Repport!$B$1:$B$500,0)-1),H$1,),\"\")","v":"yes"},{"$f":"IFERROR(OFFSET(INDEX(Repport!$D$1:$D$500,MATCH($B6,Repport!$B$1:$B$500,0)-1),I$1,),\"\")","v":1500}]
[3,{"$f":"IFERROR(INDEX(Repport!$B$2:$B$500,MATCH($A7,Repport!$B$2:$B$500,0)+1),\"\")","v":"احمد محمود"},{"$f":"IFERROR(OFFSET(INDEX(Repport!$B$1:$B$500,MATCH($B7,Repport!$B$1:$B$500,0)),C$1,),\"\")","v":0},{"$f":"IFERROR(OFFSET(INDEX(Repport!$B$1:$B$500,MATCH($B7,Repport!$B$1:$B$500,0)),D$1,),\"\")","v":0},{"$f":"IFERROR(OFFSET(INDEX(Repport!$B$1:$B$500,MATCH($B7,Repport!$B$1:$B$500,0)),E$1,),\"\")","v":0},{"$f":"IFERROR(OFFSET(INDEX(Repport!$B$1:$B$500,MATCH($B7,Repport!$B$1:$B$500,0)),F$1,),\"\")","v":0},{"$f":"IFERROR(INDEX(Repport!$D$1:$D$500,MATCH($B7,Repport!$B$1:$B$500,0)-1),\"\")","v":"A3"},{"$f":"IFERROR(OFFSET(INDEX(Repport!$D$1:$D$500,MATCH($B7,Repport!$B$1:$B$500,0)-1),H$1,),\"\")","v":0},{"$f":"IFERROR(OFFSET(INDEX(Repport!$D$1:$D$500,MATCH($B7,Repport!$B$1:$B$500,0)-1),I$1,),\"\")","v":0}]
[2,{"$f":"IFERROR(INDEX(Repport!$B$2:$B$500,MATCH($A8,Repport!$B$2:$B$500,0)+1),\"\")","v":"خلود ماهر"},{"$f":"IFERROR(OFFSET(INDEX(Repport!$B$1:$B$500,MATCH($B8,Repport!$B$1:$B$500,0)),C$1,),\"\")","v":0},{"$f":"IFERROR(OFFSET(INDEX(Repport!$B$1:$B$500,MATCH($B8,Repport!$B$1:$B$500,0)),D$1,),\"\")","v":0},{"$f":"IFERROR(OFFSET(INDEX(Repport!$B$1:$B$500,MATCH($B8,Repport!$B$1:$B$500,0)),E$1,),\"\")","v":0},{"$f":"IFERROR(OFFSET(INDEX(Repport!$B$1:$B$500,MATCH($B8,Repport!$B$1:$B$500,0)),F$1,),\"\")","v":0},{"$f":"IFERROR(INDEX(Repport!$D$1:$D$500,MATCH($B8,Repport!$B$1:$B$500,0)-1),\"\")","v":"A2"},{"$f":"IFERROR(OFFSET(INDEX(Repport!$D$1:$D$500,MATCH($B8,Repport!$B$1:$B$500,0)-1),H$1,),\"\")","v":0},{"$f":"IFERROR(OFFSET(INDEX(Repport!$D$1:$D$500,MATCH($B8,Repport!$B$1:$B$500,0)-1),I$1,),\"\")","v":0}]
[2,{"$f":"IFERROR(INDEX(Repport!$B$2:$B$500,MATCH($A9,Repport!$B$2:$B$500,0)+1),\"\")","v":"خلود ماهر"},{"$f":"IFERROR(OFFSET(INDEX(Repport!$B$1:$B$500,MATCH($B9,Repport!$B$1:$B$500,0)),C$1,),\"\")","v":0},{"$f":"IFERROR(OFFSET(INDEX(Repport!$B$1:$B$500,MATCH($B9,Repport!$B$1:$B$500,0)),D$1,),\"\")","v":0},{"$f":"IFERROR(OFFSET(INDEX(Repport!$B$1:$B$500,MATCH($B9,Repport!$B$1:$B$500,0)),E$1,),\"\")","v":0},{"$f":"IFERROR(OFFSET(INDEX(Repport!$B$1:$B$500,MATCH($B9,Repport!$B$1:$B$500,0)),F$1,),\"\")","v":0},{"$f":"IFERROR(INDEX(Repport!$D$1:$D$500,MATCH($B9,Repport!$B$1:$B$500,0)-1),\"\")","v":"A2"},{"$f":"IFERROR(OFFSET(INDEX(Repport!$D$1:$D$500,MATCH($B9,Repport!$B$1:$B$500,0)-1),H$1,),\"\")","v":0},{"$f":"IFERROR(OFFSET(INDEX(Repport!$D$1:$D$500,MATCH($B9,Repport!$B$1:$B$500,0)-1),I$1,),\"\")","v":0}]
[3,{"$f":"IFERROR(INDEX(Repport!$B$2:$B$500,MATCH($A10,Repport!$B$2:$B$500,0)+1),\"\")","v":"احمد محمود"},{"$f":"IFERROR(OFFSET(INDEX(Repport!$B$1:$B$500,MATCH($B10,Repport!$B$1:$B$500,0)),C$1,),\"\")","v":0},{"$f":"IFERROR(OFFSET(INDEX(Repport!$B$1:$B$500,MATCH($B10,Repport!$B$1:$B$500,0)),D$1,),\"\")","v":0},{"$f":"IFERROR(OFFSET(INDEX(Repport!$B$1:$B$500,MATCH($B10,Repport!$B$1:$B$500,0)),E$1,),\"\")","v":0},{"$f":"IFERROR(OFFSET(INDEX(Repport!$B$1:$B$500,MATCH($B10,Repport!$B$1:$B$500,0)),F$1,),\"\")","v":0},{"$f":"IFERROR(INDEX(Repport!$D$1:$D$500,MATCH($B10,Repport!$B$1:$B$500,0)-1),\"\")","v":"A3"},{"$f":"IFERROR(OFFSET(INDEX(Repport!$D$1:$D$500,MATCH($B10,Repport!$B$1:$B$500,0)-1),H$1,),\"\")","v":0},{"$f":"IFERROR(OFFSET(INDEX(Repport!$D$1:$D$500,MATCH($B10,Repport!$B$1:$B$500,0)-1),I$1,),\"\")","v":0}]
[1,{"$f":"IFERROR(INDEX(Repport!$B$2:$B$500,MATCH($A11,Repport!$B$2:$B$500,0)+1),\"\")","v":"محمد حامد"},{"$f":"IFERROR(OFFSET(INDEX(Repport!$B$1:$B$500,MATCH($B11,Repport!$B$1:$B$500,0)),C$1,),\"\")","v":40308},{"$f":"IFERROR(OFFSET(INDEX(Repport!$B$1:$B$500,MATCH($B11,Repport!$B$1:$B$500,0)),D$1,),\"\")","v":"Clase1"},{"$f":"IFERROR(OFFSET(INDEX(Repport!$B$1:$B$500,MATCH($B11,Repport!$B$1:$B$500,0)),E$1,),\"\")","v":"Form1"},{"$f":"IFERROR(OFFSET(INDEX(Repport!$B$1:$B$500,MATCH($B11,Repport!$B$1:$B$500,0)),F$1,),\"\")","v":"Yes"},{"$f":"IFERROR(INDEX(Repport!$D$1:$D$500,MATCH($B11,Repport!$B$1:$B$500,0)-1),\"\")","v":"A1"},{"$f":"IFERROR(OFFSET(INDEX(Repport!$D$1:$D$500,MATCH($B11,Repport!$B$1:$B$500,0)-1),H$1,),\"\")","v":"yes"},{"$f":"IFERROR(OFFSET(INDEX(Repport!$D$1:$D$500,MATCH($B11,Repport!$B$1:$B$500,0)-1),I$1,),\"\")","v":1500}]
[10,{"$f":"IFERROR(INDEX(Repport!$B$2:$B$500,MATCH($A12,Repport!$B$2:$B$500,0)+1),\"\")","v":"هاجر عطية بسيوني"},{"$f":"IFERROR(OFFSET(INDEX(Repport!$B$1:$B$500,MATCH($B12,Repport!$B$1:$B$500,0)),C$1,),\"\")","v":0},{"$f":"IFERROR(OFFSET(INDEX(Repport!$B$1:$B$500,MATCH($B12,Repport!$B$1:$B$500,0)),D$1,),\"\")","v":0},{"$f":"IFERROR(OFFSET(INDEX(Repport!$B$1:$B$500,MATCH($B12,Repport!$B$1:$B$500,0)),E$1,),\"\")","v":0},{"$f":"IFERROR(OFFSET(INDEX(Repport!$B$1:$B$500,MATCH($B12,Repport!$B$1:$B$500,0)),F$1,),\"\")","v":0},{"$f":"IFERROR(INDEX(Repport!$D$1:$D$500,MATCH($B12,Repport!$B$1:$B$500,0)-1),\"\")","v":"A10"},{"$f":"IFERROR(OFFSET(INDEX(Repport!$D$1:$D$500,MATCH($B12,Repport!$B$1:$B$500,0)-1),H$1,),\"\")","v":0},{"$f":"IFERROR(OFFSET(INDEX(Repport!$D$1:$D$500,MATCH($B12,Repport!$B$1:$B$500,0)-1),I$1,),\"\")","v":0}]
[9,{"$f":"IFERROR(INDEX(Repport!$B$2:$B$500,MATCH($A13,Repport!$B$2:$B$500,0)+1),\"\")","v":"محمود طه حسن"},{"$f":"IFERROR(OFFSET(INDEX(Repport!$B$1:$B$500,MATCH($B13,Repport!$B$1:$B$500,0)),C$1,),\"\")","v":0},{"$f":"IFERROR(OFFSET(INDEX(Repport!$B$1:$B$500,MATCH($B13,Repport!$B$1:$B$500,0)),D$1,),\"\")","v":0},{"$f":"IFERROR(OFFSET(INDEX(Repport!$B$1:$B$500,MATCH($B13,Repport!$B$1:$B$500,0)),E$1,),\"\")","v":0},{"$f":"IFERROR(OFFSET(INDEX(Repport!$B$1:$B$500,MATCH($B13,Repport!$B$1:$B$500,0)),F$1,),\"\")","v":0},{"$f":"IFERROR(INDEX(Repport!$D$1:$D$500,MATCH($B13,Repport!$B$1:$B$500,0)-1),\"\")","v":"A9"},{"$f":"IFERROR(OFFSET(INDEX(Repport!$D$1:$D$500,MATCH($B13,Repport!$B$1:$B$500,0)-1),H$1,),\"\")","v":0},{"$f":"IFERROR(OFFSET(INDEX(Repport!$D$1:$D$500,MATCH($B13,Repport!$B$1:$B$500,0)-1),I$1,),\"\")","v":0}]
[null,{"$f":"IFERROR(INDEX(Repport!$B$2:$B$500,MATCH($A14,Repport!$B$2:$B$500,0)+1),\"\")","v":""},{"$f":"IFERROR(OFFSET(INDEX(Repport!$B$1:$B$500,MATCH($B14,Repport!$B$1:$B$500,0)),C$1,),\"\")","v":""},{"$f":"IFERROR(OFFSET(INDEX(Repport!$B$1:$B$500,MATCH($B14,Repport!$B$1:$B$500,0)),D$1,),\"\")","v":""},{"$f":"IFERROR(OFFSET(INDEX(Repport!$B$1:$B$500,MATCH($B14,Repport!$B$1:$B$500,0)),E$1,),\"\")","v":""},{"$f":"IFERROR(OFFSET(INDEX(Repport!$B$1:$B$500,MATCH($B14,Repport!$B$1:$B$500,0)),F$1,),\"\")","v":""},{"$f":"IFERROR(INDEX(Repport!$D$1:$D$500,MATCH($B14,Repport!$B$1:$B$500,0)-1),\"\")","v":""},{"$f":"IFERROR(OFFSET(INDEX(Repport!$D$1:$D$500,MATCH($B14,Repport!$B$1:$B$500,0)-1),H$1,),\"\")","v":""},{"$f":"IFERROR(OFFSET(INDEX(Repport!$D$1:$D$500,MATCH($B14,Repport!$B$1:$B$500,0)-1),I$1,),\"\")","v":""}]
[null,{"$f":"IFERROR(INDEX(Repport!$B$2:$B$500,MATCH($A15,Repport!$B$2:$B$500,0)+1),\"\")","v":""},{"$f":"IFERROR(OFFSET(INDEX(Repport!$B$1:$B$500,MATCH($B15,Repport!$B$1:$B$500,0)),C$1,),\"\")","v":""},{"$f":"IFERROR(OFFSET(INDEX(Repport!$B$1:$B$500,MATCH($B15,Repport!$B$1:$B$500,0)),D$1,),\"\")","v":""},{"$f":"IFERROR(OFFSET(INDEX(Repport!$B$1:$B$500,MATCH($B15,Repport!$B$1:$B$500,0)),E$1,),\"\")","v":""},{"$f":"IFERROR(OFFSET(INDEX(Repport!$B$1:$B$500,MATCH($B15,Repport!$B$1:$B$500,0)),F$1,),\"\")","v":""},{"$f":"IFERROR(INDEX(Repport!$D$1:$D$500,MATCH($B15,Repport!$B$1:$B$500,0)-1),\"\")","v":""},{"$f":"IFERROR(OFFSET(INDEX(Repport!$D$1:$D$500,MATCH($B15,Repport!$B$1:$B$500,0)-1),H$1,),\"\")","v":""},{"$f":"IFERROR(OFFSET(INDEX(Repport!$D$1:$D$500,MATCH($B15,Repport!$B$1:$B$500,0)-1),I$1,),\"\")","v":""}]
[null,{"$f":"IFERROR(INDEX(Repport!$B$2:$B$500,MATCH($A16,Repport!$B$2:$B$500,0)+1),\"\")","v":""},{"$f":"IFERROR(OFFSET(INDEX(Repport!$B$1:$B$500,MATCH($B16,Repport!$B$1:$B$500,0)),C$1,),\"\")","v":""},{"$f":"IFERROR(OFFSET(INDEX(Repport!$B$1:$B$500,MATCH($B16,Repport!$B$1:$B$500,0)),D$1,),\"\")","v":""},{"$f":"IFERROR(OFFSET(INDEX(Repport!$B$1:$B$500,MATCH($B16,Repport!$B$1:$B$500,0)),E$1,),\"\")","v":""},{"$f":"IFERROR(OFFSET(INDEX(Repport!$B$1:$B$500,MATCH($B16,Repport!$B$1:$B$500,0)),F$1,),\"\")","v":""},{"$f":"IFERROR(INDEX(Repport!$D$1:$D$500,MATCH($B16,Repport!$B$1:$B$500,0)-1),\"\")","v":""},{"$f":"IFERROR(OFFSET(INDEX(Repport!$D$1:$D$500,MATCH($B16,Repport!$B$1:$B$500,0)-1),H$1,),\"\")","v":""},{"$f":"IFERROR(OFFSET(INDEX(Repport!$D$1:$D$500,MATCH($B16,Repport!$B$1:$B$500,0)-1),I$1,),\"\")","v":""}]
[null,{"$f":"IFERROR(INDEX(Repport!$B$2:$B$500,MATCH($A17,Repport!$B$2:$B$500,0)+1),\"\")","v":""},{"$f":"IFERROR(OFFSET(INDEX(Repport!$B$1:$B$500,MATCH($B17,Repport!$B$1:$B$500,0)),C$1,),\"\")","v":""},{"$f":"IFERROR(OFFSET(INDEX(Repport!$B$1:$B$500,MATCH($B17,Repport!$B$1:$B$500,0)),D$1,),\"\")","v":""},{"$f":"IFERROR(OFFSET(INDEX(Repport!$B$1:$B$500,MATCH($B17,Repport!$B$1:$B$500,0)),E$1,),\"\")","v":""},{"$f":"IFERROR(OFFSET(INDEX(Repport!$B$1:$B$500,MATCH($B17,Repport!$B$1:$B$500,0)),F$1,),\"\")","v":""},{"$f":"IFERROR(INDEX(Repport!$D$1:$D$500,MATCH($B17,Repport!$B$1:$B$500,0)-1),\"\")","v":""},{"$f":"IFERROR(OFFSET(INDEX(Repport!$D$1:$D$500,MATCH($B17,Repport!$B$1:$B$500,0)-1),H$1,),\"\")","v":""},{"$f":"IFERROR(OFFSET(INDEX(Repport!$D$1:$D$500,MATCH($B17,Repport!$B$1:$B$500,0)-1),I$1,),\"\")","v":""}]
[null,{"$f":"IFERROR(INDEX(Repport!$B$2:$B$500,MATCH($A18,Repport!$B$2:$B$500,0)+1),\"\")","v":""},{"$f":"IFERROR(OFFSET(INDEX(Repport!$B$1:$B$500,MATCH($B18,Repport!$B$1:$B$500,0)),C$1,),\"\")","v":""},{"$f":"IFERROR(OFFSET(INDEX(Repport!$B$1:$B$500,MATCH($B18,Repport!$B$1:$B$500,0)),D$1,),\"\")","v":""},{"$f":"IFERROR(OFFSET(INDEX(Repport!$B$1:$B$500,MATCH($B18,Repport!$B$1:$B$500,0)),E$1,),\"\")","v":""},{"$f":"IFERROR(OFFSET(INDEX(Repport!$B$1:$B$500,MATCH($B18,Repport!$B$1:$B$500,0)),F$1,),\"\")","v":""},{"$f":"IFERROR(INDEX(Repport!$D$1:$D$500,MATCH($B18,Repport!$B$1:$B$500,0)-1),\"\")","v":""},{"$f":"IFERROR(OFFSET(INDEX(Repport!$D$1:$D$500,MATCH($B18,Repport!$B$1:$B$500,0)-1),H$1,),\"\")","v":""},{"$f":"IFERROR(OFFSET(INDEX(Repport!$D$1:$D$500,MATCH($B18,Repport!$B$1:$B$500,0)-1),I$1,),\"\")","v":""}]
[null,{"$f":"IFERROR(INDEX(Repport!$B$2:$B$500,MATCH($A19,Repport!$B$2:$B$500,0)+1),\"\")","v":""},{"$f":"IFERROR(OFFSET(INDEX(Repport!$B$1:$B$500,MATCH($B19,Repport!$B$1:$B$500,0)),C$1,),\"\")","v":""},{"$f":"IFERROR(OFFSET(INDEX(Repport!$B$1:$B$500,MATCH($B19,Repport!$B$1:$B$500,0)),D$1,),\"\")","v":""},{"$f":"IFERROR(OFFSET(INDEX(Repport!$B$1:$B$500,MATCH($B19,Repport!$B$1:$B$500,0)),E$1,),\"\")","v":""},{"$f":"IFERROR(OFFSET(INDEX(Repport!$B$1:$B$500,MATCH($B19,Repport!$B$1:$B$500,0)),F$1,),\"\")","v":""},{"$f":"IFERROR(INDEX(Repport!$D$1:$D$500,MATCH($B19,Repport!$B$1:$B$500,0)-1),\"\")","v":""},{"$f":"IFERROR(OFFSET(INDEX(Repport!$D$1:$D$500,MATCH($B19,Repport!$B$1:$B$500,0)-1),H$1,),\"\")","v":""},{"$f":"IFERROR(OFFSET(INDEX(Repport!$D$1:$D$500,MATCH($B19,Repport!$B$1:$B$500,0)-1),I$1,),\"\")","v":""}]
[null,{"$f":"IFERROR(INDEX(Repport!$B$2:$B$500,MATCH($A20,Repport!$B$2:$B$500,0)+1),\"\")","v":""},{"$f":"IFERROR(OFFSET(INDEX(Repport!$B$1:$B$500,MATCH($B20,Repport!$B$1:$B$500,0)),C$1,),\"\")","v":""},{"$f":"IFERROR(OFFSET(INDEX(Repport!$B$1:$B$500,MATCH($B20,Repport!$B$1:$B$500,0)),D$1,),\"\")","v":""},{"$f":"IFERROR(OFFSET(INDEX(Repport!$B$1:$B$500,MATCH($B20,Repport!$B$1:$B$500,0)),E$1,),\"\")","v":""},{"$f":"IFERROR(OFFSET(INDEX(Repport!$B$1:$B$500,MATCH($B20,Repport!$B$1:$B$500,0)),F$1,),\"\")","v":""},{"$f":"IFERROR(INDEX(Repport!$D$1:$D$500,MATCH($B20,Repport!$B$1:$B$500,0)-1),\"\")","v":""},{"$f":"IFERROR(OFFSET(INDEX(Repport!$D$1:$D$500,MATCH($B20,Repport!$B$1:$B$500,0)-1),H$1,),\"\")","v":""},{"$f":"IFERROR(OFFSET(INDEX(Repport!$D$1:$D$500,MATCH($B20,Repport!$B$1:$B$500,0)-1),I$1,),\"\")","v":""}]
[null,{"$f":"IFERROR(INDEX(Repport!$B$2:$B$500,MATCH($A21,Repport!$B$2:$B$500,0)+1),\"\")","v":""},{"$f":"IFERROR(OFFSET(INDEX(Repport!$B$1:$B$500,MATCH($B21,Repport!$B$1:$B$500,0)),C$1,),\"\")","v":""},{"$f":"IFERROR(OFFSET(INDEX(Repport!$B$1:$B$500,MATCH($B21,Repport!$B$1:$B$500,0)),D$1,),\"\")","v":""},{"$f":"IFERROR(OFFSET(INDEX(Repport!$B$1:$B$500,MATCH($B21,Repport!$B$1:$B$500,0)),E$1,),\"\")","v":""},{"$f":"IFERROR(OFFSET(INDEX(Repport!$B$1:$B$500,MATCH($B21,Repport!$B$1:$B$500,0)),F$1,),\"\")","v":""},{"$f":"IFERROR(INDEX(Repport!$D$1:$D$500,MATCH($B21,Repport!$B$1:$B$500,0)-1),\"\")","v":""},{"$f":"IFERROR(OFFSET(INDEX(Repport!$D$1:$D$500,MATCH($B21,Repport!$B$1:$B$500,0)-1),H$1,),\"\")","v":""},{"$f":"IFERROR(OFFSET(INDEX(Repport!$D$1:$D$500,MATCH($B21,Repport!$B$1:$B$500,0)-1),I$1,),\"\")","v":""}]
[null,{"$f":"IFERROR(INDEX(Repport!$B$2:$B$500,MATCH($A22,Repport!$B$2:$B$500,0)+1),\"\")","v":""},{"$f":"IFERROR(OFFSET(INDEX(Repport!$B$1:$B$500,MATCH($B22,Repport!$B$1:$B$500,0)),C$1,),\"\")","v":""},{"$f":"IFERROR(OFFSET(INDEX(Repport!$B$1:$B$500,MATCH($B22,Repport!$B$1:$B$500,0)),D$1,),\"\")","v":""},{"$f":"IFERROR(OFFSET(INDEX(Repport!$B$1:$B$500,MATCH($B22,Repport!$B$1:$B$500,0)),E$1,),\"\")","v":""},{"$f":"IFERROR(OFFSET(INDEX(Repport!$B$1:$B$500,MATCH($B22,Repport!$B$1:$B$500,0)),F$1,),\"\")","v":""},{"$f":"IFERROR(INDEX(Repport!$D$1:$D$500,MATCH($B22,Repport!$B$1:$B$500,0)-1),\"\")","v":""},{"$f":"IFERROR(OFFSET(INDEX(Repport!$D$1:$D$500,MATCH($B22,Repport!$B$1:$B$500,0)-1),H$1,),\"\")","v":""},{"$f":"IFERROR(OFFSET(INDEX(Repport!$D$1:$D$500,MATCH($B22,Repport!$B$1:$B$500,0)-1),I$1,),\"\")","v":""}]
[null,{"$f":"IFERROR(INDEX(Repport!$B$2:$B$500,MATCH($A23,Repport!$B$2:$B$500,0)+1),\"\")","v":""},{"$f":"IFERROR(OFFSET(INDEX(Repport!$B$1:$B$500,MATCH($B23,Repport!$B$1:$B$500,0)),C$1,),\"\")","v":""},{"$f":"IFERROR(OFFSET(INDEX(Repport!$B$1:$B$500,MATCH($B23,Repport!$B$1:$B$500,0)),D$1,),\"\")","v":""},{"$f":"IFERROR(OFFSET(INDEX(Repport!$B$1:$B$500,MATCH($B23,Repport!$B$1:$B$500,0)),E$1,),\"\")","v":""},{"$f":"IFERROR(OFFSET(INDEX(Repport!$B$1:$B$500,MATCH($B23,Repport!$B$1:$B$500,0)),F$1,),\"\")","v":""},{"$f":"IFERROR(INDEX(Repport!$D$1:$D$500,MATCH($B23,Repport!$B$1:$B$500,0)-1),\"\")","v":""},{"$f":"IFERROR(OFFSET(INDEX(Repport!$D$1:$D$500,MATCH($B23,Repport!$B$1:$B$500,0)-1),H$1,),\"\")","v":""},{"$f":"IFERROR(OFFSET(INDEX(Repport!$D$1:$D$500,MATCH($B23,Repport!$B$1:$B$500,0)-1),I$1,),\"\")","v":""}]
[null,{"$f":"IFERROR(INDEX(Repport!$B$2:$B$500,MATCH($A24,Repport!$B$2:$B$500,0)+1),\"\")","v":""},{"$f":"IFERROR(OFFSET(INDEX(Repport!$B$1:$B$500,MATCH($B24,Repport!$B$1:$B$500,0)),C$1,),\"\")","v":""},{"$f":"IFERROR(OFFSET(INDEX(Repport!$B$1:$B$500,MATCH($B24,Repport!$B$1:$B$500,0)),D$1,),\"\")","v":""},{"$f":"IFERROR(OFFSET(INDEX(Repport!$B$1:$B$500,MATCH($B24,Repport!$B$1:$B$500,0)),E$1,),\"\")","v":""},{"$f":"IFERROR(OFFSET(INDEX(Repport!$B$1:$B$500,MATCH($B24,Repport!$B$1:$B$500,0)),F$1,),\"\")","v":""},{"$f":"IFERROR(INDEX(Repport!$D$1:$D$500,MATCH($B24,Repport!$B$1:$B$500,0)-1),\"\")","v":""},{"$f":"IFERROR(OFFSET(INDEX(Repport!$D$1:$D$500,MATCH($B24,Repport!$B$1:$B$500,0)-1),H$1,),\"\")","v":""},{"$f":"IFERROR(OFFSET(INDEX(Repport!$D$1:$D$500,MATCH($B24,Repport!$B$1:$B$500,0)-1),I$1,),\"\")","v":""}]
[null,{"$f":"IFERROR(INDEX(Repport!$B$2:$B$500,MATCH($A25,Repport!$B$2:$B$500,0)+1),\"\")","v":""},{"$f":"IFERROR(OFFSET(INDEX(Repport!$B$1:$B$500,MATCH($B25,Repport!$B$1:$B$500,0)),C$1,),\"\")","v":""},{"$f":"IFERROR(OFFSET(INDEX(Repport!$B$1:$B$500,MATCH($B25,Repport!$B$1:$B$500,0)),D$1,),\"\")","v":""},{"$f":"IFERROR(OFFSET(INDEX(Repport!$B$1:$B$500,MATCH($B25,Repport!$B$1:$B$500,0)),E$1,),\"\")","v":""},{"$f":"IFERROR(OFFSET(INDEX(Repport!$B$1:$B$500,MATCH($B25,Repport!$B$1:$B$500,0)),F$1,),\"\")","v":""},{"$f":"IFERROR(INDEX(Repport!$D$1:$D$500,MATCH($B25,Repport!$B$1:$B$500,0)-1),\"\")","v":""},{"$f":"IFERROR(OFFSET(INDEX(Repport!$D$1:$D$500,MATCH($B25,Repport!$B$1:$B$500,0)-1),H$1,),\"\")","v":""},{"$f":"IFERROR(OFFSET(INDEX(Repport!$D$1:$D$500,MATCH($B25,Repport!$B$1:$B$500,0)-1),I$1,),\"\")","v":""}]
[null,{"$f":"IFERROR(INDEX(Repport!$B$2:$B$500,MATCH($A26,Repport!$B$2:$B$500,0)+1),\"\")","v":""},{"$f":"IFERROR(OFFSET(INDEX(Repport!$B$1:$B$500,MATCH($B26,Repport!$B$1:$B$500,0)),C$1,),\"\")","v":""},{"$f":"IFERROR(OFFSET(INDEX(Repport!$B$1:$B$500,MATCH($B26,Repport!$B$1:$B$500,0)),D$1,),\"\")","v":""},{"$f":"IFERROR(OFFSET(INDEX(Repport!$B$1:$B$500,MATCH($B26,Repport!$B$1:$B$500,0)),E$1,),\"\")","v":""},{"$f":"IFERROR(OFFSET(INDEX(Repport!$B$1:$B$500,MATCH($B26,Repport!$B$1:$B$500,0)),F$1,),\"\")","v":""},{"$f":"IFERROR(INDEX(Repport!$D$1:$D$500,MATCH($B26,Repport!$B$1:$B$500,0)-1),\"\")","v":""},{"$f":"IFERROR(OFFSET(INDEX(Repport!$D$1:$D$500,MATCH($B26,Repport!$B$1:$B$500,0)-1),H$1,),\"\")","v":""},{"$f":"IFERROR(OFFSET(INDEX(Repport!$D$1:$D$500,MATCH($B26,Repport!$B$1:$B$500,0)-1),I$1,),\"\")","v":""}]
[null,{"$f":"IFERROR(INDEX(Repport!$B$2:$B$500,MATCH($A27,Repport!$B$2:$B$500,0)+1),\"\")","v":""},{"$f":"IFERROR(OFFSET(INDEX(Repport!$B$1:$B$500,MATCH($B27,Repport!$B$1:$B$500,0)),C$1,),\"\")","v":""},{"$f":"IFERROR(OFFSET(INDEX(Repport!$B$1:$B$500,MATCH($B27,Repport!$B$1:$B$500,0)),D$1,),\"\")","v":""},{"$f":"IFERROR(OFFSET(INDEX(Repport!$B$1:$B$500,MATCH($B27,Repport!$B$1:$B$500,0)),E$1,),\"\")","v":""},{"$f":"IFERROR(OFFSET(INDEX(Repport!$B$1:$B$500,MATCH($B27,Repport!$B$1:$B$500,0)),F$1,),\"\")","v":""},{"$f":"IFERROR(INDEX(Repport!$D$1:$D$500,MATCH($B27,Repport!$B$1:$B$500,0)-1),\"\")","v":""},{"$f":"IFERROR(OFFSET(INDEX(Repport!$D$1:$D$500,MATCH($B27,Repport!$B$1:$B$500,0)-1),H$1,),\"\")","v":""},{"$f":"IFERROR(OFFSET(INDEX(Repport!$D$1:$D$500,MATCH($B27,Repport!$B$1:$B$500,0)-1),I$1,),\"\")","v":""}]
[null,{"$f":"IFERROR(INDEX(Repport!$B$2:$B$500,MATCH($A28,Repport!$B$2:$B$500,0)+1),\"\")","v":""},{"$f":"IFERROR(OFFSET(INDEX(Repport!$B$1:$B$500,MATCH($B28,Repport!$B$1:$B$500,0)),C$1,),\"\")","v":""},{"$f":"IFERROR(OFFSET(INDEX(Repport!$B$1:$B$500,MATCH($B28,Repport!$B$1:$B$500,0)),D$1,),\"\")","v":""},{"$f":"IFERROR(OFFSET(INDEX(Repport!$B$1:$B$500,MATCH($B28,Repport!$B$1:$B$500,0)),E$1,),\"\")","v":""},{"$f":"IFERROR(OFFSET(INDEX(Repport!$B$1:$B$500,MATCH($B28,Repport!$B$1:$B$500,0)),F$1,),\"\")","v":""},{"$f":"IFERROR(INDEX(Repport!$D$1:$D$500,MATCH($B28,Repport!$B$1:$B$500,0)-1),\"\")","v":""},{"$f":"IFERROR(OFFSET(INDEX(Repport!$D$1:$D$500,MATCH($B28,Repport!$B$1:$B$500,0)-1),H$1,),\"\")","v":""},{"$f":"IFERROR(OFFSET(INDEX(Repport!$D$1:$D$500,MATCH($B28,Repport!$B$1:$B$500,0)-1),I$1,),\"\")","v":""}]
[null,{"$f":"IFERROR(INDEX(Repport!$B$2:$B$500,MATCH($A29,Repport!$B$2:$B$500,0)+1),\"\")","v":""},{"$f":"IFERROR(OFFSET(INDEX(Repport!$B$1:$B$500,MATCH($B29,Repport!$B$1:$B$500,0)),C$1,),\"\")","v":""},{"$f":"IFERROR(OFFSET(INDEX(Repport!$B$1:$B$500,MATCH($B29,Repport!$B$1:$B$500,0)),D$1,),\"\")","v":""},{"$f":"IFERROR(OFFSET(INDEX(Repport!$B$1:$B$500,MATCH($B29,Repport!$B$1:$B$500,0)),E$1,),\"\")","v":""},{"$f":"IFERROR(OFFSET(INDEX(Repport!$B$1:$B$500,MATCH($B29,Repport!$B$1:$B$500,0)),F$1,),\"\")","v":""},{"$f":"IFERROR(INDEX(Repport!$D$1:$D$500,MATCH($B29,Repport!$B$1:$B$500,0)-1),\"\")","v":""},{"$f":"IFERROR(OFFSET(INDEX(Repport!$D$1:$D$500,MATCH($B29,Repport!$B$1:$B$500,0)-1),H$1,),\"\")","v":""},{"$f":"IFERROR(OFFSET(INDEX(Repport!$D$1:$D$500,MATCH($B29,Repport!$B$1:$B$500,0)-1),I$1,),\"\")","v":""}]
[null,{"$f":"IFERROR(INDEX(Repport!$B$2:$B$500,MATCH($A30,Repport!$B$2:$B$500,0)+1),\"\")","v":""},{"$f":"IFERROR(OFFSET(INDEX(Repport!$B$1:$B$500,MATCH($B30,Repport!$B$1:$B$500,0)),C$1,),\"\")","v":""},{"$f":"IFERROR(OFFSET(INDEX(Repport!$B$1:$B$500,MATCH($B30,Repport!$B$1:$B$500,0)),D$1,),\"\")","v":""},{"$f":"IFERROR(OFFSET(INDEX(Repport!$B$1:$B$500,MATCH($B30,Repport!$B$1:$B$500,0)),E$1,),\"\")","v":""},{"$f":"IFERROR(OFFSET(INDEX(Repport!$B$1:$B$500,MATCH($B30,Repport!$B$1:$B$500,0)),F$1,),\"\")","v":""},{"$f":"IFERROR(INDEX(Repport!$D$1:$D$500,MATCH($B30,Repport!$B$1:$B$500,0)-1),\"\")","v":""},{"$f":"IFERROR(OFFSET(INDEX(Repport!$D$1:$D$500,MATCH($B30,Repport!$B$1:$B$500,0)-1),H$1,),\"\")","v":""},{"$f":"IFERROR(OFFSET(INDEX(Repport!$D$1:$D$500,MATCH($B30,Repport!$B$1:$B$500,0)-1),I$1,),\"\")","v":""}]
[null,{"$f":"IFERROR(INDEX(Repport!$B$2:$B$500,MATCH($A31,Repport!$B$2:$B$500,0)+1),\"\")","v":""},{"$f":"IFERROR(OFFSET(INDEX(Repport!$B$1:$B$500,MATCH($B31,Repport!$B$1:$B$500,0)),C$1,),\"\")","v":""},{"$f":"IFERROR(OFFSET(INDEX(Repport!$B$1:$B$500,MATCH($B31,Repport!$B$1:$B$500,0)),D$1,),\"\")","v":""},{"$f":"IFERROR(OFFSET(INDEX(Repport!$B$1:$B$500,MATCH($B31,Repport!$B$1:$B$500,0)),E$1,),\"\")","v":""},{"$f":"IFERROR(OFFSET(INDEX(Repport!$B$1:$B$500,MATCH($B31,Repport!$B$1:$B$500,0)),F$1,),\"\")","v":""},{"$f":"IFERROR(INDEX(Repport!$D$1:$D$500,MATCH($B31,Repport!$B$1:$B$500,0)-1),\"\")","v":""},{"$f":"IFERROR(OFFSET(INDEX(Repport!$D$1:$D$500,MATCH($B31,Repport!$B$1:$B$500,0)-1),H$1,),\"\")","v":""},{"$f":"IFERROR(OFFSET(INDEX(Repport!$D$1:$D$500,MATCH($B31,Repport!$B$1:$B$500,0)-1),I$1,),\"\")","v":""}]
[null,{"$f":"IFERROR(INDEX(Repport!$B$2:$B$500,MATCH($A32,Repport!$B$2:$B$500,0)+1),\"\")","v":""},{"$f":"IFERROR(OFFSET(INDEX(Repport!$B$1:$B$500,MATCH($B32,Repport!$B$1:$B$500,0)),C$1,),\"\")","v":""},{"$f":"IFERROR(OFFSET(INDEX(Repport!$B$1:$B$500,MATCH($B32,Repport!$B$1:$B$500,0)),D$1,),\"\")","v":""},{"$f":"IFERROR(OFFSET(INDEX(Repport!$B$1:$B$500,MATCH($B32,Repport!$B$1:$B$500,0)),E$1,),\"\")","v":""},{"$f":"IFERROR(OFFSET(INDEX(Repport!$B$1:$B$500,MATCH($B32,Repport!$B$1:$B$500,0)),F$1,),\"\")","v":""},{"$f":"IFERROR(INDEX(Repport!$D$1:$D$500,MATCH($B32,Repport!$B$1:$B$500,0)-1),\"\")","v":""},{"$f":"IFERROR(OFFSET(INDEX(Repport!$D$1:$D$500,MATCH($B32,Repport!$B$1:$B$500,0)-1),H$1,),\"\")","v":""},{"$f":"IFERROR(OFFSET(INDEX(Repport!$D$1:$D$500,MATCH($B32,Repport!$B$1:$B$500,0)-1),I$1,),\"\")","v":""}]
[null,{"$f":"IFERROR(INDEX(Repport!$B$2:$B$500,MATCH($A33,Repport!$B$2:$B$500,0)+1),\"\")","v":""},{"$f":"IFERROR(OFFSET(INDEX(Repport!$B$1:$B$500,MATCH($B33,Repport!$B$1:$B$500,0)),C$1,),\"\")","v":""},{"$f":"IFERROR(OFFSET(INDEX(Repport!$B$1:$B$500,MATCH($B33,Repport!$B$1:$B$500,0)),D$1,),\"\")","v":""},{"$f":"IFERROR(OFFSET(INDEX(Repport!$B$1:$B$500,MATCH($B33,Repport!$B$1:$B$500,0)),E$1,),\"\")","v":""},{"$f":"IFERROR(OFFSET(INDEX(Repport!$B$1:$B$500,MATCH($B33,Repport!$B$1:$B$500,0)),F$1,),\"\")","v":""},{"$f":"IFERROR(INDEX(Repport!$D$1:$D$500,MATCH($B33,Repport!$B$1:$B$500,0)-1),\"\")","v":""},{"$f":"IFERROR(OFFSET(INDEX(Repport!$D$1:$D$500,MATCH($B33,Repport!$B$1:$B$500,0)-1),H$1,),\"\")","v":""},{"$f":"IFERROR(OFFSET(INDEX(Repport!$D$1:$D$500,MATCH($B33,Repport!$B$1:$B$500,0)-1),I$1,),\"\")","v":""}]
[null,{"$f":"IFERROR(INDEX(Repport!$B$2:$B$500,MATCH($A34,Repport!$B$2:$B$500,0)+1),\"\")","v":""},{"$f":"IFERROR(OFFSET(INDEX(Repport!$B$1:$B$500,MATCH($B34,Repport!$B$1:$B$500,0)),C$1,),\"\")","v":""},{"$f":"IFERROR(OFFSET(INDEX(Repport!$B$1:$B$500,MATCH($B34,Repport!$B$1:$B$500,0)),D$1,),\"\")","v":""},{"$f":"IFERROR(OFFSET(INDEX(Repport!$B$1:$B$500,MATCH($B34,Repport!$B$1:$B$500,0)),E$1,),\"\")","v":""},{"$f":"IFERROR(OFFSET(INDEX(Repport!$B$1:$B$500,MATCH($B34,Repport!$B$1:$B$500,0)),F$1,),\"\")","v":""},{"$f":"IFERROR(INDEX(Repport!$D$1:$D$500,MATCH($B34,Repport!$B$1:$B$500,0)-1),\"\")","v":""},{"$f":"IFERROR(OFFSET(INDEX(Repport!$D$1:$D$500,MATCH($B34,Repport!$B$1:$B$500,0)-1),H$1,),\"\")","v":""},{"$f":"IFERROR(OFFSET(INDEX(Repport!$D$1:$D$500,MATCH($B34,Repport!$B$1:$B$500,0)-1),I$1,),\"\")","v":""}]
[null,{"$f":"IFERROR(INDEX(Repport!$B$2:$B$500,MATCH($A35,Repport!$B$2:$B$500,0)+1),\"\")","v":""},{"$f":"IFERROR(OFFSET(INDEX(Repport!$B$1:$B$500,MATCH($B35,Repport!$B$1:$B$500,0)),C$1,),\"\")","v":""},{"$f":"IFERROR(OFFSET(INDEX(Repport!$B$1:$B$500,MATCH($B35,Repport!$B$1:$B$500,0)),D$1,),\"\")","v":""},{"$f":"IFERROR(OFFSET(INDEX(Repport!$B$1:$B$500,MATCH($B35,Repport!$B$1:$B$500,0)),E$1,),\"\")","v":""},{"$f":"IFERROR(OFFSET(INDEX(Repport!$B$1:$B$500,MATCH($B35,Repport!$B$1:$B$500,0)),F$1,),\"\")","v":""},{"$f":"IFERROR(INDEX(Repport!$D$1:$D$500,MATCH($B35,Repport!$B$1:$B$500,0)-1),\"\")","v":""},{"$f":"IFERROR(OFFSET(INDEX(Repport!$D$1:$D$500,MATCH($B35,Repport!$B$1:$B$500,0)-1),H$1,),\"\")","v":""},{"$f":"IFERROR(OFFSET(INDEX(Repport!$D$1:$D$500,MATCH($B35,Repport!$B$1:$B$500,0)-1),I$1,),\"\")","v":""}]
[null,{"$f":"IFERROR(INDEX(Repport!$B$2:$B$500,MATCH($A36,Repport!$B$2:$B$500,0)+1),\"\")","v":""},{"$f":"IFERROR(OFFSET(INDEX(Repport!$B$1:$B$500,MATCH($B36,Repport!$B$1:$B$500,0)),C$1,),\"\")","v":""},{"$f":"IFERROR(OFFSET(INDEX(Repport!$B$1:$B$500,MATCH($B36,Repport!$B$1:$B$500,0)),D$1,),\"\")","v":""},{"$f":"IFERROR(OFFSET(INDEX(Repport!$B$1:$B$500,MATCH($B36,Repport!$B$1:$B$500,0)),E$1,),\"\")","v":""},{"$f":"IFERROR(OFFSET(INDEX(Repport!$B$1:$B$500,MATCH($B36,Repport!$B$1:$B$500,0)),F$1,),\"\")","v":""},{"$f":"IFERROR(INDEX(Repport!$D$1:$D$500,MATCH($B36,Repport!$B$1:$B$500,0)-1),\"\")","v":""},{"$f":"IFERROR(OFFSET(INDEX(Repport!$D$1:$D$500,MATCH($B36,Repport!$B$1:$B$500,0)-1),H$1,),\"\")","v":""},{"$f":"IFERROR(OFFSET(INDEX(Repport!$D$1:$D$500,MATCH($B36,Repport!$B$1:$B$500,0)-1),I$1,),\"\")","v":""}]
[null,{"$f":"IFERROR(INDEX(Repport!$B$2:$B$500,MATCH($A37,Repport!$B$2:$B$500,0)+1),\"\")","v":""},{"$f":"IFERROR(OFFSET(INDEX(Repport!$B$1:$B$500,MATCH($B37,Repport!$B$1:$B$500,0)),C$1,),\"\")","v":""},{"$f":"IFERROR(OFFSET(INDEX(Repport!$B$1:$B$500,MATCH($B37,Repport!$B$1:$B$500,0)),D$1,),\"\")","v":""},{"$f":"IFERROR(OFFSET(INDEX(Repport!$B$1:$B$500,MATCH($B37,Repport!$B$1:$B$500,0)),E$1,),\"\")","v":""},{"$f":"IFERROR(OFFSET(INDEX(Repport!$B$1:$B$500,MATCH($B37,Repport!$B$1:$B$500,0)),F$1,),\"\")","v":""},{"$f":"IFERROR(INDEX(Repport!$D$1:$D$500,MATCH($B37,Repport!$B$1:$B$500,0)-1),\"\")","v":""},{"$f":"IFERROR(OFFSET(INDEX(Repport!$D$1:$D$500,MATCH($B37,Repport!$B$1:$B$500,0)-1),H$1,),\"\")","v":""},{"$f":"IFERROR(OFFSET(INDEX(Repport!$D$1:$D$500,MATCH($B37,Repport!$B$1:$B$500,0)-1),I$1,),\"\")","v":""}]
[null,{"$f":"IFERROR(INDEX(Repport!$B$2:$B$500,MATCH($A38,Repport!$B$2:$B$500,0)+1),\"\")","v":""},{"$f":"IFERROR(OFFSET(INDEX(Repport!$B$1:$B$500,MATCH($B38,Repport!$B$1:$B$500,0)),C$1,),\"\")","v":""},{"$f":"IFERROR(OFFSET(INDEX(Repport!$B$1:$B$500,MATCH($B38,Repport!$B$1:$B$500,0)),D$1,),\"\")","v":""},{"$f":"IFERROR(OFFSET(INDEX(Repport!$B$1:$B$500,MATCH($B38,Repport!$B$1:$B$500,0)),E$1,),\"\")","v":""},{"$f":"IFERROR(OFFSET(INDEX(Repport!$B$1:$B$500,MATCH($B38,Repport!$B$1:$B$500,0)),F$1,),\"\")","v":""},{"$f":"IFERROR(INDEX(Repport!$D$1:$D$500,MATCH($B38,Repport!$B$1:$B$500,0)-1),\"\")","v":""},{"$f":"IFERROR(OFFSET(INDEX(Repport!$D$1:$D$500,MATCH($B38,Repport!$B$1:$B$500,0)-1),H$1,),\"\")","v":""},{"$f":"IFERROR(OFFSET(INDEX(Repport!$D$1:$D$500,MATCH($B38,Repport!$B$1:$B$500,0)-1),I$1,),\"\")","v":""}]
[null,{"$f":"IFERROR(INDEX(Repport!$B$2:$B$500,MATCH($A39,Repport!$B$2:$B$500,0)+1),\"\")","v":""},{"$f":"IFERROR(OFFSET(INDEX(Repport!$B$1:$B$500,MATCH($B39,Repport!$B$1:$B$500,0)),C$1,),\"\")","v":""},{"$f":"IFERROR(OFFSET(INDEX(Repport!$B$1:$B$500,MATCH($B39,Repport!$B$1:$B$500,0)),D$1,),\"\")","v":""},{"$f":"IFERROR(OFFSET(INDEX(Repport!$B$1:$B$500,MATCH($B39,Repport!$B$1:$B$500,0)),E$1,),\"\")","v":""},{"$f":"IFERROR(OFFSET(INDEX(Repport!$B$1:$B$500,MATCH($B39,Repport!$B$1:$B$500,0)),F$1,),\"\")","v":""},{"$f":"IFERROR(INDEX(Repport!$D$1:$D$500,MATCH($B39,Repport!$B$1:$B$500,0)-1),\"\")","v":""},{"$f":"IFERROR(OFFSET(INDEX(Repport!$D$1:$D$500,MATCH($B39,Repport!$B$1:$B$500,0)-1),H$1,),\"\")","v":""},{"$f":"IFERROR(OFFSET(INDEX(Repport!$D$1:$D$500,MATCH($B39,Repport!$B$1:$B$500,0)-1),I$1,),\"\")","v":""}]
[null,{"$f":"IFERROR(INDEX(Repport!$B$2:$B$500,MATCH($A40,Repport!$B$2:$B$500,0)+1),\"\")","v":""},{"$f":"IFERROR(OFFSET(INDEX(Repport!$B$1:$B$500,MATCH($B40,Repport!$B$1:$B$500,0)),C$1,),\"\")","v":""},{"$f":"IFERROR(OFFSET(INDEX(Repport!$B$1:$B$500,MATCH($B40,Repport!$B$1:$B$500,0)),D$1,),\"\")","v":""},{"$f":"IFERROR(OFFSET(INDEX(Repport!$B$1:$B$500,MATCH($B40,Repport!$B$1:$B$500,0)),E$1,),\"\")","v":""},{"$f":"IFERROR(OFFSET(INDEX(Repport!$B$1:$B$500,MATCH($B40,Repport!$B$1:$B$500,0)),F$1,),\"\")","v":""},{"$f":"IFERROR(INDEX(Repport!$D$1:$D$500,MATCH($B40,Repport!$B$1:$B$500,0)-1),\"\")","v":""},{"$f":"IFERROR(OFFSET(INDEX(Repport!$D$1:$D$500,MATCH($B40,Repport!$B$1:$B$500,0)-1),H$1,),\"\")","v":""},{"$f":"IFERROR(OFFSET(INDEX(Repport!$D$1:$D$500,MATCH($B40,Repport!$B$1:$B$500,0)-1),I$1,),\"\")","v":""}]
[null,{"$f":"IFERROR(INDEX(Repport!$B$2:$B$500,MATCH($A41,Repport!$B$2:$B$500,0)+1),\"\")","v":""},{"$f":"IFERROR(OFFSET(INDEX(Repport!$B$1:$B$500,MATCH($B41,Repport!$B$1:$B$500,0)),C$1,),\"\")","v":""},{"$f":"IFERROR(OFFSET(INDEX(Repport!$B$1:$B$500,MATCH($B41,Repport!$B$1:$B$500,0)),D$1,),\"\")","v":""},{"$f":"IFERROR(OFFSET(INDEX(Repport!$B$1:$B$500,MATCH($B41,Repport!$B$1:$B$500,0)),E$1,),\"\")","v":""},{"$f":"IFERROR(OFFSET(INDEX(Repport!$B$1:$B$500,MATCH($B41,Repport!$B$1:$B$500,0)),F$1,),\"\")","v":""},{"$f":"IFERROR(INDEX(Repport!$D$1:$D$500,MATCH($B41,Repport!$B$1:$B$500,0)-1),\"\")","v":""},{"$f":"IFERROR(OFFSET(INDEX(Repport!$D$1:$D$500,MATCH($B41,Repport!$B$1:$B$500,0)-1),H$1,),\"\")","v":""},{"$f":"IFERROR(OFFSET(INDEX(Repport!$D$1:$D$500,MATCH($B41,Repport!$B$1:$B$500,0)-1),I$1,),\"\")","v":""}]
[null,{"$f":"IFERROR(INDEX(Repport!$B$2:$B$500,MATCH($A42,Repport!$B$2:$B$500,0)+1),\"\")","v":""},{"$f":"IFERROR(OFFSET(INDEX(Repport!$B$1:$B$500,MATCH($B42,Repport!$B$1:$B$500,0)),C$1,),\"\")","v":""},{"$f":"IFERROR(OFFSET(INDEX(Repport!$B$1:$B$500,MATCH($B42,Repport!$B$1:$B$500,0)),D$1,),\"\")","v":""},{"$f":"IFERROR(OFFSET(INDEX(Repport!$B$1:$B$500,MATCH($B42,Repport!$B$1:$B$500,0)),E$1,),\"\")","v":""},{"$f":"IFERROR(OFFSET(INDEX(Repport!$B$1:$B$500,MATCH($B42,Repport!$B$1:$B$500,0)),F$1,),\"\")","v":""},{"$f":"IFERROR(INDEX(Repport!$D$1:$D$500,MATCH($B42,Repport!$B$1:$B$500,0)-1),\"\")","v":""},{"$f":"IFERROR(OFFSET(INDEX(Repport!$D$1:$D$500,MATCH($B42,Repport!$B$1:$B$500,0)-1),H$1,),\"\")","v":""},{"$f":"IFERROR(OFFSET(INDEX(Repport!$D$1:$D$500,MATCH($B42,Repport!$B$1:$B$500,0)-1),I$1,),\"\")","v":""}]
[null,{"$f":"IFERROR(INDEX(Repport!$B$2:$B$500,MATCH($A43,Repport!$B$2:$B$500,0)+1),\"\")","v":""},{"$f":"IFERROR(OFFSET(INDEX(Repport!$B$1:$B$500,MATCH($B43,Repport!$B$1:$B$500,0)),C$1,),\"\")","v":""},{"$f":"IFERROR(OFFSET(INDEX(Repport!$B$1:$B$500,MATCH($B43,Repport!$B$1:$B$500,0)),D$1,),\"\")","v":""},{"$f":"IFERROR(OFFSET(INDEX(Repport!$B$1:$B$500,MATCH($B43,Repport!$B$1:$B$500,0)),E$1,),\"\")","v":""},{"$f":"IFERROR(OFFSET(INDEX(Repport!$B$1:$B$500,MATCH($B43,Repport!$B$1:$B$500,0)),F$1,),\"\")","v":""},{"$f":"IFERROR(INDEX(Repport!$D$1:$D$500,MATCH($B43,Repport!$B$1:$B$500,0)-1),\"\")","v":""},{"$f":"IFERROR(OFFSET(INDEX(Repport!$D$1:$D$500,MATCH($B43,Repport!$B$1:$B$500,0)-1),H$1,),\"\")","v":""},{"$f":"IFERROR(OFFSET(INDEX(Repport!$D$1:$D$500,MATCH($B43,Repport!$B$1:$B$500,0)-1),I$1,),\"\")","v":""}]
[null,{"$f":"IFERROR(INDEX(Repport!$B$2:$B$500,MATCH($A44,Repport!$B$2:$B$500,0)+1),\"\")","v":""},{"$f":"IFERROR(OFFSET(INDEX(Repport!$B$1:$B$500,MATCH($B44,Repport!$B$1:$B$500,0)),C$1,),\"\")","v":""},{"$f":"IFERROR(OFFSET(INDEX(Repport!$B$1:$B$500,MATCH($B44,Repport!$B$1:$B$500,0)),D$1,),\"\")","v":""},{"$f":"IFERROR(OFFSET(INDEX(Repport!$B$1:$B$500,MATCH($B44,Repport!$B$1:$B$500,0)),E$1,),\"\")","v":""},{"$f":"IFERROR(OFFSET(INDEX(Repport!$B$1:$B$500,MATCH($B44,Repport!$B$1:$B$500,0)),F$1,),\"\")","v":""},{"$f":"IFERROR(INDEX(Repport!$D$1:$D$500,MATCH($B44,Repport!$B$1:$B$500,0)-1),\"\")","v":""},{"$f":"IFERROR(OFFSET(INDEX(Repport!$D$1:$D$500,MATCH($B44,Repport!$B$1:$B$500,0)-1),H$1,),\"\")","v":""},{"$f":"IFERROR(OFFSET(INDEX(Repport!$D$1:$D$500,MATCH($B44,Repport!$B$1:$B$500,0)-1),I$1,),\"\")","v":""}]
[null,{"$f":"IFERROR(INDEX(Repport!$B$2:$B$500,MATCH($A45,Repport!$B$2:$B$500,0)+1),\"\")","v":""},{"$f":"IFERROR(OFFSET(INDEX(Repport!$B$1:$B$500,MATCH($B45,Repport!$B$1:$B$500,0)),C$1,),\"\")","v":""},{"$f":"IFERROR(OFFSET(INDEX(Repport!$B$1:$B$500,MATCH($B45,Repport!$B$1:$B$500,0)),D$1,),\"\")","v":""},{"$f":"IFERROR(OFFSET(INDEX(Repport!$B$1:$B$500,MATCH($B45,Repport!$B$1:$B$500,0)),E$1,),\"\")","v":""},{"$f":"IFERROR(OFFSET(INDEX(Repport!$B$1:$B$500,MATCH($B45,Repport!$B$1:$B$500,0)),F$1,),\"\")","v":""},{"$f":"IFERROR(INDEX(Repport!$D$1:$D$500,MATCH($B45,Repport!$B$1:$B$500,0)-1),\"\")","v":""},{"$f":"IFERROR(OFFSET(INDEX(Repport!$D$1:$D$500,MATCH($B45,Repport!$B$1:$B$500,0)-1),H$1,),\"\")","v":""},{"$f":"IFERROR(OFFSET(INDEX(Repport!$D$1:$D$500,MATCH($B45,Repport!$B$1:$B$500,0)-1),I$1,),\"\")","v":""}]
[null,{"$f":"IFERROR(INDEX(Repport!$B$2:$B$500,MATCH($A46,Repport!$B$2:$B$500,0)+1),\"\")","v":""},{"$f":"IFERROR(OFFSET(INDEX(Repport!$B$1:$B$500,MATCH($B46,Repport!$B$1:$B$500,0)),C$1,),\"\")","v":""},{"$f":"IFERROR(OFFSET(INDEX(Repport!$B$1:$B$500,MATCH($B46,Repport!$B$1:$B$500,0)),D$1,),\"\")","v":""},{"$f":"IFERROR(OFFSET(INDEX(Repport!$B$1:$B$500,MATCH($B46,Repport!$B$1:$B$500,0)),E$1,),\"\")","v":""},{"$f":"IFERROR(OFFSET(INDEX(Repport!$B$1:$B$500,MATCH($B46,Repport!$B$1:$B$500,0)),F$1,),\"\")","v":""},{"$f":"IFERROR(INDEX(Repport!$D$1:$D$500,MATCH($B46,Repport!$B$1:$B$500,0)-1),\"\")","v":""},{"$f":"IFERROR(OFFSET(INDEX(Repport!$D$1:$D$500,MATCH($B46,Repport!$B$1:$B$500,0)-1),H$1,),\"\")","v":""},{"$f":"IFERROR(OFFSET(INDEX(Repport!$D$1:$D$500,MATCH($B46,Repport!$B$1:$B$500,0)-1),I$1,),\"\")","v":""}]
[null,{"$f":"IFERROR(INDEX(Repport!$B$2:$B$500,MATCH($A47,Repport!$B$2:$B$500,0)+1),\"\")","v":""},{"$f":"IFERROR(OFFSET(INDEX(Repport!$B$1:$B$500,MATCH($B47,Repport!$B$1:$B$500,0)),C$1,),\"\")","v":""},{"$f":"IFERROR(OFFSET(INDEX(Repport!$B$1:$B$500,MATCH($B47,Repport!$B$1:$B$500,0)),D$1,),\"\")","v":""},{"$f":"IFERROR(OFFSET(INDEX(Repport!$B$1:$B$500,MATCH($B47,Repport!$B$1:$B$500,0)),E$1,),\"\")","v":""},{"$f":"IFERROR(OFFSET(INDEX(Repport!$B$1:$B$500,MATCH($B47,Repport!$B$1:$B$500,0)),F$1,),\"\")","v":""},{"$f":"IFERROR(INDEX(Repport!$D$1:$D$500,MATCH($B47,Repport!$B$1:$B$500,0)-1),\"\")","v":""},{"$f":"IFERROR(OFFSET(INDEX(Repport!$D$1:$D$500,MATCH($B47,Repport!$B$1:$B$500,0)-1),H$1,),\"\")","v":""},{"$f":"IFERROR(OFFSET(INDEX(Repport!$D$1:$D$500,MATCH($B47,Repport!$B$1:$B$500,0)-1),I$1,),\"\")","v":""}]
[null,{"$f":"IFERROR(INDEX(Repport!$B$2:$B$500,MATCH($A48,Repport!$B$2:$B$500,0)+1),\"\")","v":""},{"$f":"IFERROR(OFFSET(INDEX(Repport!$B$1:$B$500,MATCH($B48,Repport!$B$1:$B$500,0)),C$1,),\"\")","v":""},{"$f":"IFERROR(OFFSET(INDEX(Repport!$B$1:$B$500,MATCH($B48,Repport!$B$1:$B$500,0)),D$1,),\"\")","v":""},{"$f":"IFERROR(OFFSET(INDEX(Repport!$B$1:$B$500,MATCH($B48,Repport!$B$1:$B$500,0)),E$1,),\"\")","v":""},{"$f":"IFERROR(OFFSET(INDEX(Repport!$B$1:$B$500,MATCH($B48,Repport!$B$1:$B$500,0)),F$1,),\"\")","v":""},{"$f":"IFERROR(INDEX(Repport!$D$1:$D$500,MATCH($B48,Repport!$B$1:$B$500,0)-1),\"\")","v":""},{"$f":"IFERROR(OFFSET(INDEX(Repport!$D$1:$D$500,MATCH($B48,Repport!$B$1:$B$500,0)-1),H$1,),\"\")","v":""},{"$f":"IFERROR(OFFSET(INDEX(Repport!$D$1:$D$500,MATCH($B48,Repport!$B$1:$B$500,0)-1),I$1,),\"\")","v":""}]
[null,{"$f":"IFERROR(INDEX(Repport!$B$2:$B$500,MATCH($A49,Repport!$B$2:$B$500,0)+1),\"\")","v":""},{"$f":"IFERROR(OFFSET(INDEX(Repport!$B$1:$B$500,MATCH($B49,Repport!$B$1:$B$500,0)),C$1,),\"\")","v":""},{"$f":"IFERROR(OFFSET(INDEX(Repport!$B$1:$B$500,MATCH($B49,Repport!$B$1:$B$500,0)),D$1,),\"\")","v":""},{"$f":"IFERROR(OFFSET(INDEX(Repport!$B$1:$B$500,MATCH($B49,Repport!$B$1:$B$500,0)),E$1,),\"\")","v":""},{"$f":"IFERROR(OFFSET(INDEX(Repport!$B$1:$B$500,MATCH($B49,Repport!$B$1:$B$500,0)),F$1,),\"\")","v":""},{"$f":"IFERROR(INDEX(Repport!$D$1:$D$500,MATCH($B49,Repport!$B$1:$B$500,0)-1),\"\")","v":""},{"$f":"IFERROR(OFFSET(INDEX(Repport!$D$1:$D$500,MATCH($B49,Repport!$B$1:$B$500,0)-1),H$1,),\"\")","v":""},{"$f":"IFERROR(OFFSET(INDEX(Repport!$D$1:$D$500,MATCH($B49,Repport!$B$1:$B$500,0)-1),I$1,),\"\")","v":""}]
[null,{"$f":"IFERROR(INDEX(Repport!$B$2:$B$500,MATCH($A50,Repport!$B$2:$B$500,0)+1),\"\")","v":""},{"$f":"IFERROR(OFFSET(INDEX(Repport!$B$1:$B$500,MATCH($B50,Repport!$B$1:$B$500,0)),C$1,),\"\")","v":""},{"$f":"IFERROR(OFFSET(INDEX(Repport!$B$1:$B$500,MATCH($B50,Repport!$B$1:$B$500,0)),D$1,),\"\")","v":""},{"$f":"IFERROR(OFFSET(INDEX(Repport!$B$1:$B$500,MATCH($B50,Repport!$B$1:$B$500,0)),E$1,),\"\")","v":""},{"$f":"IFERROR(OFFSET(INDEX(Repport!$B$1:$B$500,MATCH($B50,Repport!$B$1:$B$500,0)),F$1,),\"\")","v":""},{"$f":"IFERROR(INDEX(Repport!$D$1:$D$500,MATCH($B50,Repport!$B$1:$B$500,0)-1),\"\")","v":""},{"$f":"IFERROR(OFFSET(INDEX(Repport!$D$1:$D$500,MATCH($B50,Repport!$B$1:$B$500,0)-1),H$1,),\"\")","v":""},{"$f":"IFERROR(OFFSET(INDEX(Repport!$D$1:$D$500,MATCH($B50,Repport!$B$1:$B$500,0)-1),I$1,),\"\")","v":""}]

{"sheet":"Salim","index":3,"n_rows":215,"n_cols":9,"rows_kept":215,"cut":false,"hidden":false,"merged":[]}
["م","اسم الطالب","تاريخ الميلاد","الصف","نوع القيد","له أخوة","اسم أم الطالب","لها حيازة ؟","قيمة المعاش أو النفقة"]
[1,"محمد حامد","2010-05-10","Clase1","Form1","Yes","A1","yes",1500]
[2,"خلود ماهر",null,null,null,null,"A2"]
[3,"احمد محمود",null,null,null,null,"A3"]
[4,"هند علي خميس",null,null,null,null,"A4"]
[5,"سليمان عبد الرحيم",null,null,null,null,"A5"]
[6,"عفت إبراهيم محجوب",null,null,null,null,"A6"]
[7,"إبراهيم منصف عطية",null,null,null,null,"A7"]
[8,"دعاء السعيد علي",null,null,null,null,"A8"]
[9,"محمود طه حسن",null,null,null,null,"A9"]
[10,"هاجر عطية بسيوني",null,null,null,null,"A10"]
[11,"محمد حامد",null,null,null,null,"A11"]
[12,"خلود ماهر",null,null,null,null,"A12"]
[13,"احمد محمود",null,null,null,null,"A13"]
[14,"هند علي خميس",null,null,null,null,"A14"]
[15,"سليمان عبد الرحيم",null,null,null,null,"A15"]
[16,"عفت إبراهيم محجوب",null,null,null,null,"A16"]
[17,"إبراهيم منصف عطية",null,null,null,null,"A17"]
[18,"دعاء السعيد علي",null,null,null,null,"A18"]
[19,"محمود طه حسن",null,null,null,null,"A19"]
[20,"هاجر عطية بسيوني",null,null,null,null,"A20"]
[21,"محمد حامد",null,null,null,null,"A21"]
[22,"خلود ماهر",null,null,null,null,"A22"]
[23,"احمد محمود",null,null,null,null,"A23"]
[24,"هند علي خميس",null,null,null,null,"A24"]
[25,"سليمان عبد الرحيم",null,null,null,null,"A25"]
[26,"عفت إبراهيم محجوب",null,null,null,null,"A26"]
[27,"إبراهيم منصف عطية",null,null,null,null,"A27"]
[28,"دعاء السعيد علي",null,null,null,null,"A28"]
[29,"محمود طه حسن",null,null,null,null,"A29"]
[30,"هاجر عطية بسيوني",null,null,null,null,"A30"]
[31,"محمد حامد",null,null,null,null,"A31"]
[32,"خلود ماهر",null,null,null,null,"A32"]
[33,"احمد محمود",null,null,null,null,"A33"]
[34,"هند علي خميس",null,null,null,null,"A34"]
[35,"سليمان عبد الرحيم",null,null,null,null,"A35"]
[36,"عفت إبراهيم محجوب",null,null,null,null,"A36"]
[37,"إبراهيم منصف عطية",null,null,null,null,"A37"]
[38,"دعاء السعيد علي",null,null,null,null,"A38"]
[39,"محمود طه حسن",null,null,null,null,"A39"]
[40,"هاجر عطية بسيوني",null,null,null,null,"A40"]
[41,"محمد حامد",null,null,null,null,"A41"]
[42,"خلود ماهر",null,null,null,null,"A42"]
[43,"احمد محمود",null,null,null,null,"A43"]
[44,"هند علي خميس",null,null,null,null,"A44"]
[45,"سليمان عبد الرحيم",null,null,null,null,"A45"]
[46,"عفت إبراهيم محجوب",null,null,null,null,"A46"]
[47,"إبراهيم منصف عطية",null,null,null,null,"A47"]
[48,"دعاء السعيد علي",null,null,null,null,"A48"]
[49,"محمود طه حسن",null,null,null,null,"A49"]
[50,"هاجر عطية بسيوني",null,null,null,null,"A50"]
[51,"محمد حامد",null,null,null,null,"A51"]
[52,"خلود ماهر",null,null,null,null,"A52"]
[53,"احمد محمود",null,null,null,null,"A53"]
[54,"هند علي خميس",null,null,null,null,"A54"]
[55,"سليمان عبد الرحيم",null,null,null,null,"A55"]
[56,"عفت إبراهيم محجوب",null,null,null,null,"A56"]
[57,"إبراهيم منصف عطية",null,null,null,null,"A57"]
[58,"دعاء السعيد علي",null,null,null,null,"A58"]
[59,"محمود طه حسن",null,null,null,null,"A59"]
[60,"هاجر عطية بسيوني",null,null,null,null,"A60"]
[61,"محمد حامد",null,null,null,null,"A61"]
[62,"خلود ماهر",null,null,null,null,"A62"]
[63,"احمد محمود",null,null,null,null,"A63"]
[64,"هند علي خميس",null,null,null,null,"A64"]
[65,"سليمان عبد الرحيم",null,null,null,null,"A65"]
[66,"عفت إبراهيم محجوب",null,null,null,null,"A66"]
[67,"إبراهيم منصف عطية",null,null,null,null,"A67"]
[68,"دعاء السعيد علي",null,null,null,null,"A68"]
[69,"محمود طه حسن",null,null,null,null,"A69"]
[70,"هاجر عطية بسيوني",null,null,null,null,"A70"]
[71,"محمد حامد",null,null,null,null,"A71"]
[72,"خلود ماهر",null,null,null,null,"A72"]
[73,"احمد محمود",null,null,null,null,"A73"]
[74,"هند علي خميس",null,null,null,null,"A74"]
[75,"سليمان عبد الرحيم",null,null,null,null,"A75"]
[76,"عفت إبراهيم محجوب",null,null,null,null,"A76"]
[77,"إبراهيم منصف عطية",null,null,null,null,"A77"]
[78,"دعاء السعيد علي",null,null,null,null,"A78"]
[79,"محمود طه حسن",null,null,null,null,"A79"]
[80,"هاجر عطية بسيوني",null,null,null,null,"A80"]
[81,"محمد حامد",null,null,null,null,"A81"]
[82,"خلود ماهر",null,null,null,null,"A82"]
[83,"احمد محمود",null,null,null,null,"A83"]
[84,"هند علي خميس",null,null,null,null,"A84"]
[85,"سليمان عبد الرحيم",null,null,null,null,"A85"]
[86,"عفت إبراهيم محجوب",null,null,null,null,"A86"]
[87,"إبراهيم منصف عطية",null,null,null,null,"A87"]
[88,"دعاء السعيد علي",null,null,null,null,"A88"]
[89,"محمود طه حسن",null,null,null,null,"A89"]
[90,"هاجر عطية بسيوني",null,null,null,null,"A90"]
[91,"محمد حامد",null,null,null,null,"A91"]
[92,"خلود ماهر",null,null,null,null,"A92"]
[93,"احمد محمود",null,null,null,null,"A93"]
[94,"هند علي خميس",null,null,null,null,"A94"]
[95,"سليمان عبد الرحيم",null,null,null,null,"A95"]
[96,"عفت إبراهيم محجوب",null,null,null,null,"A96"]
[97,"إبراهيم منصف عطية",null,null,null,null,"A97"]
[98,"دعاء السعيد علي",null,null,null,null,"A98"]
[99,"محمود طه حسن",null,null,null,null,"A99"]
[100,"هاجر عطية بسيوني",null,null,null,null,"A100"]
[101,"محمد حامد",null,null,null,null,"A101"]
[102,"خلود ماهر",null,null,null,null,"A102"]
[103,"احمد محمود",null,null,null,null,"A103"]
[104,"هند علي خميس",null,null,null,null,"A104"]
[105,"سليمان عبد الرحيم",null,null,null,null,"A105"]
[106,"عفت إبراهيم محجوب",null,null,null,null,"A106"]
[107,"إبراهيم منصف عطية",null,null,null,null,"A107"]
[108,"دعاء السعيد علي",null,null,null,null,"A108"]
[109,"محمود طه حسن",null,null,null,null,"A109"]
[110,"هاجر عطية بسيوني",null,null,null,null,"A110"]
[111,"محمد حامد",null,null,null,null,"A111"]
[112,"خلود ماهر",null,null,null,null,"A112"]
[113,"احمد محمود",null,null,null,null,"A113"]
[114,"هند علي خميس",null,null,null,null,"A114"]
[115,"سليمان عبد الرحيم",null,null,null,null,"A115"]
[116,"عفت إبراهيم محجوب",null,null,null,null,"A116"]
[117,"إبراهيم منصف عطية",null,null,null,null,"A117"]
[118,"دعاء السعيد علي",null,null,null,null,"A118"]
[119,"محمود طه حسن",null,null,null,null,"A119"]
[120,"هاجر عطية بسيوني",null,null,null,null,"A120"]
[121,"محمد حامد",null,null,null,null,"A121"]
[122,"خلود ماهر",null,null,null,null,"A122"]
[123,"احمد محمود",null,null,null,null,"A123"]
[124,"هند علي خميس",null,null,null,null,"A124"]
[125,"سليمان عبد الرحيم",null,null,null,null,"A125"]
[126,"عفت إبراهيم محجوب",null,null,null,null,"A126"]
[127,"إبراهيم منصف عطية",null,null,null,null,"A127"]
[128,"دعاء السعيد علي",null,null,null,null,"A128"]
[129,"محمود طه حسن",null,null,null,null,"A129"]
[130,"هاجر عطية بسيوني",null,null,null,null,"A130"]
[131,"محمد حامد",null,null,null,null,"A131"]
[132,"خلود ماهر",null,null,null,null,"A132"]
[133,"احمد محمود",null,null,null,null,"A133"]
[134,"هند علي خميس",null,null,null,null,"A134"]
[135,"سليمان عبد الرحيم",null,null,null,null,"A135"]
[136,"عفت إبراهيم محجوب",null,null,null,null,"A136"]
[137,"إبراهيم منصف عطية",null,null,null,null,"A137"]
[138,"دعاء السعيد علي",null,null,null,null,"A138"]
[139,"محمود طه حسن",null,null,null,null,"A139"]
[140,"هاجر عطية بسيوني",null,null,null,null,"A140"]
[141,"محمد حامد",null,null,null,null,"A141"]
[142,"خلود ماهر",null,null,null,null,"A142"]
[143,"احمد محمود",null,null,null,null,"A143"]
[144,"هند علي خميس",null,null,null,null,"A144"]
[145,"سليمان عبد الرحيم",null,null,null,null,"A145"]
[146,"عفت إبراهيم محجوب",null,null,null,null,"A146"]
[147,"إبراهيم منصف عطية",null,null,null,null,"A147"]
[148,"دعاء السعيد علي",null,null,null,null,"A148"]
[149,"محمود طه حسن",null,null,null,null,"A149"]
[150,"هاجر عطية بسيوني",null,null,null,null,"A150"]
[151,"محمد حامد",null,null,null,null,"A151"]
[152,"خلود ماهر",null,null,null,null,"A152"]
[153,"احمد محمود",null,null,null,null,"A153"]
[154,"هند علي خميس",null,null,null,null,"A154"]
[155,"سليمان عبد الرحيم",null,null,null,null,"A155"]
[156,"عفت إبراهيم محجوب",null,null,null,null,"A156"]
[157,"إبراهيم منصف عطية",null,null,null,null,"A157"]
[158,"دعاء السعيد علي",null,null,null,null,"A158"]
[159,"محمود طه حسن",null,null,null,null,"A159"]
[160,"هاجر عطية بسيوني",null,null,null,null,"A160"]
[161,"محمد حامد",null,null,null,null,"A161"]
[162,"خلود ماهر",null,null,null,null,"A162"]
[163,"احمد محمود",null,null,null,null,"A163"]
[164,"هند علي خميس",null,null,null,null,"A164"]
[165,"سليمان عبد الرحيم",null,null,null,null,"A165"]
[166,"عفت إبراهيم محجوب",null,null,null,null,"A166"]
[167,"إبراهيم منصف عطية",null,null,null,null,"A167"]
[168,"دعاء السعيد علي",null,null,null,null,"A168"]
[169,"محمود طه حسن",null,null,null,null,"A169"]
[170,"هاجر عطية بسيوني",null,null,null,null,"A170"]
[171,"محمد حامد",null,null,null,null,"A171"]
[172,"خلود ماهر",null,null,null,null,"A172"]
[173,"احمد محمود",null,null,null,null,"A173"]
[174,"هند علي خميس",null,null,null,null,"A174"]
[175,"سليمان عبد الرحيم",null,null,null,null,"A175"]
[176,"عفت إبراهيم محجوب",null,null,null,null,"A176"]
[177,"إبراهيم منصف عطية",null,null,null,null,"A177"]
[178,"دعاء السعيد علي",null,null,null,null,"A178"]
[179,"محمود طه حسن",null,null,null,null,"A179"]
[180,"هاجر عطية بسيوني",null,null,null,null,"A180"]
[181,"محمد حامد",null,null,null,null,"A181"]
[182,"خلود ماهر",null,null,null,null,"A182"]
[183,"احمد محمود",null,null,null,null,"A183"]
[184,"هند علي خميس",null,null,null,null,"A184"]
[185,"سليمان عبد الرحيم",null,null,null,null,"A185"]
[186,"عفت إبراهيم محجوب",null,null,null,null,"A186"]
[187,"إبراهيم منصف عطية",null,null,null,null,"A187"]
[188,"دعاء السعيد علي",null,null,null,null,"A188"]
[189,"محمود طه حسن",null,null,null,null,"A189"]
[190,"هاجر عطية بسيوني",null,null,null,null,"A190"]
[191,"محمد حامد",null,null,null,null,"A191"]
[192,"خلود ماهر",null,null,null,null,"A192"]
[193,"احمد محمود",null,null,null,null,"A193"]
[194,"هند علي خميس",null,null,null,null,"A194"]
[195,"سليمان عبد الرحيم",null,null,null,null,"A195"]
[196,"عفت إبراهيم محجوب",null,null,null,null,"A196"]
[197,"إبراهيم منصف عطية",null,null,null,null,"A197"]
[198,"دعاء السعيد علي",null,null,null,null,"A198"]
[199,"محمود طه حسن",null,null,null,null,"A199"]
[200,"هاجر عطية بسيوني",null,null,null,null,"A200"]
[201,"محمد حامد",null,null,null,null,"A201"]
[202,"خلود ماهر",null,null,null,null,"A202"]
[203,"احمد محمود",null,null,null,null,"A203"]
[204,"هند علي خميس",null,null,null,null,"A204"]
[205,"سليمان عبد الرحيم",null,null,null,null,"A205"]
[206,"عفت إبراهيم محجوب",null,null,null,null,"A206"]
[207,"إبراهيم منصف عطية",null,null,null,null,"A207"]
[208,"دعاء السعيد علي",null,null,null,null,"A208"]
[209,"محمود طه حسن",null,null,null,null,"A209"]
[210,"هاجر عطية بسيوني",null,null,null,null,"A210"]
[211,"محمد حامد",null,null,null,null,"A211"]
[212,"خلود ماهر",null,null,null,null,"A212"]
[213,"احمد محمود",null,null,null,null,"A213"]
[214,"هند علي خميس",null,null,null,null,"A214"]